Workbook

Sheet dd (hidden)
A1: Sheet Index
A3: مدنى
A4: نيابة

Sheet مدنى
A1: الدرجة | B1: Column1 | C1: بنوك | D1: مسلسل | E1: الاسم | F1: الصافي | G1: الاستقطاعات | H1: الدمغة | I1: كسب العمل | J1: اعانة كرونا | K1: جزاءات | L1: نقابة المهن الزراعية | M1: قسط لصالح النقابة العامة | N1: دائنة جهات | O1: مستشفى ابو الريش | P1: تبرع مستشفى سرطان الاطفال | Q1: استبعاد مصروفات صيفي | R1: شركة الشرق للتامين | S1: بنك اسكندرية | T1: بنك ناصر | U1: بنك التعميير والاسكان | V1: ش محمول النقبة | W1: نقابة عامة | X1: صندوق تكميلي خاص | Y1: ش رعاية صحية | Z1: 1% | AA1: 1%2 | AB1: 9% | AC1: 3% | AD1: 1%4 | AE1: 1%3 | AF1: 12% | AG1: قسط اجازة خاصة | AH1: قسط اعارة | AI1: مدة سابقة | AJ1: الجملة | AK1: بدل عدوى | AL1: 3%4 | AM1: 1%5 | AN1: 1%6 | AO1: 12%7 | AP1: جملة الاجر المكمل | AQ1: حافز شهري | AR1: الحافز التعويضي | AS1: اجر مكمل بدون علاوة الحد الادنى | AT1: علاوة حد ادنى | AU1: منحه بكالوريوس | AV1: حافز | AW1: حافز 2020 | AX1: حافز 2019 | AY1: بدل العلاج | AZ1: اساسي قديم 150% | BA1: جهود غير عادية | BB1: 50% | BC1: جملة الاجر الوظيفي | BD1: علاوة 2021 | BE1: اجر وظيفي 2021 | BF1: علاوة 2020 | BG1: الاجر الوظيفي | BH1: علاوة 2019 | BI1: الاجر الوظيفي 2019 | BJ1: ترقية 2019 | BK1: علاوة دورية | BL1: علاوة دورية8 | BM1: اجر وظيفي | BN1: علاوة غلاء | BO1: علاوة دورية9 | BP1: اجر وظيفي10 | BQ1: علاوة 7 % | BR1: اجر وظيفي11 | BS1: علاوة 5% | BT1: اجر وظيفي12 | BU1: اجر اساسي 2019 | BV1: اجر اساسي 2018 | BW1: اجر اساسي 1017 | BX1: اجر اساسي 2016 | BY1: اجر اساسي 2015 | BZ1: اجر اساسي | CA1: b | CB1: b13 | CC1: b14 | CD1: نسبي | CE1: كسب | CF1: جملة الاعباء الضريبية الجديدية | CG1: الحصص التامينيه الجديدة | CH1: جملة الاعباء الضريبية | CI1: الحصص التامينية | CJ1: جملة الاستحقاقات | CK1: دمغه قديم | CL1: كسب عمل قديم | CM1: 0.50% | CN1: 10% | CO1: 3%15 | CP1: 10%16 | CQ1: ع ض | CR1: ع ج | CS1: حوافز | CT1: علاوة قديمة 1 | CU1: علاوة قديمة 2 | CV1: علاوة قديمة 3 | CW1: علاوة قديمة 4 | CX1: علاوة قديمة 5 | CY1: ترقيات 1 | CZ1: ترقيات 2 | DA1: ترقيات 3 | DB1: ترقيات 4 | DC1: ترقيات 5 | DD1: ترقيات 6 | DE1: تشجيعية 2020 | DF1: ترقيات 2019 | DG1: اجر وظيفي 2019 | DH1: الاسم2
A2: مدير عام | B2: مدنى بندر | D2: 1 | E2: هبه محمود حسن النمر | F2: =الجدول4[[#This Row],[الجملة]]-الجدول4[[#This Row],[الاستقطاعات]] -> 6100.62 | G2: =SUM(مدنى!$H2:$AI2) -> 2059.93 | H2: =CEILING((((BC2+AP2-1450))*0.75%),0.05) -> 42.9 | I2: =TRUNC(IF(((BC2+AP2)-H2-X2-Y2-Z2-AA2-AB2-AY2-AG2-AH2-AI2)*12<=24000,0, IF(((BC2+AP2)-H2-X2-Y2-Z2-AA2-AB2-AY2-AG2-AH2-AI2)*12-9000<=30000,(((BC2+AP2)-H2-X2-Y2-Z2-AA2-AB2-AY2-AG2-AH2-AI2)*12-24000)*2.5%, IF(((BC2+AP2)-H2-X2-Y2-Z2-AA2-AB2-AY2-AG2-AH2-AI2)*12-9000<=45000,(((BC2+AP2)-H2-X2-Y2-Z2-AA2-AB2-AY2-AG2-AH2-AI2)*12-39000)*10%+375, IF(((BC2+AP2)-H2-X2-Y2-Z2-AA2-AB2-AY2-AG2-AH2-AI2)*12-9000<=60000,(((BC2+AP2)-H2-X2-Y2-Z2-AA2-AB2-AY2-AG2-AH2-AI2)*12-54000)*15%+1875, IF(((BC2+AP2)-H2-X2-Y2-Z2-AA2-AB2-AY2-AG2-AH2-AI2)*12-9000<=200000,(((BC2+AP2)-H2-X2-Y2-Z2-AA2-AB2-AY2-AG2-AH2-AI2)*12-60000)*20%+4125, IF(((BC2+AP2)-H2-X2-Y2-Z2-AA2-AB2-AY2-AG2-AH2-AI2)*12-9000<=400000,(((BC2+AP2)-H2-X2-Y2-Z2-AA2-AB2-AY2-AG2-AH2-AI2)*12-200000)*22.5%+32125, IF(((BC2+AP2)-H2-X2-Y2-Z2-AA2-AB2-AY2-AG2-AH2-AI2)*12-9000<=600000,(((BC2+AP2)-H2-X2-Y2-Z2-AA2-AB2-AY2-AG2-AH2-AI2)*12-400000)*25%+77125, IF(((BC2+AP2)-H2-X2-Y2-Z2-AA2-AB2-AY2-AG2-AH2-AI2)*12-9000>600000,(((BC2+AP2)-H2-X2-Y2-Z2-AA2-AB2-AY2-AG2-AH2-AI2)*12-400000)*25%+77125 ))))))))/12,2) -> 235.11 | J2: =TRUNC((الجدول4[[#This Row],[الجملة]]-SUM(Z2:AF2,H2:I2))*1%,2) -> 62.53 | R2: 17.48 | W2: 10 | X2: 54.87 | Z2: =مدنى!$AN2 -> 57.66 | AA2: =مدنى!$AN2 -> 57.66 | AB2: =ROUNDUP(TRUNC((SUM((BC2+AP2)-AY2)*9%),3),2) -> 518.94 | AC2: =مدنى!$AL2 -> 172.98 | AD2: =مدنى!$AM2 -> 72.08 | AE2: =مدنى!$AN2 -> 57.66 | AF2: =مدنى!$AO2 -> 691.91 | AI2: 8.15 | AJ2: =SUM(AK2:AP2,BC2) -> 8160.55 | AL2: =ROUNDUP(TRUNC((SUM((BC2+AP2)-AY2)*3%),3),2) -> 172.98 | AM2: =ROUNDUP(TRUNC((SUM((BC2+AP2)-AY2)*1.25%),3),2) -> 72.08 | AN2: =ROUNDUP(TRUNC((SUM((BC2+AP2)-AY2)*1%),3),2) -> 57.66 | AO2: =ROUNDUP(TRUNC((SUM((BC2+AP2)-AY2)*12%),3),2) -> 691.91 | AP2: =SUM(AQ2:AS2) -> 4129.54 | AQ2: =IF(مدنى!$A2="مدير عام",350)+IF(مدنى!$A2="اولى",325)+IF(مدنى!$A2="ثانية",275)+IF(مدنى!$A2="ثالثة",225)+IF(مدنى!$A2="رابعة",175)+IF(مدنى!$A2="خامسة",175)+IF(مدنى!$A2="سادسة",175) -> 350 | AR2: 355.38 | AS2: =SUM(AU2:BB2)-AT2 -> 3424.16 | AT2: 170 | AW2: 325 | AX2: 150 | AY2: 1400 | AZ2: =TRUNC(BZ2*150%,2) -> 914.37 | BA2: =IF(BZ2*200%>500,500,BZ2*200%) -> 500 | BB2: =IF(BZ2*50%<200,200,TRUNC(BZ2*50%,2)) -> 304.79 | BC2: =SUM(مدنى!$BD2:$BE2) -> 3036.38 | BD2: =TRUNC(الجدول4[[#This Row],[اجر وظيفي 2021]]*7%,2) -> 198.64 | BE2: =SUM(الجدول4[[#This Row],[علاوة 2020]:[الاجر الوظيفي]]) -> 2837.74 | BF2: =TRUNC(BG2*7%,2) -> 185.64 | BG2: =SUM(الجدول4[[#This Row],[تشجيعية 2020]:[اجر وظيفي 2019]]) -> 2652.1 | BH2: 173.5 | BI2: 2478.6 | BK2: 180 | BL2: 150.37 | BM2: 2148.23 | BN2: 130 | BO2: 132.03 | BP2: 1886.2 | BQ2: 123.39 | BR2: 1762.81 | BS2: 83.94 | BT2: 1678.87 | BU2: 937.89 | BV2: 860.45 | BW2: 789.41 | BX2: 724.23 | BY2: 664.44 | BZ2: 609.58 | CD2: 32.35 | CE2: 382.72 | CF2: 680.37 | CG2: 573.92 | CH2: 316.5 | CI2: 265.3 | CJ2: 4624.03 | CK2: 18.45 | CL2: 32.75 | CM2: 3.05 | CN2: 183 | CO2: 18.29 | CP2: 60.96 | CQ2: 4 | CR2: 2 | CS2: 1523.95 | CT2: 56.73 | CU2: 56.23 | CV2: 64.95 | CW2: 58.05 | CX2: 33.75 | DG2: 2652.1 | DH2: هبه محمود حسن النمر
A3: اولى | B3: مدنى بندر | D3: =IF(E3<>"",SUBTOTAL(3,$E$1:E2),"") -> 1 | E3: منال عبد النبى عبد النبي قطاية | F3: =الجدول4[[#This Row],[الجملة]]-الجدول4[[#This Row],[الاستقطاعات]] -> 5364.94 | G3: =SUM(مدنى!$H3:$AI3) -> 1600.39 | H3: =CEILING((((BC3+AP3-1450))*0.75%),0.05) -> 35.25 | I3: 121.34 | J3: =TRUNC((الجدول4[[#This Row],[الجملة]]-SUM(Z3:AF3,H3:I3))*1%,2) -> 54.67 | W3: 10 | X3: 38.2 | Z3: =مدنى!$AN3 -> 47.47 | AA3: =مدنى!$AN3 -> 47.47 | AB3: 427.19 | AC3: =مدنى!$AL3 -> 142.4 | AD3: =مدنى!$AM3 -> 59.34 | AE3: =مدنى!$AN3 -> 47.47 | AF3: =مدنى!$AO3 -> 569.59 | AJ3: 6965.33 | AL3: 142.4 | AM3: 59.34 | AN3: 47.47 | AO3: 569.59 | AP3: 3503.72 | AQ3: =IF(مدنى!$A3="مدير عام",350)+IF(مدنى!$A3="اولى",325)+IF(مدنى!$A3="ثانية",275)+IF(مدنى!$A3="ثالثة",225)+IF(مدنى!$A3="رابعة",175)+IF(مدنى!$A3="خامسة",175)+IF(مدنى!$A3="سادسة",175) -> 325 | AR3: 279.96 | AS3: 2898.76 | AT3: 300 | AW3: 300 | AX3: 150 | AY3: 1400 | AZ3: 636.57 | BA3: 500 | BB3: 212.19 | BC3: =SUM(مدنى!$BD3:$BE3) -> 2642.81 | BD3: =TRUNC(الجدول4[[#This Row],[اجر وظيفي 2021]]*7%,2) -> 172.89 | BE3: =SUM(الجدول4[[#This Row],[علاوة 2020]:[الاجر الوظيفي]]) -> 2469.92 | BF3: 161.58 | BG3: =SUM(الجدول4[[#This Row],[تشجيعية 2020]:[اجر وظيفي 2019]]) -> 2308.34 | BH3: 151.01 | BI3: 2157.33 | BJ3: 102.73 | BK3: 190 | BL3: 121.98 | BM3: 1742.62 | BN3: 107 | BO3: 107 | BP3: 1528.62 | BQ3: 100 | BR3: 1428.62 | BS3: 67.79 | BT3: 1355.83 | BU3: 652.94 | BV3: 599.03 | BW3: 549.57 | BX3: 504.2 | BY3: 462.57 | BZ3: 424.38 | CD3: 26.35 | CE3: 244.7 | CF3: 511.36 | CG3: 467.36 | CH3: 254.16 | CI3: 240.31 | CJ3: 3800.59 | CK3: 13.85 | CM3: 2.13 | CN3: 183 | CO3: 12.74 | CP3: 42.44 | CQ3: 4 | CR3: 2 | CS3: 1060.95 | CT3: 39.87 | CU3: 39.37 | CV3: 45.78 | CW3: 39.63 | CX3: 22.42 | CY3: 5 | DG3: 2308.34 | DH3: منال عبد النبى عبد النبي قطاية
A4: ثانية | B4: مدنى بندر | D4: =IF(E4<>"",SUBTOTAL(3,$E$1:E3),"") -> 1 | E4: عمرو احمد محمد خضر | F4: =الجدول4[[#This Row],[الجملة]]-الجدول4[[#This Row],[الاستقطاعات]] -> 4784.87 | G4: =SUM(مدنى!$H4:$AI4) -> 1508.17 | H4: =CEILING((((BC4+AP4-1450))*0.75%),0.05) -> 30.95 | I4: 56.4 | J4: =TRUNC((الجدول4[[#This Row],[الجملة]]-SUM(Z4:AF4,H4:I4))*1%,2) -> 50.26 | W4: 10 | X4: 31.76 | Y4: 149.84 | Z4: =مدنى!$AN4 -> 41.74 | AA4: =مدنى!$AN4 -> 41.74 | AB4: 375.59 | AC4: =مدنى!$AL4 -> 125.2 | AD4: =مدنى!$AM4 -> 52.17 | AE4: =مدنى!$AN4 -> 41.74 | AF4: =مدنى!$AO4 -> 500.78 | AJ4: 6293.04 | AL4: 125.2 | AM4: 52.17 | AN4: 41.74 | AO4: 500.78 | AP4: 3251.01 | AQ4: =IF(مدنى!$A4="مدير عام",350)+IF(مدنى!$A4="اولى",325)+IF(مدنى!$A4="ثانية",275)+IF(مدنى!$A4="ثالثة",225)+IF(مدنى!$A4="رابعة",175)+IF(مدنى!$A4="خامسة",175)+IF(مدنى!$A4="سادسة",175) -> 275 | AR4: 246.75 | AS4: 2729.26 | AT4: 300 | AW4: 250 | AX4: 150 | AY4: 1400 | AZ4: 529.26 | BA4: 500 | BB4: 200 | BC4: =SUM(مدنى!$BD4:$BE4) -> 2322.14 | BD4: =TRUNC(الجدول4[[#This Row],[اجر وظيفي 2021]]*7%,2) -> 151.91 | BE4: =SUM(الجدول4[[#This Row],[علاوة 2020]:[الاجر الوظيفي]]) -> 2170.23 | BF4: 141.97 | BG4: =SUM(الجدول4[[#This Row],[تشجيعية 2020]:[اجر وظيفي 2019]]) -> 2028.26 | BH4: 132.68 | BI4: 1895.57 | BJ4: 90.26 | BK4: 190 | BL4: 105.67 | BM4: 1509.64 | BN4: 92.69 | BO4: 92.69 | BP4: 1324.26 | BQ4: 86.63 | BR4: 1237.63 | BS4: 58.93 | BT4: 1178.7 | BU4: 542.86 | BV4: 498.04 | BW4: 456.92 | BX4: 419.2 | BY4: 384.59 | BZ4: 352.84 | CD4: 24.3 | CE4: 207.99 | CF4: 454.46 | CG4: 412.1 | CH4: 234.32 | CI4: 222.17 | CJ4: 3507.96 | CK4: 12.15 | CM4: 1.77 | CN4: 174.52 | CO4: 10.59 | CP4: 35.29 | CQ4: 4 | CR4: 6 | CS4: 882.1 | CT4: 32.73 | CU4: 32.33 | CV4: 38.01 | CW4: 32.01 | CX4: 17.94 | DG4: 2028.26 | DH4: عمرو احمد محمد خضر
A5: اولى | B5: مدنى بندر | D5: =IF(E5<>"",SUBTOTAL(3,$E$1:E4),"") -> 1 | E5: هويدا محمد السعيد علي | F5: =الجدول4[[#This Row],[الجملة]]-الجدول4[[#This Row],[الاستقطاعات]] -> 5297.19 | G5: =SUM(مدنى!$H5:$AI5) -> 1550.45 | H5: =CEILING((((BC5+AP5-1450))*0.75%),0.05) -> 34.5 | I5: 112.61 | J5: =TRUNC((الجدول4[[#This Row],[الجملة]]-SUM(Z5:AF5,H5:I5))*1%,2) -> 53.87 | X5: 36.89 | Z5: =مدنى!$AN5 -> 46.47 | AA5: =مدنى!$AN5 -> 46.47 | AB5: 418.16 | AC5: =مدنى!$AL5 -> 139.39 | AD5: =مدنى!$AM5 -> 58.08 | AE5: =مدنى!$AN5 -> 46.47 | AF5: =مدنى!$AO5 -> 557.54 | AJ5: 6847.64 | AL5: 139.39 | AM5: 58.08 | AN5: 46.47 | AO5: 557.54 | AP5: 3466.62 | AQ5: =IF(مدنى!$A5="مدير عام",350)+IF(مدنى!$A5="اولى",325)+IF(مدنى!$A5="ثانية",275)+IF(مدنى!$A5="ثالثة",225)+IF(مدنى!$A5="رابعة",175)+IF(مدنى!$A5="خامسة",175)+IF(مدنى!$A5="سادسة",175) -> 325 | AR5: 272.01 | AS5: 2869.61 | AT5: 300 | AW5: 300 | AX5: 150 | AY5: 1400 | AZ5: 614.71 | BA5: 500 | BB5: 204.9 | BC5: =SUM(مدنى!$BD5:$BE5) -> 2579.54 | BD5: =TRUNC(الجدول4[[#This Row],[اجر وظيفي 2021]]*7%,2) -> 168.75 | BE5: =SUM(الجدول4[[#This Row],[علاوة 2020]:[الاجر الوظيفي]]) -> 2410.79 | BF5: 157.71 | BG5: =SUM(الجدول4[[#This Row],[تشجيعية 2020]:[اجر وظيفي 2019]]) -> 2253.08 | BH5: 147.39 | BI5: 2105.69 | BJ5: 100.27 | BK5: 190 | BL5: 118.76 | BM5: 1696.66 | BN5: 104.18 | BO5: 104.18 | BP5: 1488.3 | BQ5: 97.36 | BR5: 1390.94 | BS5: 65.99 | BT5: 1319.95 | BU5: 630.53 | BV5: 578.47 | BW5: 530.71 | BX5: 486.89 | BY5: 446.69 | BZ5: 409.81 | CD5: 25.85 | CE5: 261.01 | CF5: 525.2 | CG5: 456.78 | CH5: 251.84 | CI5: 238.34 | CJ5: 3735.56 | CK5: 13.5 | CM5: 2.05 | CN5: 183 | CO5: 12.3 | CP5: 40.99 | CQ5: 4 | CR5: 2 | CS5: 1024.52 | CT5: 38.5 | CU5: 38 | CV5: 44.28 | CW5: 38.13 | CX5: 21.42 | CY5: 5 | DG5: 2253.08 | DH5: هويدا محمد السعيد علي
A6: ثانية | B6: مدنى بندر | D6: =IF(E6<>"",SUBTOTAL(3,$E$1:E5),"") -> 1 | E6: نسمة على حسن الغالى | F6: =الجدول4[[#This Row],[الجملة]]-الجدول4[[#This Row],[الاستقطاعات]] -> 4558.21 | G6: =SUM(مدنى!$H6:$AI6) -> 1171.71 | H6: 27.35 | I6: 30.88 | J6: =TRUNC((الجدول4[[#This Row],[الجملة]]-SUM(Z6:AF6,H6:I6))*1%,2) -> 46.28 | X6: 23.94 | Z6: =مدنى!$AN6 -> 36.93 | AA6: =مدنى!$AN6 -> 36.93 | AB6: 332.36 | AC6: =مدنى!$AL6 -> 110.79 | AD6: =مدنى!$AM6 -> 46.17 | AE6: =مدنى!$AN6 -> 36.93 | AF6: =مدنى!$AO6 -> 443.15 | AJ6: 5729.92 | AL6: 110.79 | AM6: 46.17 | AN6: 36.93 | AO6: 443.15 | AP6: 3052.11 | AQ6: =IF(مدنى!$A6="مدير عام",350)+IF(مدنى!$A6="اولى",325)+IF(مدنى!$A6="ثانية",275)+IF(مدنى!$A6="ثالثة",225)+IF(مدنى!$A6="رابعة",175)+IF(مدنى!$A6="خامسة",175)+IF(مدنى!$A6="سادسة",175) -> 275 | AR6: 218.11 | AS6: 2559 | AT6: 340 | AW6: 250 | AX6: 150 | AY6: 1400 | AZ6: 399 | BA6: 500 | BB6: 200 | BC6: =SUM(مدنى!$BD6:$BE6) -> 2040.77 | BD6: =TRUNC(الجدول4[[#This Row],[اجر وظيفي 2021]]*7%,2) -> 133.5 | BE6: =SUM(الجدول4[[#This Row],[علاوة 2020]:[الاجر الوظيفي]]) -> 1907.27 | BF6: 124.77 | BG6: =SUM(الجدول4[[#This Row],[تشجيعية 2020]:[اجر وظيفي 2019]]) -> 1782.5 | BH6: 116.61 | BI6: 1665.89 | BJ6: 79.32 | BK6: 190 | BL6: 91.36 | BM6: 1305.21 | BN6: 80.14 | BO6: 80.14 | BP6: 1144.93 | BQ6: 74.9 | BR6: 1070.03 | BS6: 50.95 | BT6: 1019.08 | BU6: 409.26 | BV6: 375.47 | BW6: 344.47 | BX6: 316.03 | BY6: 289.94 | BZ6: 266 | CD6: 22.05 | CE6: 194.24 | CF6: 402.01 | CG6: 361.3 | CH6: 196.12 | CI6: 185.72 | CJ6: 3174.08 | CK6: 10.4 | CM6: 1.33 | CN6: 149.81 | CO6: 7.98 | CP6: 26.6 | CQ6: 4 | CR6: 2 | CS6: 665 | CT6: 25.72 | CU6: 24.92 | CV6: 33.54 | CW6: 27.54 | CX6: 15.36 | DG6: 1782.5 | DH6: نسمة على حسن الغالى
A7: اولى | D7: =IF(E7<>"",SUBTOTAL(3,$E$1:E6),"") -> 1 | E7: سحر يحيى التابعى رزق | F7: =الجدول4[[#This Row],[الجملة]]-الجدول4[[#This Row],[الاستقطاعات]] -> 5106.38 | G7: =SUM(مدنى!$H7:$AI7) -> 1438.3 | H7: 32.55 | I7: 91.18 | J7: =TRUNC((الجدول4[[#This Row],[الجملة]]-SUM(Z7:AF7,H7:I7))*1%,2) -> 51.81 | Z7: =مدنى!$AN7 -> 43.88 | AA7: =مدنى!$AN7 -> 43.88 | AB7: 394.9 | AC7: =مدنى!$AL7 -> 131.64 | AD7: =مدنى!$AM7 -> 54.85 | AE7: =مدنى!$AN7 -> 43.88 | AF7: =مدنى!$AO7 -> 526.54 | AI7: 23.19 | AJ7: 6544.68 | AL7: 131.64 | AM7: 54.85 | AN7: 43.88 | AO7: 526.54 | AP7: 3352.03 | AQ7: =IF(مدنى!$A7="مدير عام",350)+IF(مدنى!$A7="اولى",325)+IF(مدنى!$A7="ثانية",275)+IF(مدنى!$A7="ثالثة",225)+IF(مدنى!$A7="رابعة",175)+IF(مدنى!$A7="خامسة",175)+IF(مدنى!$A7="سادسة",175) -> 325 | AR7: 247.59 | AS7: 2779.44 | AT7: 300 | AW7: 300 | AX7: 150 | AY7: 1400 | AZ7: 529.44 | BA7: 500 | BB7: 200 | BC7: =SUM(مدنى!$BD7:$BE7) -> 2435.74 | BD7: =TRUNC(الجدول4[[#This Row],[اجر وظيفي 2021]]*7%,2) -> 159.34 | BE7: =SUM(الجدول4[[#This Row],[علاوة 2020]:[الاجر الوظيفي]]) -> 2276.4 | BF7: 148.92 | BG7: =SUM(الجدول4[[#This Row],[تشجيعية 2020]:[اجر وظيفي 2019]]) -> 2127.48 | BH7: 132.55 | BI7: 1893.63 | BJ7: 90.17 | BK7: 190 | BL7: 105.55 | BM7: 1507.91 | BN7: 92.59 | BO7: 92.59 | BP7: 1322.73 | BQ7: 86.53 | BR7: 1236.2 | BS7: 58.86 | BT7: 1177.34 | BU7: 543.04 | BV7: 498.21 | BW7: 457.08 | BX7: 419.34 | BY7: 384.72 | BZ7: 352.96 | CD7: 24.25 | CE7: 231.08 | CF7: 475.69 | CG7: 417.46 | CH7: 232.46 | CI7: 220.36 | CJ7: 3502.78 | CK7: 12.1 | CM7: 1.75 | CN7: 173.11 | CO7: 10.5 | CP7: 35 | CQ7: 4 | CR7: 2 | CS7: 882.4 | CT7: 33.14 | CU7: 32.64 | CV7: 37.14 | CW7: 31.14 | CX7: 17.36 | DF7: =TRUNC(الجدول4[[#This Row],[اجر وظيفي 2019]]*5%,2) -> 101.3 | DG7: 2026.18 | DH7: سحر يحيى التابعى رزق
A8: ثانية | B8: مدنى بندر | D8: =IF(E8<>"",SUBTOTAL(3,$E$1:E7),"") -> 2 | E8: امين امين الطنطاوى المتولي | F8: =الجدول4[[#This Row],[الجملة]]-الجدول4[[#This Row],[الاستقطاعات]] -> 4688.58 | G8: =SUM(مدنى!$H8:$AI8) -> 1248.51 | H8: 28.65 | I8: 45.41 | J8: =TRUNC((الجدول4[[#This Row],[الجملة]]-SUM(Z8:AF8,H8:I8))*1%,2) -> 47.69 | W8: 10 | X8: 23.58 | Z8: =مدنى!$AN8 -> 38.7 | AA8: =مدنى!$AN8 -> 38.7 | AB8: 348.27 | AC8: =مدنى!$AL8 -> 116.09 | AD8: =مدنى!$AM8 -> 48.37 | AE8: =مدنى!$AN8 -> 38.7 | AF8: =مدنى!$AO8 -> 464.35 | AJ8: 5937.09 | AL8: 116.09 | AM8: 48.37 | AN8: 38.7 | AO8: 464.35 | AP8: 3154.58 | AQ8: =IF(مدنى!$A8="مدير عام",350)+IF(مدنى!$A8="اولى",325)+IF(مدنى!$A8="ثانية",275)+IF(مدنى!$A8="ثالثة",225)+IF(مدنى!$A8="رابعة",175)+IF(مدنى!$A8="خامسة",175)+IF(مدنى!$A8="سادسة",175) -> 275 | AR8: 226.58 | AS8: 2653 | AT8: 340 | AU8: 100 | AW8: 250 | AX8: 150 | AY8: 1400 | AZ8: 393 | BA8: 500 | BB8: 200 | BC8: =SUM(مدنى!$BD8:$BE8) -> 2115 | BD8: =TRUNC(الجدول4[[#This Row],[اجر وظيفي 2021]]*7%,2) -> 138.36 | BE8: =SUM(الجدول4[[#This Row],[علاوة 2020]:[الاجر الوظيفي]]) -> 1976.64 | BF8: 129.31 | BG8: =SUM(الجدول4[[#This Row],[تشجيعية 2020]:[اجر وظيفي 2019]]) -> 1847.33 | BH8: 120.85 | BI8: 1726.48 | BJ8: 82.21 | BK8: 190 | BL8: 95.13 | BM8: 1359.14 | BN8: 83.45 | BO8: 83.45 | BP8: 1192.24 | BQ8: 74.28 | BR8: 1061.19 | BS8: 50.53 | BT8: 1010.66 | BU8: 403.1 | BV8: 369.82 | BW8: 339.29 | BX8: 311.28 | BY8: 285.58 | BZ8: 262 | CD8: 22.6 | CE8: 201.76 | CF8: 418.3 | CG8: 380.2 | CH8: 204.24 | CI8: 193.94 | CJ8: 3257.66 | CK8: 10.3 | CM8: 1.31 | CN8: 158.57 | CO8: 7.86 | CP8: 26.2 | CQ8: 4 | CS8: 655 | CT8: 25.32 | CU8: 24.92 | CV8: 33.54 | CW8: 27.52 | CX8: 15.36 | CZ8: 56.77 | DA8: 1135.47 | DG8: 1847.33 | DH8: امين امين الطنطاوى المتولي
A9: ثالثة | B9: مدنى بندر | D9: =IF(E9<>"",SUBTOTAL(3,$E$1:E8),"") -> 2 | E9: ابتسام المتولى محمد عبد الفتاح | F9: =الجدول4[[#This Row],[الجملة]]-الجدول4[[#This Row],[الاستقطاعات]] -> 4457.71 | G9: =SUM(مدنى!$H9:$AI9) -> 1132.9 | H9: 26.45 | I9: 28.28 | J9: =TRUNC((الجدول4[[#This Row],[الجملة]]-SUM(Z9:AF9,H9:I9))*1%,2) -> 45.26 | X9: 23.22 | Z9: =مدنى!$AN9 -> 35.74 | AA9: =مدنى!$AN9 -> 35.74 | AB9: 321.67 | AC9: =مدنى!$AL9 -> 107.23 | AD9: =مدنى!$AM9 -> 44.68 | AE9: =مدنى!$AN9 -> 35.74 | AF9: =مدنى!$AO9 -> 428.89 | AJ9: 5590.61 | AL9: 107.23 | AM9: 44.68 | AN9: 35.74 | AO9: 428.89 | AP9: 2934.39 | AQ9: =IF(مدنى!$A9="مدير عام",350)+IF(مدنى!$A9="اولى",325)+IF(مدنى!$A9="ثانية",275)+IF(مدنى!$A9="ثالثة",225)+IF(مدنى!$A9="رابعة",175)+IF(مدنى!$A9="خامسة",175)+IF(مدنى!$A9="سادسة",175) -> 225 | AR9: 212.39 | AS9: 2497 | AT9: 340 | AW9: 200 | AX9: 150 | AY9: 1400 | AZ9: 387 | BA9: 500 | BB9: 200 | BC9: =SUM(مدنى!$BD9:$BE9) -> 2039.68 | BD9: =TRUNC(الجدول4[[#This Row],[اجر وظيفي 2021]]*7%,2) -> 133.43 | BE9: =SUM(الجدول4[[#This Row],[علاوة 2020]:[الاجر الوظيفي]]) -> 1906.25 | BF9: 124.7 | BG9: =SUM(الجدول4[[#This Row],[تشجيعية 2020]:[اجر وظيفي 2019]]) -> 1781.55 | BH9: 116.55 | BI9: 1665 | BJ9: 79.28 | BK9: 190 | BL9: 91.3 | BM9: 1304.42 | BN9: 80.09 | BO9: 80.09 | BP9: 1144.24 | BQ9: 74.85 | BR9: 1069.39 | BS9: 48.49 | BT9: 969.98 | BU9: 396.93 | BV9: 364.16 | BW9: 334.1 | BX9: 306.52 | BY9: 281.22 | BZ9: 258 | CD9: 21.65 | CE9: 188.7 | CF9: 389.48 | CG9: 353.73 | CH9: 189.33 | CI9: 179.13 | CJ9: 3110.98 | CK9: 10.2 | CM9: 1.29 | CN9: 144.3 | CO9: 7.74 | CP9: 25.8 | CQ9: 4 | CS9: 645 | CT9: 24.92 | CU9: 24.12 | CV9: 32.94 | CW9: 7.2 | CX9: 4.8 | CZ9: 0 | DG9: 1781.55 | DH9: ابتسام المتولى محمد عبد الفتاح
A10: اولى | B10: مدنى بندر | D10: =IF(E10<>"",SUBTOTAL(3,$E$1:E9),"") -> 2 | E10: نورا على محمد زيان | F10: =الجدول4[[#This Row],[الجملة]]-الجدول4[[#This Row],[الاستقطاعات]] -> 4848.96 | G10: =SUM(مدنى!$H10:$AI10) -> 1318.6 | H10: 30.15 | I10: 62.3 | J10: =TRUNC((الجدول4[[#This Row],[الجملة]]-SUM(Z10:AF10,H10:I10))*1%,2) -> 49.26 | X10: 28.16 | Z10: =مدنى!$AN10 -> 40.67 | AA10: =مدنى!$AN10 -> 40.67 | AB10: 365.96 | AC10: =مدنى!$AL10 -> 121.99 | AD10: =مدنى!$AM10 -> 50.83 | AE10: =مدنى!$AN10 -> 40.67 | AF10: =مدنى!$AO10 -> 487.94 | AJ10: 6167.56 | AL10: 121.99 | AM10: 50.83 | AN10: 40.67 | AO10: 487.94 | AP10: 3233.76 | AQ10: =IF(مدنى!$A10="مدير عام",350)+IF(مدنى!$A10="اولى",325)+IF(مدنى!$A10="ثانية",275)+IF(مدنى!$A10="ثالثة",225)+IF(مدنى!$A10="رابعة",175)+IF(مدنى!$A10="خامسة",175)+IF(مدنى!$A10="سادسة",175) -> 325 | AR10: 229.44 | AS10: 2679.32 | AT10: 340 | AW10: 300 | AX10: 150 | AY10: 1400 | AZ10: 469.32 | BA10: 500 | BB10: 200 | BC10: =SUM(مدنى!$BD10:$BE10) -> 2232.37 | BD10: =TRUNC(الجدول4[[#This Row],[اجر وظيفي 2021]]*7%,2) -> 146.04 | BE10: =SUM(الجدول4[[#This Row],[علاوة 2020]:[الاجر الوظيفي]]) -> 2086.33 | BF10: 136.48 | BG10: =SUM(الجدول4[[#This Row],[تشجيعية 2020]:[اجر وظيفي 2019]]) -> 1949.85 | BH10: 127.56 | BI10: 1822.29 | BJ10: 86.77 | BK10: 190 | BL10: 101.1 | BM10: 1444.42 | BN10: 88.69 | BO10: 88.69 | BP10: 1267.04 | BQ10: 82.89 | BR10: 1184.15 | BS10: 56.15 | BT10: 1123 | BU10: 481.37 | BV10: 441.63 | BW10: 405.17 | BX10: 371.72 | BY10: 341.03 | BZ10: 312.88 | CD10: 23.2 | CE10: 209.66 | CF10: 437.66 | CG10: 395.46 | CH10: 216.15 | CI10: 204.8 | CJ10: 3348.32 | CK10: 11.35 | CM10: 1.57 | CN10: 162.55 | CO10: 9.39 | CP10: 31.29 | CQ10: 4 | CR10: 2 | CS10: 782.2 | CT10: 29.4 | CU10: 28.6 | CV10: 34.74 | CW10: 28.74 | CX10: 15.76 | CY10: 5 | CZ10: 0 | DG10: 1949.85 | DH10: نورا على محمد زيان
A11: رابعة | B11: مدنى بندر | D11: =IF(E11<>"",SUBTOTAL(3,$E$1:E10),"") -> 2 | E11: انوار السيد احمد هجرسي | F11: =الجدول4[[#This Row],[الجملة]]-الجدول4[[#This Row],[الاستقطاعات]] -> 4354.91 | G11: =SUM(مدنى!$H11:$AI11) -> 1063.04 | H11: 25.35 | I11: 25.61 | J11: =TRUNC((الجدول4[[#This Row],[الجملة]]-SUM(Z11:AF11,H11:I11))*1%,2) -> 43.98 | Z11: =مدنى!$AN11 -> 34.27 | AA11: =مدنى!$AN11 -> 34.27 | AB11: 308.42 | AC11: =مدنى!$AL11 -> 102.81 | AD11: =مدنى!$AM11 -> 42.84 | AE11: =مدنى!$AN11 -> 34.27 | AF11: =مدنى!$AO11 -> 411.22 | AJ11: 5417.95 | AL11: 102.81 | AM11: 42.84 | AN11: 34.27 | AO11: 411.22 | AP11: 2809.08 | AQ11: =IF(مدنى!$A11="مدير عام",350)+IF(مدنى!$A11="اولى",325)+IF(مدنى!$A11="ثانية",275)+IF(مدنى!$A11="ثالثة",225)+IF(مدنى!$A11="رابعة",175)+IF(مدنى!$A11="خامسة",175)+IF(مدنى!$A11="سادسة",175) -> 175 | AR11: 218.42 | AS11: 2415.66 | AT11: 385 | AW11: 150 | AX11: 150 | AY11: 1400 | AZ11: 400.66 | BA11: 500 | BB11: 200 | BC11: =SUM(مدنى!$BD11:$BE11) -> 2017.73 | BD11: =TRUNC(الجدول4[[#This Row],[اجر وظيفي 2021]]*7%,2) -> 132 | BE11: =SUM(الجدول4[[#This Row],[علاوة 2020]:[الاجر الوظيفي]]) -> 1885.73 | BF11: 123.36 | BG11: =SUM(الجدول4[[#This Row],[تشجيعية 2020]:[اجر وظيفي 2019]]) -> 1762.37 | BH11: 115.29 | BI11: 1647.08 | BK11: 200 | BL11: 94.66 | BM11: 1352.42 | BN11: 83.04 | BO11: 83.04 | BP11: 1186.34 | BQ11: 77.61 | BR11: 1108.73 | BS11: 52.79 | BT11: 1055.94 | BU11: 410.96 | BV11: 377.03 | BW11: 345.9 | BX11: 317.34 | BY11: 291.14 | BZ11: 267.11 | CD11: 22 | CE11: 195.87 | CF11: 402.8 | CG11: 343.19 | CH11: 195.23 | CI11: 184.93 | CJ11: 3165.6 | CK11: 10.3 | CM11: 1.34 | CN11: 148.85 | CO11: 8.02 | CP11: 26.72 | CQ11: 4 | CS11: 667.77 | CT11: 25.29 | CU11: 25.09 | CV11: 29.64 | CW11: 23.94 | CX11: 12.76 | CZ11: 0 | DG11: 1762.37 | DH11: انوار السيد احمد هجرسي
A12: ثالثة | B12: مدنى بندر | D12: =IF(E12<>"",SUBTOTAL(3,$E$1:E11),"") -> 2 | E12: سارة عبده السيد الكيلانى | F12: =الجدول4[[#This Row],[الجملة]]-الجدول4[[#This Row],[الاستقطاعات]] -> 4256.41 | G12: =SUM(مدنى!$H12:$AI12) -> 1053.45 | H12: 24.65 | I12: 23.06 | J12: =TRUNC((الجدول4[[#This Row],[الجملة]]-SUM(Z12:AF12,H12:I12))*1%,2) -> 43.2 | X12: 20.48 | Z12: =مدنى!$AN12 -> 33.35 | AA12: =مدنى!$AN12 -> 33.35 | AB12: 300.12 | AC12: =مدنى!$AL12 -> 100.04 | AD12: =مدنى!$AM12 -> 41.69 | AE12: =مدنى!$AN12 -> 33.35 | AF12: =مدنى!$AO12 -> 400.16 | AJ12: 5309.86 | AL12: 100.04 | AM12: 41.69 | AN12: 33.35 | AO12: 400.16 | AP12: 2825.12 | AQ12: =IF(مدنى!$A12="مدير عام",350)+IF(مدنى!$A12="اولى",325)+IF(مدنى!$A12="ثانية",275)+IF(مدنى!$A12="ثالثة",225)+IF(مدنى!$A12="رابعة",175)+IF(مدنى!$A12="خامسة",175)+IF(مدنى!$A12="سادسة",175) -> 225 | AR12: 238.87 | AS12: 2361.25 | AT12: 385 | AW12: 200 | AX12: 150 | AY12: 1400 | AZ12: 341.25 | BA12: 455 | BB12: 200 | BC12: =SUM(مدنى!$BD12:$BE12) -> 1909.5 | BD12: =TRUNC(الجدول4[[#This Row],[اجر وظيفي 2021]]*7%,2) -> 124.92 | BE12: =SUM(الجدول4[[#This Row],[علاوة 2020]:[الاجر الوظيفي]]) -> 1784.58 | BF12: 116.74 | BG12: =SUM(الجدول4[[#This Row],[تشجيعية 2020]:[اجر وظيفي 2019]]) -> 1667.84 | BH12: 109.11 | BI12: 1558.73 | BJ12: 74.22 | BK12: 190 | BL12: 84.68 | BM12: 1209.83 | BN12: 74.28 | BO12: 74.28 | BP12: 1061.27 | BQ12: 69.42 | BR12: 991.85 | BS12: 47.23 | BT12: 944.62 | BU12: 350 | BV12: 321.11 | BW12: 294.6 | BX12: 270.28 | BY12: 247.97 | BZ12: 227.5 | CD12: 20.55 | CE12: 174.67 | CF12: 357.38 | CG12: 328.33 | CH12: 171.31 | CI12: 162.16 | CJ12: 2949.87 | CK12: 9.15 | CL12: 0 | CM12: 1.14 | CN12: 131.44 | CO12: 6.83 | CP12: 22.75 | CQ12: 4 | CS12: 568.75 | CT12: 22.13 | CU12: 21.93 | CV12: 30.06 | CW12: 6.3 | CX12: 4.2 | CZ12: 0 | DG12: 1667.84 | DH12: سارة عبده السيد الكيلانى
A13: ثانية | B13: مدنى بندر | D13: =IF(E13<>"",SUBTOTAL(3,$E$1:E12),"") -> 2 | E13: ايمان كامل السيد الفيومي | F13: =الجدول4[[#This Row],[الجملة]]-الجدول4[[#This Row],[الاستقطاعات]] -> 4602.57 | G13: =SUM(مدنى!$H13:$AI13) -> 1206.31 | H13: 27.85 | I13: 35.76 | J13: =TRUNC((الجدول4[[#This Row],[الجملة]]-SUM(Z13:AF13,H13:I13))*1%,2) -> 46.82 | W13: 10 | X13: 23.58 | Z13: =مدنى!$AN13 -> 37.61 | AA13: =مدنى!$AN13 -> 37.61 | AB13: 338.42 | AC13: =مدنى!$AL13 -> 112.81 | AD13: =مدنى!$AM13 -> 47.01 | AE13: =مدنى!$AN13 -> 37.61 | AF13: =مدنى!$AO13 -> 451.23 | AJ13: =SUM(AK13:AP13,BC13) -> 5808.88 | AL13: 112.81 | AM13: 47.01 | AN13: 37.61 | AO13: 451.23 | AP13: =SUM(AQ13:AS13) -> 3045.18 | AQ13: =IF(مدنى!$A13="مدير عام",350)+IF(مدنى!$A13="اولى",325)+IF(مدنى!$A13="ثانية",275)+IF(مدنى!$A13="ثالثة",225)+IF(مدنى!$A13="رابعة",175)+IF(مدنى!$A13="خامسة",175)+IF(مدنى!$A13="سادسة",175) -> 275 | AR13: 217.18 | AS13: 2553 | AT13: 340 | AW13: 250 | AX13: 150 | AY13: 1400 | AZ13: 393 | BA13: 500 | BB13: 200 | BC13: =SUM(مدنى!$BD13:$BE13) -> 2115.04 | BD13: =TRUNC(الجدول4[[#This Row],[اجر وظيفي 2021]]*7%,2) -> 138.36 | BE13: =SUM(الجدول4[[#This Row],[علاوة 2020]:[الاجر الوظيفي]]) -> 1976.68 | BF13: =TRUNC(BG13*7%,2) -> 129.31 | BG13: =SUM(الجدول4[[#This Row],[تشجيعية 2020]:[اجر وظيفي 2019]]) -> 1847.37 | BH13: 120.85 | BI13: 1726.52 | BJ13: 82.21 | BK13: 190 | BL13: 95.14 | BM13: 1359.17 | BN13: 79.48 | BO13: 79.48 | BP13: 1135.49 | BQ13: 74.28 | BR13: 1061.21 | BS13: 50.53 | BT13: 1010.68 | BU13: 403.1 | BV13: 369.82 | BW13: 339.29 | BX13: 311.28 | BY13: 285.58 | BZ13: 262 | CD13: 21.95 | CE13: 193.01 | CF13: 399.1 | CG13: 368.16 | CH13: 194.44 | CI13: 184.14 | CJ13: 3159.68 | CK13: 10.3 | CM13: 1.31 | CN13: 148.77 | CO13: 7.86 | CP13: 26.2 | CQ13: 4 | CR13: 2 | CS13: 655 | CT13: 25.32 | CU13: 24.92 | CV13: 33.54 | CW13: 27.54 | CX13: 15.36 | CZ13: 64.72 | DA13: 1294.45 | DG13: 1847.37 | DH13: ايمان كامل السيد الفيومي
A14: اولى | B14: مدنى بندر | D14: =IF(E14<>"",SUBTOTAL(3,$E$1:E13),"") -> 2 | E14: صباح علي محمد جودة | F14: =الجدول4[[#This Row],[الجملة]]-الجدول4[[#This Row],[الاستقطاعات]] -> 5947.77 | G14: =SUM(مدنى!$H14:$AI14) -> 1911.89 | H14: 40.95 | I14: 202.94 | J14: =TRUNC((الجدول4[[#This Row],[الجملة]]-SUM(Z14:AF14,H14:I14))*1%,2) -> 60.59 | X14: 51 | Z14: =مدنى!$AN14 -> 55.1 | AA14: =مدنى!$AN14 -> 55.1 | AB14: 495.84 | AC14: =مدنى!$AL14 -> 165.28 | AD14: =مدنى!$AM14 -> 68.87 | AE14: =مدنى!$AN14 -> 55.1 | AF14: =مدنى!$AO14 -> 661.12 | AJ14: 7859.66 | AL14: 165.28 | AM14: 68.87 | AN14: 55.1 | AO14: 661.12 | AP14: 3892.87 | AQ14: =IF(مدنى!$A14="مدير عام",350)+IF(مدنى!$A14="اولى",325)+IF(مدنى!$A14="ثانية",275)+IF(مدنى!$A14="ثالثة",225)+IF(مدنى!$A14="رابعة",175)+IF(مدنى!$A14="خامسة",175)+IF(مدنى!$A14="سادسة",175) -> 325 | AR14: 339.7 | AS14: 3228.17 | AT14: 255 | AW14: 300 | AX14: 150 | AY14: 1400 | AZ14: 849.88 | BA14: 500 | BB14: 283.29 | BC14: =SUM(مدنى!$BD14:$BE14) -> 3016.42 | BD14: =TRUNC(الجدول4[[#This Row],[اجر وظيفي 2021]]*7%,2) -> 197.33 | BE14: =SUM(الجدول4[[#This Row],[علاوة 2020]:[الاجر الوظيفي]]) -> 2819.09 | BF14: 184.42 | BG14: =SUM(الجدول4[[#This Row],[تشجيعية 2020]:[اجر وظيفي 2019]]) -> 2634.67 | BH14: 172.36 | BI14: 2462.31 | BK14: 190 | BL14: 148.65 | BM14: 2123.66 | BN14: 130 | BO14: 130.42 | BP14: 1863.24 | BQ14: 121.89 | BR14: 1741.35 | BS14: 82.92 | BT14: 1658.43 | BU14: 871.74 | BV14: 799.77 | BW14: 733.74 | BX14: 673.16 | BY14: 617.58 | BZ14: 566.59 | CD14: 30.95 | CE14: 359.5 | CF14: 649.95 | CG14: 548.57 | CH14: 301.86 | CI14: 259.5 | CJ14: 4432.6 | CK14: 17.4 | CL14: 24.96 | CM14: 2.84 | CN14: 183 | CO14: 17 | CP14: 56.66 | CQ14: 4 | CR14: 2 | CS14: 1416.47 | CT14: 52.77 | CU14: 52.27 | CV14: 60.48 | CW14: 53.58 | CX14: 31.15 | DG14: 2634.67 | DH14: صباح علي محمد جودة
A15: اولى | D15: =IF(E15<>"",SUBTOTAL(3,$E$1:E14),"") -> 2 | E15: سحر يحيى التابعى رزق | F15: =الجدول4[[#This Row],[الجملة]]-الجدول4[[#This Row],[الاستقطاعات]] -> 6430.5 | G15: =SUM(مدنى!$H15:$AI15) -> 2153.95 | H15: =CEILING((((BC15+AP15-1450))*0.75%),0.05) -> 45.6 | I15: =TRUNC(IF(((BC15+AP15)-H15-X15-Y15-Z15-AA15-AB15-AY15-AG15-AH15-AI15)*12<=24000,0, IF(((BC15+AP15)-H15-X15-Y15-Z15-AA15-AB15-AY15-AG15-AH15-AI15)*12-9000<=30000,(((BC15+AP15)-H15-X15-Y15-Z15-AA15-AB15-AY15-AG15-AH15-AI15)*12-24000)*2.5%, IF(((BC15+AP15)-H15-X15-Y15-Z15-AA15-AB15-AY15-AG15-AH15-AI15)*12-9000<=45000,(((BC15+AP15)-H15-X15-Y15-Z15-AA15-AB15-AY15-AG15-AH15-AI15)*12-39000)*10%+375, IF(((BC15+AP15)-H15-X15-Y15-Z15-AA15-AB15-AY15-AG15-AH15-AI15)*12-9000<=60000,(((BC15+AP15)-H15-X15-Y15-Z15-AA15-AB15-AY15-AG15-AH15-AI15)*12-54000)*15%+1875, IF(((BC15+AP15)-H15-X15-Y15-Z15-AA15-AB15-AY15-AG15-AH15-AI15)*12-9000<=200000,(((BC15+AP15)-H15-X15-Y15-Z15-AA15-AB15-AY15-AG15-AH15-AI15)*12-60000)*20%+4125, IF(((BC15+AP15)-H15-X15-Y15-Z15-AA15-AB15-AY15-AG15-AH15-AI15)*12-9000<=400000,(((BC15+AP15)-H15-X15-Y15-Z15-AA15-AB15-AY15-AG15-AH15-AI15)*12-200000)*22.5%+32125, IF(((BC15+AP15)-H15-X15-Y15-Z15-AA15-AB15-AY15-AG15-AH15-AI15)*12-9000<=600000,(((BC15+AP15)-H15-X15-Y15-Z15-AA15-AB15-AY15-AG15-AH15-AI15)*12-400000)*25%+77125, IF(((BC15+AP15)-H15-X15-Y15-Z15-AA15-AB15-AY15-AG15-AH15-AI15)*12-9000>600000,(((BC15+AP15)-H15-X15-Y15-Z15-AA15-AB15-AY15-AG15-AH15-AI15)*12-400000)*25%+77125 ))))))))/12,2) -> 288.94 | J15: =TRUNC((الجدول4[[#This Row],[الجملة]]-SUM(Z15:AF15,H15:I15))*1%,2) -> 65.18 | Z15: =مدنى!$AN15 -> 61.28 | AA15: =مدنى!$AN15 -> 61.28 | AB15: =ROUNDUP(TRUNC((SUM((BC15+AP15)-AY15)*9%),3),2) -> 551.47 | AC15: =مدنى!$AL15 -> 183.83 | AD15: =مدنى!$AM15 -> 76.6 | AE15: =مدنى!$AN15 -> 61.28 | AF15: =مدنى!$AO15 -> 735.3 | AI15: 23.19 | AJ15: 8584.45 | AL15: =ROUNDUP(TRUNC((SUM((BC15+AP15)-AY15)*3%),3),2) -> 183.83 | AM15: =ROUNDUP(TRUNC((SUM((BC15+AP15)-AY15)*1.25%),3),2) -> 76.6 | AN15: =ROUNDUP(TRUNC((SUM((BC15+AP15)-AY15)*1%),3),2) -> 61.28 | AO15: =ROUNDUP(TRUNC((SUM((BC15+AP15)-AY15)*12%),3),2) -> 735.3 | AP15: =SUM(AQ15:AS15) -> 3352.03 | AQ15: =IF(مدنى!$A15="مدير عام",350)+IF(مدنى!$A15="اولى",325)+IF(مدنى!$A15="ثانية",275)+IF(مدنى!$A15="ثالثة",225)+IF(مدنى!$A15="رابعة",175)+IF(مدنى!$A15="خامسة",175)+IF(مدنى!$A15="سادسة",175) -> 325 | AR15: 247.59 | AS15: =SUM(AU15:BB15)-AT15 -> 2779.44 | AT15: 300 | AW15: 300 | AX15: 150 | AY15: 1400 | AZ15: =TRUNC(BZ15*150%,2) -> 529.44 | BA15: =IF(BZ15*200%>500,500,BZ15*200%) -> 500 | BB15: =IF(BZ15*50%<200,200,TRUNC(BZ15*50%,2)) -> 200 | BC15: =SUM(مدنى!$BD15:$BE15) -> 4175.41 | BD15: =TRUNC(الجدول4[[#This Row],[اجر وظيفي 2021]]*7%,2) -> 273.15 | BE15: =SUM(الجدول4[[#This Row],[علاوة 2020]:[الاجر الوظيفي]]) -> 3902.26 | BF15: 255.28 | BG15: =SUM(الجدول4[[#This Row],[تشجيعية 2020]:[اجر وظيفي 2019]]) -> 3646.98 | BH15: 132.55 | BI15: 1893.63 | BJ15: 90.17 | BK15: 190 | BL15: 105.55 | BM15: 1507.91 | BN15: 92.59 | BO15: 92.59 | BP15: 1322.73 | BQ15: 86.53 | BR15: 1236.2 | BS15: 58.86 | BT15: 1177.34 | BU15: 543.04 | BV15: 498.21 | BW15: 457.08 | BX15: 419.34 | BY15: 384.72 | BZ15: 352.96 | CD15: 24.25 | CE15: 231.08 | CF15: 475.69 | CG15: 417.46 | CH15: 232.46 | CI15: 220.36 | CJ15: 3502.78 | CK15: 12.1 | CM15: 1.75 | CN15: 173.11 | CO15: 10.5 | CP15: 35 | CQ15: 4 | CR15: 2 | CS15: 882.4 | CT15: 33.14 | CU15: 32.64 | CV15: 37.14 | CW15: 31.14 | CX15: 17.36 | DF15: =TRUNC(الجدول4[[#This Row],[اجر وظيفي 2019]]*5%,2)*16 -> 1620.8 | DG15: 2026.18 | DH15: سحر يحيى التابعى رزق
A16: اولى | D16: =IF(E16<>"",SUBTOTAL(3,$E$1:E15),"") -> 3 | E16: سحر يحيى التابعى رزق | F16: =F15-F7 -> 1324.12 | G16: 715.65 | H16: 13.05 | I16: 197.76 | J16: 13.37 | K16: 0 | L16: 0 | M16: 0 | N16: 0 | O16: 0 | P16: 0 | Q16: 0 | R16: 0 | S16: 0 | T16: 0 | U16: 0 | V16: 0 | W16: 0 | X16: 0 | Y16: 0 | Z16: 17.4 | AA16: 17.4 | AB16: 156.57 | AC16: 52.19 | AD16: 21.75 | AE16: 17.4 | AF16: 208.76 | AG16: 0 | AH16: 0 | AI16: 0 | AJ16: 2039.77 | AK16: 0 | AL16: =AL15-AL7 -> 52.19 | AM16: 21.75 | AN16: 17.4 | AO16: 208.76 | AP16: 0 | AQ16: 0 | AR16: 0 | AS16: 0 | AT16: 0 | AU16: 0 | AV16: 0 | AW16: 0 | AX16: 0 | AY16: 0 | AZ16: 0 | BA16: 0 | BB16: 0 | BC16: 1739.67 | BD16: 113.81 | BE16: 1625.86 | BF16: 106.36 | BG16: 1519.5 | BH16: 0 | BI16: 0 | BJ16: 0 | BK16: 0 | BL16: 0 | BM16: 0 | BN16: 0 | BO16: 0 | BP16: 0 | BQ16: 0 | BR16: =BR15-BR7 -> 0 | BS16: 0 | BT16: 0 | BU16: 0 | BV16: 0 | BW16: 0 | BX16: 0 | BY16: 0 | BZ16: 0 | CA16: 0 | CB16: 0 | CC16: 0 | CD16: 0 | CE16: 0 | CF16: 0 | CG16: 0 | CH16: 0 | CI16: 0 | CJ16: 0 | CK16: 0 | CL16: 0 | CM16: 0 | CN16: 0 | CO16: 0 | CP16: 0 | CQ16: 0 | CR16: 0 | CS16: 0 | CT16: 0 | CU16: 0 | CV16: 0 | CW16: 0 | CX16: =CX15-CX7 -> 0 | CY16: 0 | CZ16: 0 | DA16: 0 | DB16: 0 | DC16: 0 | DD16: 0 | DE16: 0 | DF16: 1519.5 | DG16: 2026.18 | DH16: سحر يحيى التابعى رزق
A17: اولى | D17: =IF(E17<>"",SUBTOTAL(3,$E$1:E14),"") -> 2 | E17: احمد محمد سعد حبيب | F17: =الجدول4[[#This Row],[الجملة]]-الجدول4[[#This Row],[الاستقطاعات]] -> 5225.16 | G17: =SUM(مدنى!$H17:$AI17) -> 1524.26 | H17: 33.85 | I17: 105.65 | J17: =TRUNC((الجدول4[[#This Row],[الجملة]]-SUM(Z17:AF17,H17:I17))*1%,2) -> 53.21 | W17: 10 | X17: 32.64 | Z17: =مدنى!$AN17 -> 45.63 | AA17: =مدنى!$AN17 -> 45.63 | AB17: 410.62 | AC17: =مدنى!$AL17 -> 136.88 | AD17: =مدنى!$AM17 -> 57.03 | AE17: =مدنى!$AN17 -> 45.63 | AF17: =مدنى!$AO17 -> 547.49 | AJ17: 6749.42 | AL17: 136.88 | AM17: 57.03 | AN17: 45.63 | AO17: 547.49 | AP17: 3367.53 | AQ17: =IF(مدنى!$A17="مدير عام",350)+IF(مدنى!$A17="اولى",325)+IF(مدنى!$A17="ثانية",275)+IF(مدنى!$A17="ثالثة",225)+IF(مدنى!$A17="رابعة",175)+IF(مدنى!$A17="خامسة",175)+IF(مدنى!$A17="سادسة",175) -> 325 | AR17: 248.57 | AS17: 2793.96 | AT17: 300 | AW17: 300 | AX17: 150 | AY17: 1400 | AZ17: 543.96 | BA17: 500 | BB17: 200 | BC17: =SUM(مدنى!$BD17:$BE17) -> 2594.86 | BD17: =TRUNC(الجدول4[[#This Row],[اجر وظيفي 2021]]*7%,2) -> 169.75 | BE17: =SUM(الجدول4[[#This Row],[علاوة 2020]:[الاجر الوظيفي]]) -> 2425.11 | BF17: 158.65 | BG17: =SUM(الجدول4[[#This Row],[تشجيعية 2020]:[اجر وظيفي 2019]]) -> 2266.46 | BH17: 141.21 | BI17: 2017.33 | BJ17: 96.06 | BK17: 190 | BL17: 113.26 | BM17: 1618.01 | BN17: 99.35 | BO17: 99.35 | BP17: 1419.31 | BQ17: 88.43 | BR17: 1263.3 | BS17: 60.15 | BT17: 1203.15 | BU17: 557.93 | BV17: 511.87 | BW17: 469.61 | BX17: 430.84 | BY17: 395.27 | BZ17: 362.64 | CD17: 24.55 | CE17: 235.39 | CF17: 486.19 | CG17: 434.76 | CH17: 238.65 | CI17: 226.25 | CJ17: 3547.11 | CK17: 12.4 | CM17: 1.82 | CN17: 177.28 | CO17: 10.88 | CP17: 36.27 | CQ17: 4 | CR17: 6 | CS17: 906.6 | CT17: 34.11 | CU17: 33.71 | CV17: 39.64 | CW17: 32.29 | CX17: 18.12 | CZ17: 67.58 | DA17: 1351.73 | DF17: =TRUNC(الجدول4[[#This Row],[اجر وظيفي 2019]]*5%,2) -> 107.92 | DG17: 2158.54 | DH17: احمد محمد سعد حبيب
A18: ثانية | B18: مدنى بندر | D18: =IF(E18<>"",SUBTOTAL(3,$E$1:E17),"") -> 5 | E18: رضا محمد ابراهيم الدسوقي | F18: =الجدول4[[#This Row],[الجملة]]-الجدول4[[#This Row],[الاستقطاعات]] -> 4636.87 | G18: =SUM(مدنى!$H18:$AI18) -> 1225.84 | H18: 28.2 | I18: 39.61 | J18: =TRUNC((الجدول4[[#This Row],[الجملة]]-SUM(Z18:AF18,H18:I18))*1%,2) -> 47.19 | W18: 10 | X18: 25.56 | Z18: =مدنى!$AN18 -> 38.07 | AA18: =مدنى!$AN18 -> 38.07 | AB18: 342.56 | AC18: =مدنى!$AL18 -> 114.19 | AD18: =مدنى!$AM18 -> 47.58 | AE18: =مدنى!$AN18 -> 38.07 | AF18: =مدنى!$AO18 -> 456.74 | AJ18: 5862.71 | AL18: 114.19 | AM18: 47.58 | AN18: 38.07 | AO18: 456.74 | AP18: 3083.29 | AQ18: =IF(مدنى!$A18="مدير عام",350)+IF(مدنى!$A18="اولى",325)+IF(مدنى!$A18="ثانية",275)+IF(مدنى!$A18="ثالثة",225)+IF(مدنى!$A18="رابعة",175)+IF(مدنى!$A18="خامسة",175)+IF(مدنى!$A18="سادسة",175) -> 275 | AR18: 222.35 | AS18: 2585.94 | AT18: 340 | AW18: 250 | AX18: 150 | AY18: 1400 | AZ18: 425.94 | BA18: 500 | BB18: 200 | BC18: =SUM(مدنى!$BD18:$BE18) -> 2122.84 | BD18: =TRUNC(الجدول4[[#This Row],[اجر وظيفي 2021]]*7%,2) -> 138.87 | BE18: =SUM(الجدول4[[#This Row],[علاوة 2020]:[الاجر الوظيفي]]) -> 1983.97 | BF18: 129.79 | BG18: =SUM(الجدول4[[#This Row],[تشجيعية 2020]:[اجر وظيفي 2019]]) -> 1854.18 | BH18: 121.3 | BI18: 1732.88 | BJ18: 82.51 | BK18: 190 | BL18: 95.53 | BM18: 1364.84 | BN18: 83.8 | BO18: 83.8 | BP18: 1197.24 | BQ18: 78.32 | BR18: 1118.92 | BS18: 53.04 | BT18: 1060.88 | BU18: 436.9 | BV18: 400.832714 | BW18: 367.7364348 | BX18: 337.372876 | BY18: 309.5164 | BZ18: 283.96 | CD18: 22.5 | CE18: 200.16 | CF18: 415.89 | CG18: 373.17 | CH18: 204.03 | CI18: 193.23 | CJ18: 3242.82 | CK18: 10.8 | CM18: 1.42 | CN18: 154.89 | CO18: 8.52 | CP18: 28.4 | CQ18: 4 | CR18: 2 | CS18: 709.9 | CT18: 26.46 | CU18: 26.06 | CV18: 35.19 | CW18: 29.19 | CX18: 16.06 | CY18: 5 | DG18: 1854.18 | DH18: رضا محمد ابراهيم الدسوقي
A19: ثانية | B19: مدنى بندر | D19: =IF(E19<>"",SUBTOTAL(3,$E$1:E18),"") -> 5 | E19: منار صلاح الدين عبد المنعم ابو العيلة | F19: =الجدول4[[#This Row],[الجملة]]-الجدول4[[#This Row],[الاستقطاعات]] -> 4834.68 | G19: =SUM(مدنى!$H19:$AI19) -> 1313.25 | H19: 30 | I19: 60.7 | J19: =TRUNC((الجدول4[[#This Row],[الجملة]]-SUM(Z19:AF19,H19:I19))*1%,2) -> 49.13 | X19: 29.43 | Z19: =مدنى!$AN19 -> 40.5 | AA19: =مدنى!$AN19 -> 40.5 | AB19: 364.45 | AC19: =مدنى!$AL19 -> 121.49 | AD19: =مدنى!$AM19 -> 50.62 | AE19: =مدنى!$AN19 -> 40.5 | AF19: =مدنى!$AO19 -> 485.93 | AJ19: 6147.93 | AL19: 121.49 | AM19: 50.62 | AN19: 40.5 | AO19: 485.93 | AP19: 3159.08 | AQ19: =IF(مدنى!$A19="مدير عام",350)+IF(مدنى!$A19="اولى",325)+IF(مدنى!$A19="ثانية",275)+IF(مدنى!$A19="ثالثة",225)+IF(مدنى!$A19="رابعة",175)+IF(مدنى!$A19="خامسة",175)+IF(مدنى!$A19="سادسة",175) -> 275 | AR19: 233.64 | AS19: 2650.44 | AT19: 340 | AW19: 250 | AX19: 150 | AY19: 1400 | AZ19: 490.44 | BA19: 500 | BB19: 200 | BC19: =SUM(مدنى!$BD19:$BE19) -> 2290.31 | BD19: =TRUNC(الجدول4[[#This Row],[اجر وظيفي 2021]]*7%,2) -> 149.83 | BE19: =SUM(الجدول4[[#This Row],[علاوة 2020]:[الاجر الوظيفي]]) -> 2140.48 | BF19: 140.03 | BG19: =SUM(الجدول4[[#This Row],[تشجيعية 2020]:[اجر وظيفي 2019]]) -> 2000.45 | BH19: 130.87 | BI19: 1869.58 | BJ19: 89.02 | BK19: 190 | BL19: 104.05 | BM19: 1486.51 | BN19: 91.27 | BO19: 91.27 | BP19: 1303.97 | BQ19: 85.3 | BR19: 1218.67 | BS19: 57.79 | BT19: 1155.88 | BU19: 436.9 | BV19: 400.832714 | BW19: 423.4226818 | BX19: 388.461176 | BY19: 356.3864 | BZ19: 326.96 | CD19: 27.35 | CE19: 224.21 | CF19: 462.25 | CG19: 29.43 | CH19: 222.29 | CI19: 210.69 | CJ19: 3907.49 | CK19: 11.6 | CM19: 1.64 | CN19: 166.54 | CO19: 9.81 | CP19: 32.7 | CQ19: 4 | CR19: 2 | CS19: 817.4 | CT19: 30.76 | CU19: 30.36 | CV19: 35.34 | CW19: 29.34 | CX19: 16.16 | CY19: 5 | DG19: 2000.45 | DH19: منار صلاح الدين عبد المنعم ابو العيلة
A20: ثانية | B20: مدنى بندر | D20: =IF(E20<>"",SUBTOTAL(3,$E$1:E19),"") -> 5 | E20: امال عوض التابعى سلامة | F20: =الجدول4[[#This Row],[الجملة]]-الجدول4[[#This Row],[الاستقطاعات]] -> 4663.87 | G20: =SUM(مدنى!$H20:$AI20) -> 1229.18 | H20: 28.4 | I20: 41.53 | J20: =TRUNC((الجدول4[[#This Row],[الجملة]]-SUM(Z20:AF20,H20:I20))*1%,2) -> 47.4 | Z20: =مدنى!$AN20 -> 38.32 | AA20: =مدنى!$AN20 -> 38.32 | AB20: 344.89 | AC20: =مدنى!$AL20 -> 114.96 | AD20: =مدنى!$AM20 -> 47.9 | AE20: =مدنى!$AN20 -> 38.32 | AF20: =مدنى!$AO20 -> 459.85 | AI20: 29.29 | AJ20: 5893.05 | AL20: 114.96 | AM20: 47.9 | AN20: 38.32 | AO20: 459.85 | AP20: 3119.76 | AQ20: =IF(مدنى!$A20="مدير عام",350)+IF(مدنى!$A20="اولى",325)+IF(مدنى!$A20="ثانية",275)+IF(مدنى!$A20="ثالثة",225)+IF(مدنى!$A20="رابعة",175)+IF(مدنى!$A20="خامسة",175)+IF(مدنى!$A20="سادسة",175) -> 275 | AR20: 252.45 | AS20: 2592.31 | AT20: 340 | AW20: 250 | AX20: 150 | AY20: 1400 | AZ20: 432.31 | BA20: 500 | BB20: 200 | BC20: =SUM(مدنى!$BD20:$BE20) -> 2112.26 | BD20: =TRUNC(الجدول4[[#This Row],[اجر وظيفي 2021]]*7%,2) -> 138.18 | BE20: =SUM(الجدول4[[#This Row],[علاوة 2020]:[الاجر الوظيفي]]) -> 1974.08 | BF20: 129.14 | BG20: =SUM(الجدول4[[#This Row],[تشجيعية 2020]:[اجر وظيفي 2019]]) -> 1844.94 | BH20: 120.69 | BI20: 1724.2436 | BJ20: 82.1 | BK20: 190 | BL20: 95 | BM20: 1357.1436 | BN20: 83.3336 | BO20: 83.33 | BP20: 1190.48 | BQ20: 77.88 | BR20: 1112.6 | BS20: 52.98 | BT20: 1059.62 | BU20: 443.41 | BV20: 406.8 | BW20: 373.22 | BX20: 342.41 | BY20: 314.14 | BZ20: 288.21 | CD20: 22.55 | CE20: 200.04 | CF20: 416.3 | CG20: 376.08 | CH20: 204.56 | CI20: 193.71 | CJ20: 3245.93 | CK20: 10.85 | CM20: 1.45 | CN20: 154.78 | CO20: 8.65 | CP20: 28.83 | CQ20: 4 | CS20: 720.52 | CT20: 27.18 | CU20: 26.78 | CV20: 31.14 | CW20: 25.14 | CX20: 12.96 | CZ20: 0 | DG20: 1844.94 | DH20: امال عوض التابعى سلامة
A21: اولى | B21: مدنى بندر | D21: =IF(E21<>"",SUBTOTAL(3,$E$1:E20),"") -> 5 | E21: عزيزة محمد يحيي منصف | F21: =الجدول4[[#This Row],[الجملة]]-الجدول4[[#This Row],[الاستقطاعات]] -> 5378.78 | G21: =SUM(مدنى!$H21:$AI21) -> 1605.4 | H21: 35.35 | I21: 122.89 | J21: =TRUNC((الجدول4[[#This Row],[الجملة]]-SUM(Z21:AF21,H21:I21))*1%,2) -> 54.8 | W21: 10 | X21: 36.89 | Z21: =مدنى!$AN21 -> 47.63 | AA21: =مدنى!$AN21 -> 47.63 | AB21: 428.64 | AC21: =مدنى!$AL21 -> 142.88 | AD21: =مدنى!$AM21 -> 59.54 | AE21: =مدنى!$AN21 -> 47.63 | AF21: =مدنى!$AO21 -> 571.52 | AJ21: 6984.18 | AL21: 142.88 | AM21: 59.54 | AN21: 47.63 | AO21: 571.52 | AP21: 3466.32 | AQ21: =IF(مدنى!$A21="مدير عام",350)+IF(مدنى!$A21="اولى",325)+IF(مدنى!$A21="ثانية",275)+IF(مدنى!$A21="ثالثة",225)+IF(مدنى!$A21="رابعة",175)+IF(مدنى!$A21="خامسة",175)+IF(مدنى!$A21="سادسة",175) -> 325 | AR21: 271.71 | AS21: 2869.61 | AT21: 300 | AW21: 300 | AX21: 150 | AY21: 1400 | AZ21: 614.71 | BA21: 500 | BB21: 204.9 | BC21: =SUM(مدنى!$BD21:$BE21) -> 2696.29 | BD21: =TRUNC(الجدول4[[#This Row],[اجر وظيفي 2021]]*7%,2) -> 176.39 | BE21: =SUM(الجدول4[[#This Row],[علاوة 2020]:[الاجر الوظيفي]]) -> 2519.9 | BF21: 164.85 | BG21: =SUM(الجدول4[[#This Row],[تشجيعية 2020]:[اجر وظيفي 2019]]) -> 2355.05 | BH21: 154.06 | BI21: 2200.99 | BJ21: 104.8 | BK21: 190 | BL21: 124.7 | BM21: 1781.49 | BN21: 104.18 | BO21: 104.18 | BP21: 1488.3 | BQ21: 97.36 | BR21: 1390.94 | BS21: 65.99 | BT21: 1319.95 | BU21: 630.53 | BV21: 578.47 | BW21: 530.71 | BX21: 486.89 | BY21: 446.69 | BZ21: 409.81 | CD21: 25.85 | CE21: 32.11 | CF21: 31.71 | CG21: 468.75 | CH21: 251.84 | CI21: 238.34 | CJ21: 3733.56 | CK21: 13.5 | CM21: 2.05 | CN21: 183 | CO21: 12.3 | CP21: 40.99 | CQ21: 4 | CS21: 1024.52 | CT21: 38.5 | CU21: 38 | CV21: 44.28 | CW21: 38.13 | CX21: 21.42 | CY21: 5 | CZ21: 84.83 | DA21: 1696.66 | DG21: 2355.05 | DH21: عزيزة محمد يحيي منصف
A22: اولى | B22: مدنى بندر | D22: =IF(E22<>"",SUBTOTAL(3,$E$1:E21),"") -> 5 | E22: حسين حسين محمد ابو جبر | F22: =الجدول4[[#This Row],[الجملة]]-الجدول4[[#This Row],[الاستقطاعات]] -> 5345.62 | G22: =SUM(مدنى!$H22:$AI22) -> 1835.49 | H22: 36.65 | I22: 119.38 | J22: =TRUNC((الجدول4[[#This Row],[الجملة]]-SUM(Z22:AF22,H22:I22))*1%,2) -> 56.32 | W22: 10 | X22: 42.93 | Y22: 177.29 | Z22: =مدنى!$AN22 -> 49.31 | AA22: =مدنى!$AN22 -> 49.31 | AB22: 443.76 | AC22: =مدنى!$AL22 -> 147.92 | AD22: =مدنى!$AM22 -> 61.64 | AE22: =مدنى!$AN22 -> 49.31 | AF22: =مدنى!$AO22 -> 591.67 | AJ22: 7181.11 | AL22: 147.92 | AM22: 61.64 | AN22: 49.31 | AO22: 591.67 | AP22: 3683.07 | AQ22: =IF(مدنى!$A22="مدير عام",350)+IF(مدنى!$A22="اولى",325)+IF(مدنى!$A22="ثانية",275)+IF(مدنى!$A22="ثالثة",225)+IF(مدنى!$A22="رابعة",175)+IF(مدنى!$A22="خامسة",175)+IF(مدنى!$A22="سادسة",175) -> 325 | AR22: 309.15 | AS22: 3048.92 | AT22: 255 | AW22: 300 | AX22: 150 | AY22: 1400 | AZ22: 715.44 | BA22: 500 | BB22: 238.48 | BC22: =SUM(مدنى!$BD22:$BE22) -> 2647.5 | BD22: =TRUNC(الجدول4[[#This Row],[اجر وظيفي 2021]]*7%,2) -> 173.2 | BE22: =SUM(الجدول4[[#This Row],[علاوة 2020]:[الاجر الوظيفي]]) -> 2474.3 | BF22: 161.87 | BG22: =SUM(الجدول4[[#This Row],[تشجيعية 2020]:[اجر وظيفي 2019]]) -> 2312.43 | BH22: 151.28 | BI22: 2161.15 | BK22: 190 | BL22: 128.95 | BM22: 1842.2 | BN22: 113.11 | BO22: 113.11 | BP22: 1615.98 | BQ22: 105.71 | BR22: 1510.27 | BS22: 71.91 | BT22: 1438.36 | BU22: 733.85 | BV22: 673.26 | BW22: 617.67 | BX22: 566.676176 | BY22: 519.8864 | BZ22: 476.96 | CD22: 28.05 | CE22: 277.08 | CF22: 552.53 | CG22: 487.58 | CH22: 264.22 | CI22: 247.4 | CJ22: 4037.28 | CK22: 15.15 | CL22: 1.67 | CM22: 2.39 | CN22: 183 | CO22: 14.31 | CP22: 47.7 | CQ22: 4 | CR22: 6 | CS22: 1192.4 | CT22: 44.3 | CU22: 43.8 | CV22: 50.77 | CW22: 44.62 | CX22: 25.95 | DG22: 2312.43 | DH22: حسين حسين محمد ابو جبر
A23: اولى | D23: =IF(E23<>"",SUBTOTAL(3,$E$1:E22),"") -> 5 | E23: تامر مصطفى محمود فرح | F23: =الجدول4[[#This Row],[الجملة]]-الجدول4[[#This Row],[الاستقطاعات]] -> 5183.65 | G23: =SUM(مدنى!$H23:$AI23) -> 1460.05 | H23: 33.2 | I23: 100.95 | J23: =TRUNC((الجدول4[[#This Row],[الجملة]]-SUM(Z23:AF23,H23:I23))*1%,2) -> 52.46 | W23: 10 | Z23: =مدنى!$AN23 -> 44.73 | AA23: =مدنى!$AN23 -> 44.73 | AB23: 402.5 | AC23: =مدنى!$AL23 -> 134.17 | AD23: =مدنى!$AM23 -> 55.91 | AE23: =مدنى!$AN23 -> 44.73 | AF23: =مدنى!$AO23 -> 536.67 | AJ23: 6643.7 | AL23: 134.17 | AM23: 55.91 | AN23: 44.73 | AO23: 536.67 | AP23: 3344.76 | AQ23: =IF(مدنى!$A23="مدير عام",350)+IF(مدنى!$A23="اولى",325)+IF(مدنى!$A23="ثانية",275)+IF(مدنى!$A23="ثالثة",225)+IF(مدنى!$A23="رابعة",175)+IF(مدنى!$A23="خامسة",175)+IF(مدنى!$A23="سادسة",175) -> 325 | AR23: 245.12 | AS23: 2774.64 | AT23: 300 | AW23: 300 | AX23: 150 | AY23: 1400 | AZ23: 524.64 | BA23: 500 | BB23: 200 | BC23: =SUM(مدنى!$BD23:$BE23) -> 2527.46 | BD23: =TRUNC(الجدول4[[#This Row],[اجر وظيفي 2021]]*7%,2) -> 165.34 | BE23: =SUM(الجدول4[[#This Row],[علاوة 2020]:[الاجر الوظيفي]]) -> 2362.12 | BF23: 154.53 | BG23: =SUM(الجدول4[[#This Row],[تشجيعية 2020]:[اجر وظيفي 2019]]) -> 2207.59 | BH23: 137.54 | BI23: 1964.93 | BJ23: 93.56 | BK23: 190 | BL23: 109.99 | BM23: 1571.38 | BN23: 91.89 | BO23: 91.89 | BP23: 1312.78 | BQ23: 85.88 | BR23: 1226.9 | BS23: 58.42 | BT23: 1168.48 | BU23: 538.13 | BV23: 493.7 | BW23: 452.94 | BX23: 415.549856 | BY23: 381.2384 | BZ23: 349.76 | CD23: 24.2 | CE23: 233.09 | CF23: 477.86 | CG23: 425.65 | CH23: 232.72 | CI23: 220.57 | CJ23: 3493.12 | CK23: 12.15 | CM23: 1.75 | CN23: 173.34 | CO23: 10.5 | CP23: 34.98 | CQ23: 4 | CR23: 6 | CS23: 874.4 | CT23: 32.86 | CU23: 31.86 | CV23: 37.14 | CW23: 30.54 | CX23: 16.56 | CZ23: 74.82 | DA23: 1496.56 | DF23: =TRUNC(الجدول4[[#This Row],[اجر وظيفي 2019]]*5%,2) -> 105.12 | DG23: 2102.47 | DH23: تامر مصطفى محمود فرح
A24: ثانية | B24: مدنى بندر | D24: =IF(E24<>"",SUBTOTAL(3,$E$1:E23),"") -> 6 | E24: كاميليا السعدنى السعدني خفاجى | F24: =الجدول4[[#This Row],[الجملة]]-الجدول4[[#This Row],[الاستقطاعات]] -> 4686.06 | G24: =SUM(مدنى!$H24:$AI24) -> 1236.73 | H24: 28.6 | I24: 44.01 | J24: =TRUNC((الجدول4[[#This Row],[الجملة]]-SUM(Z24:AF24,H24:I24))*1%,2) -> 47.6 | X24: 26.77 | Z24: =مدنى!$AN24 -> 38.58 | AA24: =مدنى!$AN24 -> 38.58 | AB24: 347.17 | AC24: =مدنى!$AL24 -> 115.73 | AD24: =مدنى!$AM24 -> 48.22 | AE24: =مدنى!$AN24 -> 38.58 | AF24: =مدنى!$AO24 -> 462.89 | AJ24: 5922.79 | AL24: 115.73 | AM24: 48.22 | AN24: 38.58 | AO24: 462.89 | AP24: 3106.36 | AQ24: =IF(مدنى!$A24="مدير عام",350)+IF(مدنى!$A24="اولى",325)+IF(مدنى!$A24="ثانية",275)+IF(مدنى!$A24="ثالثة",225)+IF(مدنى!$A24="رابعة",175)+IF(مدنى!$A24="خامسة",175)+IF(مدنى!$A24="سادسة",175) -> 275 | AR24: 225.28 | AS24: 2606.08 | AT24: 340 | AW24: 250 | AX24: 150 | AY24: 1400 | AZ24: 446.08 | BA24: 500 | BB24: 200 | BC24: =SUM(مدنى!$BD24:$BE24) -> 2151.01 | BD24: =TRUNC(الجدول4[[#This Row],[اجر وظيفي 2021]]*7%,2) -> 140.72 | BE24: =SUM(الجدول4[[#This Row],[علاوة 2020]:[الاجر الوظيفي]]) -> 2010.29 | BF24: 131.51 | BG24: =SUM(الجدول4[[#This Row],[تشجيعية 2020]:[اجر وظيفي 2019]]) -> 1878.78 | BH24: 122.91 | BI24: 1755.87 | BJ24: 83.61 | BK24: 190 | BL24: 96.97 | BM24: 1385.29 | BN24: 85.06 | BO24: 85.06 | BP24: 1215.17 | BQ24: 79.49 | BR24: 1135.68 | BS24: 54.08 | BT24: 1081.6 | BU24: 457.56 | BV24: 419.78 | BW24: 385.12 | BX24: 353.329059 | BY24: 324.1551 | BZ24: 297.39 | CD24: 22.8 | CE24: 203.64 | CF24: 424.23 | CG24: 378.59 | CH24: 208.84 | CI24: 197.79 | CJ24: 3283.68 | CK24: 11.05 | CM24: 1.49 | CN24: 157.63 | CO24: 8.93 | CP24: 29.74 | CQ24: 4 | CR24: 2 | CS24: 743.47 | CT24: 28.08 | CU24: 27.28 | CV24: 32.35 | CW24: 26.35 | CX24: 12.76 | DG24: 1878.78 | DH24: كاميليا السعدنى السعدني خفاجى
A25: ثانية | B25: مدنى بندر | D25: =IF(E25<>"",SUBTOTAL(3,$E$1:E24),"") -> 6 | E25: امينه طلعت السيد محمود | F25: =الجدول4[[#This Row],[الجملة]]-الجدول4[[#This Row],[الاستقطاعات]] -> 4777.52 | G25: =SUM(مدنى!$H25:$AI25) -> 1361.01 | H25: 29.95 | I25: 60 | J25: =TRUNC((الجدول4[[#This Row],[الجملة]]-SUM(Z25:AF25,H25:I25))*1%,2) -> 49.06 | V25: 41 | W25: 10 | X25: 29.27 | Z25: =مدنى!$AN25 -> 40.42 | AA25: =مدنى!$AN25 -> 40.42 | AB25: 363.73 | AC25: =مدنى!$AL25 -> 121.25 | AD25: =مدنى!$AM25 -> 50.52 | AE25: =مدنى!$AN25 -> 40.42 | AF25: =مدنى!$AO25 -> 484.97 | AJ25: 6138.53 | AL25: 121.25 | AM25: 50.52 | AN25: 40.42 | AO25: 484.97 | AP25: 3155.76 | AQ25: =IF(مدنى!$A25="مدير عام",350)+IF(مدنى!$A25="اولى",325)+IF(مدنى!$A25="ثانية",275)+IF(مدنى!$A25="ثالثة",225)+IF(مدنى!$A25="رابعة",175)+IF(مدنى!$A25="خامسة",175)+IF(مدنى!$A25="سادسة",175) -> 275 | AR25: 232.96 | AS25: 2647.8 | AT25: 340 | AW25: 250 | AX25: 150 | AY25: 1400 | AZ25: 487.8 | BA25: 500 | BB25: 200 | BC25: =SUM(مدنى!$BD25:$BE25) -> 2285.61 | BD25: =TRUNC(الجدول4[[#This Row],[اجر وظيفي 2021]]*7%,2) -> 149.52 | BE25: =SUM(الجدول4[[#This Row],[علاوة 2020]:[الاجر الوظيفي]]) -> 2136.09 | BF25: 139.74 | BG25: =SUM(الجدول4[[#This Row],[تشجيعية 2020]:[اجر وظيفي 2019]]) -> 1996.35 | BH25: 130.6 | BI25: 1865.75 | BJ25: 88.84 | BK25: 190 | BL25: 103.81 | BM25: 1483.1 | BN25: 91.06 | BO25: 91.06 | BP25: 1300.98 | BQ25: 85.11 | BR25: 1215.87 | BS25: 57.66 | BT25: 1153.21 | BU25: 500.35 | BV25: 459.04 | BW25: 421.14 | BX25: 386.37012 | BY25: 354.468 | BZ25: 325.2 | CD25: 23.55 | CE25: 215.95 | CF25: 449.6 | CG25: 397.86 | CH25: 221.75 | CI25: 210.1 | CJ25: 3397.01 | CK25: 11.65 | CM25: 1.63 | CN25: 166.19 | CO25: 9.76 | CP25: 32.52 | CQ25: 4 | CR25: 2 | CS25: 813 | CT25: 30.63 | CU25: 30.23 | CV25: 36.13 | CW25: 29.53 | CX25: 16.29 | CY25: 5 | DG25: 1996.35 | DH25: امينه طلعت السيد محمود
A26: ثالثة | B26: مدنى بندر | D26: =IF(E26<>"",SUBTOTAL(3,$E$1:E25),"") -> 6 | E26: محمد البدوى الامام عطوة | F26: =الجدول4[[#This Row],[الجملة]]-الجدول4[[#This Row],[الاستقطاعات]] -> 3734.39 | G26: =SUM(مدنى!$H26:$AI26) -> 1614.02 | H26: 24.9 | I26: 24.3 | J26: =TRUNC((الجدول4[[#This Row],[الجملة]]-SUM(Z26:AF26,H26:I26))*1%,2) -> 43.47 | T26: 570 | Z26: =مدنى!$AN26 -> 33.68 | AA26: =مدنى!$AN26 -> 33.68 | AB26: 303.08 | AC26: =مدنى!$AL26 -> 101.03 | AD26: =مدنى!$AM26 -> 42.1 | AE26: =مدنى!$AN26 -> 33.68 | AF26: =مدنى!$AO26 -> 404.1 | AJ26: 5348.41 | AL26: 101.03 | AM26: 42.1 | AN26: 33.68 | AO26: 404.1 | AP26: 2922.34 | AQ26: =IF(مدنى!$A26="مدير عام",350)+IF(مدنى!$A26="اولى",325)+IF(مدنى!$A26="ثانية",275)+IF(مدنى!$A26="ثالثة",225)+IF(مدنى!$A26="رابعة",175)+IF(مدنى!$A26="خامسة",175)+IF(مدنى!$A26="سادسة",175) -> 225 | AR26: 212.34 | AS26: 2485 | AT26: 340 | AW26: 200 | AX26: 150 | AY26: 1400 | AZ26: 375 | BA26: 500 | BB26: 200 | BC26: =SUM(مدنى!$BD26:$BE26) -> 1845.16 | BD26: =TRUNC(الجدول4[[#This Row],[اجر وظيفي 2021]]*7%,2) -> 120.71 | BE26: =SUM(الجدول4[[#This Row],[علاوة 2020]:[الاجر الوظيفي]]) -> 1724.45 | BF26: 112.81 | BG26: =SUM(الجدول4[[#This Row],[تشجيعية 2020]:[اجر وظيفي 2019]]) -> 1611.64 | BH26: 105.43 | BI26: 1506.21 | BJ26: 71.72 | BK26: 190 | BL26: 81.41 | BM26: 1163.08 | BN26: 71.41 | BO26: 71.41 | BP26: 1020.26 | BQ26: 66.74 | BR26: 953.52 | BS26: 45.4 | BT26: 908.12 | BU26: 384.63 | BV26: 352.88 | BW26: 323.75 | BX26: 297.025 | BY26: 272.5 | BZ26: 250 | CD26: 21.15 | CE26: 172.73 | CF26: 365.75 | CG26: 332.41 | CH26: 181.82 | CI26: 171.87 | CJ26: 3041.12 | CK26: 9.95 | CM26: 1.25 | CN26: 138.12 | CO26: 7.5 | CP26: 25 | CQ26: 4 | CR26: 4 | CS26: 625 | CT26: 24.12 | CU26: 4.8 | CV26: 7.2 | CW26: 7.2 | CX26: 4.8 | DG26: 1611.64 | DH26: محمد البدوى الامام عطوة
A27: ثالثة | D27: =IF(E27<>"",SUBTOTAL(3,$E$1:E26),"") -> 6 | E27: محمد كمال محمود ابراهيم شكل | F27: =الجدول4[[#This Row],[الجملة]]-الجدول4[[#This Row],[الاستقطاعات]] -> 4100.81 | G27: =SUM(مدنى!$H27:$AI27) -> 1145.61 | H27: 24.25 | I27: 19.06 | J27: =TRUNC((الجدول4[[#This Row],[الجملة]]-SUM(Z27:AF27,H27:I27))*1%,2) -> 42.76 | X27: 19.13 | Y27: 113.63 | Z27: =مدنى!$AN27 -> 32.81 | AA27: =مدنى!$AN27 -> 32.81 | AB27: 295.25 | AC27: =مدنى!$AL27 -> 98.42 | AD27: =مدنى!$AM27 -> 41.01 | AE27: =مدنى!$AN27 -> 32.81 | AF27: =مدنى!$AO27 -> 393.67 | AJ27: 5246.42 | AL27: 98.42 | AM27: 41.01 | AN27: 32.81 | AO27: 393.67 | AP27: 2728.35 | AQ27: =IF(مدنى!$A27="مدير عام",350)+IF(مدنى!$A27="اولى",325)+IF(مدنى!$A27="ثانية",275)+IF(مدنى!$A27="ثالثة",225)+IF(مدنى!$A27="رابعة",175)+IF(مدنى!$A27="خامسة",175)+IF(مدنى!$A27="سادسة",175) -> 225 | AR27: 194.6 | AS27: 2308.75 | AT27: 385 | AW27: 200 | AX27: 150 | AY27: 1400 | AZ27: 318.75 | BA27: 425 | BB27: 200 | BC27: =SUM(مدنى!$BD27:$BE27) -> 1952.16 | BD27: =TRUNC(الجدول4[[#This Row],[اجر وظيفي 2021]]*7%,2) -> 127.71 | BE27: =SUM(الجدول4[[#This Row],[علاوة 2020]:[الاجر الوظيفي]]) -> 1824.45 | BF27: 119.35 | BG27: =SUM(الجدول4[[#This Row],[تشجيعية 2020]:[اجر وظيفي 2019]]) -> 1705.1 | BH27: 106.23 | BI27: 1517.68 | BJ27: 72.27 | BK27: 200 | BL27: 81.47 | BM27: 1163.94 | BN27: 71.47 | BO27: 71.47 | BP27: 1021 | BQ27: 66.79 | BR27: 954.21 | BS27: 45.43 | BT27: 908.78 | BU27: 326.94 | BV27: 299.95 | BW27: 275.19 | BX27: 252.47125 | BY27: 231.625 | BZ27: 212.5 | CD27: 19.95 | CE27: 155.63 | CF27: 328.19 | CG27: 312.51 | CH27: 161.26 | CI27: 152.61 | CJ27: 2861.53 | CK27: 8.65 | CL27: 0 | CM27: 1.07 | CN27: 123.91 | CO27: 6.38 | CP27: 21.25 | CQ27: 4 | CS27: 531.25 | CT27: 20.67 | CU27: 20.47 | CV27: 28.14 | CW27: 5.7 | CX27: 3.8 | DF27: =TRUNC(الجدول4[[#This Row],[اجر وظيفي 2019]]*5%,2) -> 81.19 | DG27: 1623.91 | DH27: محمد كمال محمود ابراهيم شكل
A28: ثانية | B28: مدنى بندر | D28: =IF(E28<>"",SUBTOTAL(3,$E$1:E27),"") -> 7 | E28: رانيا يوسف مصطفي الفناجيلي | F28: =الجدول4[[#This Row],[الجملة]]-الجدول4[[#This Row],[الاستقطاعات]] -> 4729.94 | G28: =SUM(مدنى!$H28:$AI28) -> 1336.38 | H28: 29.5 | I28: 54.66 | J28: =TRUNC((الجدول4[[#This Row],[الجملة]]-SUM(Z28:AF28,H28:I28))*1%,2) -> 48.57 | V28: 41 | W28: 10 | X28: 28.33 | Z28: =مدنى!$AN28 -> 39.8 | AA28: =مدنى!$AN28 -> 39.8 | AB28: 358.19 | AC28: =مدنى!$AL28 -> 119.4 | AD28: =مدنى!$AM28 -> 49.75 | AE28: =مدنى!$AN28 -> 39.8 | AF28: =مدنى!$AO28 -> 477.58 | AJ28: 6066.32 | AL28: 119.4 | AM28: 49.75 | AN28: 39.8 | AO28: 477.58 | AP28: 3136.91 | AQ28: =IF(مدنى!$A28="مدير عام",350)+IF(مدنى!$A28="اولى",325)+IF(مدنى!$A28="ثانية",275)+IF(مدنى!$A28="ثالثة",225)+IF(مدنى!$A28="رابعة",175)+IF(مدنى!$A28="خامسة",175)+IF(مدنى!$A28="سادسة",175) -> 275 | AR28: 229.83 | AS28: 2632.08 | AT28: 340 | AW28: 250 | AX28: 150 | AY28: 1400 | AZ28: 472.08 | BA28: 500 | BB28: 200 | BC28: =SUM(مدنى!$BD28:$BE28) -> 2242.88 | BD28: =TRUNC(الجدول4[[#This Row],[اجر وظيفي 2021]]*7%,2) -> 146.73 | BE28: =SUM(الجدول4[[#This Row],[علاوة 2020]:[الاجر الوظيفي]]) -> 2096.15 | BF28: 137.13 | BG28: =SUM(الجدول4[[#This Row],[تشجيعية 2020]:[اجر وظيفي 2019]]) -> 1959.02 | BH28: 128.16 | BI28: 1830.86 | BJ28: 87.18 | BK28: 190 | BL28: 101.64 | BM28: 1452.04 | BN28: 89.16 | BO28: 89.16 | BP28: 1273.72 | BQ28: 83.32 | BR28: 1190.4 | BS28: 56.44 | BT28: 1128.96 | BU28: 484.23 | BV28: 444.25 | BW28: 407.57 | BX28: 373.918832 | BY28: 343.0448 | BZ28: 314.72 | CD28: 23.25 | CE28: 210.78 | CF28: 439.78 | CG28: 391.39 | CH28: 217.1 | CI28: 205.75 | CJ28: 3357.04 | CK28: 11.35 | CM28: 1.58 | CN28: 163.24 | CO28: 9.45 | CP28: 31.48 | CQ28: 4 | CR28: 2 | CS28: 786.8 | CT28: 29.54 | CU28: 29.14 | CV28: 35.34 | CW28: 29.34 | CX28: 16.16 | CY28: 5 | DG28: 1959.02 | DH28: رانيا يوسف مصطفي الفناجيلي
A29: اولى | B29: مدنى بندر | D29: =IF(E29<>"",SUBTOTAL(3,$E$1:E28),"") -> 7 | E29: ماجدة زكى سلامة | F29: =الجدول4[[#This Row],[الجملة]]-الجدول4[[#This Row],[الاستقطاعات]] -> 6010.09 | G29: =SUM(مدنى!$H29:$AI29) -> 2022.13 | H29: 42.05 | I29: 222.08 | J29: =TRUNC((الجدول4[[#This Row],[الجملة]]-SUM(Z29:AF29,H29:I29))*1%,2) -> 61.7 | V29: 35 | W29: 10 | X29: 53.31 | Z29: =مدنى!$AN29 -> 56.57 | AA29: =مدنى!$AN29 -> 56.57 | AB29: 509.09 | AC29: =مدنى!$AL29 -> 169.7 | AD29: =مدنى!$AM29 -> 70.71 | AE29: =مدنى!$AN29 -> 56.57 | AF29: =مدنى!$AO29 -> 678.78 | AJ29: 8032.22 | AL29: 169.7 | AM29: 70.71 | AN29: 56.57 | AO29: 678.78 | AP29: 3937.24 | AQ29: =IF(مدنى!$A29="مدير عام",350)+IF(مدنى!$A29="اولى",325)+IF(مدنى!$A29="ثانية",275)+IF(مدنى!$A29="ثالثة",225)+IF(مدنى!$A29="رابعة",175)+IF(مدنى!$A29="خامسة",175)+IF(مدنى!$A29="سادسة",175) -> 325 | AR29: 332.56 | AS29: 3279.68 | AT29: 255 | AW29: 300 | AX29: 150 | AY29: 1400 | AZ29: 888.51 | BA29: 500 | BB29: 296.17 | BC29: =SUM(مدنى!$BD29:$BE29) -> 3119.22 | BD29: =TRUNC(الجدول4[[#This Row],[اجر وظيفي 2021]]*7%,2) -> 204.06 | BE29: =SUM(الجدول4[[#This Row],[علاوة 2020]:[الاجر الوظيفي]]) -> 2915.16 | BF29: 190.71 | BG29: =SUM(الجدول4[[#This Row],[تشجيعية 2020]:[اجر وظيفي 2019]]) -> 2724.45 | BH29: 178.23 | BI29: 2546.22 | BK29: 190 | BL29: 154.14 | BM29: 2202.08 | BN29: 130 | BO29: 135.55 | BP29: 1936.53 | BQ29: 126.68 | BR29: 1809.85 | BS29: 86.18 | BT29: 1723.67 | BU29: 911.35 | BV29: 836.11 | BW29: 767.08 | BX29: 703.75 | BY29: 645.65 | BZ29: 592.34 | CD29: 31.8 | CE29: 376.02 | CF29: 670.8 | CG29: 564.03 | CH29: 311.22 | CI29: 262.98 | CJ29: 4549.35 | CK29: 17.95 | CL29: 30.29 | CM29: 2.97 | CN29: 183 | CO29: 17.77 | CP29: 59.24 | CQ29: 4 | CR29: 2 | CS29: 1480.85 | CT29: 55.69 | CU29: 55.19 | CV29: 63.56 | CW29: 56.66 | CX29: 32.89 | DG29: 2724.45 | DH29: ماجدة زكى سلامة
A30: ثانية | B30: مدنى بندر | D30: =IF(E30<>"",SUBTOTAL(3,$E$1:E29),"") -> 7 | E30: امير نشأت محمد الوصيف | F30: =الجدول4[[#This Row],[الجملة]]-الجدول4[[#This Row],[الاستقطاعات]] -> 4903.93 | G30: =SUM(مدنى!$H30:$AI30) -> 1307.75 | H30: =CEILING((((BC30+AP30-1450))*0.75%),0.05) -> 30.45 | I30: =TRUNC(IF(((BC30+AP30)-H30-X30-Y30-Z30-AA30-AB30-AY30-AG30-AH30-AI30)*12<=24000,0, IF(((BC30+AP30)-H30-X30-Y30-Z30-AA30-AB30-AY30-AG30-AH30-AI30)*12-9000<=30000,(((BC30+AP30)-H30-X30-Y30-Z30-AA30-AB30-AY30-AG30-AH30-AI30)*12-24000)*2.5%, IF(((BC30+AP30)-H30-X30-Y30-Z30-AA30-AB30-AY30-AG30-AH30-AI30)*12-9000<=45000,(((BC30+AP30)-H30-X30-Y30-Z30-AA30-AB30-AY30-AG30-AH30-AI30)*12-39000)*10%+375, IF(((BC30+AP30)-H30-X30-Y30-Z30-AA30-AB30-AY30-AG30-AH30-AI30)*12-9000<=60000,(((BC30+AP30)-H30-X30-Y30-Z30-AA30-AB30-AY30-AG30-AH30-AI30)*12-54000)*15%+1875, IF(((BC30+AP30)-H30-X30-Y30-Z30-AA30-AB30-AY30-AG30-AH30-AI30)*12-9000<=200000,(((BC30+AP30)-H30-X30-Y30-Z30-AA30-AB30-AY30-AG30-AH30-AI30)*12-60000)*20%+4125, IF(((BC30+AP30)-H30-X30-Y30-Z30-AA30-AB30-AY30-AG30-AH30-AI30)*12-9000<=400000,(((BC30+AP30)-H30-X30-Y30-Z30-AA30-AB30-AY30-AG30-AH30-AI30)*12-200000)*22.5%+32125, IF(((BC30+AP30)-H30-X30-Y30-Z30-AA30-AB30-AY30-AG30-AH30-AI30)*12-9000<=600000,(((BC30+AP30)-H30-X30-Y30-Z30-AA30-AB30-AY30-AG30-AH30-AI30)*12-400000)*25%+77125, IF(((BC30+AP30)-H30-X30-Y30-Z30-AA30-AB30-AY30-AG30-AH30-AI30)*12-9000>600000,(((BC30+AP30)-H30-X30-Y30-Z30-AA30-AB30-AY30-AG30-AH30-AI30)*12-400000)*25%+77125 ))))))))/12,2) -> 68.43 | J30: =TRUNC((الجدول4[[#This Row],[الجملة]]-SUM(Z30:AF30,H30:I30))*1%,2) -> 49.53 | Z30: =مدنى!$AN30 -> 41.04 | AA30: =مدنى!$AN30 -> 41.04 | AB30: =ROUNDUP(TRUNC((SUM((BC30+AP30)-AY30)*9%),3),2) -> 369.34 | AC30: =مدنى!$AL30 -> 123.12 | AD30: =مدنى!$AM30 -> 51.3 | AE30: =مدنى!$AN30 -> 41.04 | AF30: =مدنى!$AO30 -> 492.46 | AJ30: =SUM(AK30:AP30,BC30) -> 6211.68 | AL30: =ROUNDUP(TRUNC((SUM((BC30+AP30)-AY30)*3%),3),2) -> 123.12 | AM30: =ROUNDUP(TRUNC((SUM((BC30+AP30)-AY30)*1.25%),3),2) -> 51.3 | AN30: =ROUNDUP(TRUNC((SUM((BC30+AP30)-AY30)*1%),3),2) -> 41.04 | AO30: =ROUNDUP(TRUNC((SUM((BC30+AP30)-AY30)*12%),3),2) -> 492.46 | AP30: =SUM(AQ30:AS30) -> 3233.75 | AQ30: =IF(مدنى!$A30="مدير عام",350)+IF(مدنى!$A30="اولى",325)+IF(مدنى!$A30="ثانية",275)+IF(مدنى!$A30="ثالثة",225)+IF(مدنى!$A30="رابعة",175)+IF(مدنى!$A30="خامسة",175)+IF(مدنى!$A30="سادسة",175) -> 275 | AR30: 246.41 | AS30: =SUM(AU30:BB30)-AT30 -> 2712.34 | AT30: 300 | AW30: 250 | AX30: 150 | AY30: 1400 | AZ30: =TRUNC(BZ30*150%,2) -> 512.34 | BA30: =IF(BZ30*200%>500,500,BZ30*200%) -> 500 | BB30: =IF(BZ30*50%<200,200,TRUNC(BZ30*50%,2)) -> 200 | BC30: =SUM(مدنى!$BD30:$BE30) -> 2270.01 | BD30: =TRUNC(الجدول4[[#This Row],[اجر وظيفي 2021]]*7%,2) -> 148.5 | BE30: =SUM(الجدول4[[#This Row],[علاوة 2020]:[الاجر الوظيفي]]) -> 2121.51 | BF30: =TRUNC(BG30*7%,2) -> 138.79 | BG30: =SUM(الجدول4[[#This Row],[تشجيعية 2020]:[اجر وظيفي 2019]]) -> 1982.72 | BH30: 129.71 | BI30: 1853.01 | BJ30: 88.23 | BK30: 190 | BL30: 103.02 | BM30: 1471.76 | BN30: 90.37 | BO30: 90.37 | BP30: 1291.02 | BQ30: 84.45 | BR30: 1206.57 | BS30: 57.45 | BT30: 1149.12 | BU30: 525.51 | BV30: 482.12 | BW30: 442.32 | BX30: 405.8 | BY30: 372.3 | BZ30: 341.56 | CD30: 23.95 | CE30: 228.89 | CF30: 469.95 | CG30: 404.85 | CH30: 229.01 | CI30: 217.11 | CJ30: 3461.46 | CK30: 11.9 | CM30: 1.71 | CN30: 170.99 | CO30: 10.25 | CP30: 34.16 | CQ30: 4 | CR30: 6 | CS30: 853.9 | CT30: 31.68 | CU30: 31.28 | CV30: 36.54 | CW30: 29.94 | CX30: 16.56 | DG30: 1982.72 | DH30: امير نشأت محمد الوصيف
A31: اولى | B31: كفرسعد جزئي | D31: =IF(E31<>"",SUBTOTAL(3,$E$1:E30),"") -> 7 | E31: سمية على عبد اللطيف درغام | F31: =الجدول4[[#This Row],[الجملة]]-الجدول4[[#This Row],[الاستقطاعات]] -> 6143.18 | G31: =SUM(مدنى!$H31:$AI31) -> 2246.66 | H31: 44.35 | I31: =TRUNC(IF(((BC31+AP31)-H31-X31-Y31-Z31-AA31-AB31-AY31-AG31-AH31-AI31)*12<=24000,0, IF(((BC31+AP31)-H31-X31-Y31-Z31-AA31-AB31-AY31-AG31-AH31-AI31)*12-9000<=30000,(((BC31+AP31)-H31-X31-Y31-Z31-AA31-AB31-AY31-AG31-AH31-AI31)*12-24000)*2.5%, IF(((BC31+AP31)-H31-X31-Y31-Z31-AA31-AB31-AY31-AG31-AH31-AI31)*12-9000<=45000,(((BC31+AP31)-H31-X31-Y31-Z31-AA31-AB31-AY31-AG31-AH31-AI31)*12-39000)*10%+375, IF(((BC31+AP31)-H31-X31-Y31-Z31-AA31-AB31-AY31-AG31-AH31-AI31)*12-9000<=60000,(((BC31+AP31)-H31-X31-Y31-Z31-AA31-AB31-AY31-AG31-AH31-AI31)*12-54000)*15%+1875, IF(((BC31+AP31)-H31-X31-Y31-Z31-AA31-AB31-AY31-AG31-AH31-AI31)*12-9000<=200000,(((BC31+AP31)-H31-X31-Y31-Z31-AA31-AB31-AY31-AG31-AH31-AI31)*12-60000)*20%+4125, IF(((BC31+AP31)-H31-X31-Y31-Z31-AA31-AB31-AY31-AG31-AH31-AI31)*12-9000<=400000,(((BC31+AP31)-H31-X31-Y31-Z31-AA31-AB31-AY31-AG31-AH31-AI31)*12-200000)*22.5%+32125, IF(((BC31+AP31)-H31-X31-Y31-Z31-AA31-AB31-AY31-AG31-AH31-AI31)*12-9000<=600000,(((BC31+AP31)-H31-X31-Y31-Z31-AA31-AB31-AY31-AG31-AH31-AI31)*12-400000)*25%+77125, IF(((BC31+AP31)-H31-X31-Y31-Z31-AA31-AB31-AY31-AG31-AH31-AI31)*12-9000>600000,(((BC31+AP31)-H31-X31-Y31-Z31-AA31-AB31-AY31-AG31-AH31-AI31)*12-400000)*25%+77125 ))))))))/12,2) -> 261.85 | J31: =TRUNC((الجدول4[[#This Row],[الجملة]]-SUM(Z31:AF31,H31:I31))*1%,2) -> 63.99 | M31: 125 | W31: 10 | X31: 57.32 | Z31: =مدنى!$AN31 -> 59.62 | AA31: =مدنى!$AN31 -> 59.62 | AB31: 536.54 | AC31: =مدنى!$AL31 -> 178.85 | AD31: =مدنى!$AM31 -> 74.52 | AE31: =مدنى!$AN31 -> 59.62 | AF31: =مدنى!$AO31 -> 715.38 | AJ31: =SUM(AK31:AP31,BC31) -> 8389.84 | AL31: 178.85 | AM31: 74.52 | AN31: 59.62 | AO31: 715.38 | AP31: =SUM(AQ31:AS31) -> 4068.62 | AQ31: =IF(مدنى!$A31="مدير عام",350)+IF(مدنى!$A31="اولى",325)+IF(مدنى!$A31="ثانية",275)+IF(مدنى!$A31="ثالثة",225)+IF(مدنى!$A31="رابعة",175)+IF(مدنى!$A31="خامسة",175)+IF(مدنى!$A31="سادسة",175) -> 325 | AR31: 375.01 | AS31: =SUM(AU31:BB31)-AT31 -> 3368.61 | AT31: 255 | AW31: 300 | AX31: 150 | AY31: 1400 | AZ31: =TRUNC(BZ31*150%,2) -> 955.21 | BA31: =IF(BZ31*200%>500,500,BZ31*200%) -> 500 | BB31: =IF(BZ31*50%<200,200,TRUNC(BZ31*50%,2)) -> 318.4 | BC31: =SUM(مدنى!$BD31:$BE31) -> 3292.85 | BD31: =TRUNC(الجدول4[[#This Row],[اجر وظيفي 2021]]*7%,2) -> 215.42 | BE31: =SUM(الجدول4[[#This Row],[علاوة 2020]:[الاجر الوظيفي]]) -> 3077.43 | BF31: =TRUNC(BG31*7%,2) -> 201.32 | BG31: =SUM(الجدول4[[#This Row],[تشجيعية 2020]:[اجر وظيفي 2019]]) -> 2876.11 | BH31: 188.15 | BI31: 2687.96 | BK31: 190 | BL31: 163.41 | BM31: 2334.55 | BN31: 130 | BO31: 144.22 | BP31: 2060.33 | BQ31: 134.78 | BR31: 1925.55 | BS31: 91.69 | BT31: 1833.86 | BU31: 979.8 | BV31: 898.904579 | BW31: 824.6831 | BX31: 756.59 | BY31: 694.12 | BZ31: 636.81 | CD31: 32.65 | CE31: 392.34 | CF31: 689.73 | CG31: 596.32 | CH31: 325.45 | CI31: 264.74 | CJ31: 4664.77 | CK31: 19.05 | CL31: 41.66 | CM31: 3.19 | CN31: 183 | CO31: 18.13 | CP31: 60.42 | CQ31: 4 | CS31: 1510.32 | CT31: 59.91 | CU31: 59.41 | CV31: 68.5 | CW31: 61.6 | CX31: 35.82 | CZ31: 0 | DG31: 2876.11 | DH31: سمية على عبد اللطيف درغام
A32: اولى | B32: كفرسعد جزئي | D32: =IF(E32<>"",SUBTOTAL(3,$E$1:E31),"") -> 7 | E32: نجلاء محمد سعد بدران | F32: =الجدول4[[#This Row],[الجملة]]-الجدول4[[#This Row],[الاستقطاعات]] -> 5801.58 | G32: =SUM(مدنى!$H32:$AI32) -> 1839.15 | H32: 39.55 | I32: 178.66 | J32: =TRUNC((الجدول4[[#This Row],[الجملة]]-SUM(Z32:AF32,H32:I32))*1%,2) -> 59.18 | W32: 10 | X32: 48.1 | Z32: =مدنى!$AN32 -> 53.23 | AA32: =مدنى!$AN32 -> 53.23 | AB32: 479.04 | AC32: =مدنى!$AL32 -> 159.68 | AD32: =مدنى!$AM32 -> 66.54 | AE32: =مدنى!$AN32 -> 53.23 | AF32: =مدنى!$AO32 -> 638.71 | AJ32: =SUM(AK32:AP32,BC32) -> 7640.73 | AL32: 159.68 | AM32: 66.54 | AN32: 53.23 | AO32: 638.71 | AP32: =SUM(AQ32:AS32) -> 3837.65 | AQ32: =IF(مدنى!$A32="مدير عام",350)+IF(مدنى!$A32="اولى",325)+IF(مدنى!$A32="ثانية",275)+IF(مدنى!$A32="ثالثة",225)+IF(مدنى!$A32="رابعة",175)+IF(مدنى!$A32="خامسة",175)+IF(مدنى!$A32="سادسة",175) -> 325 | AR32: 348.88 | AS32: 3163.77 | AT32: 255 | AW32: 300 | AX32: 150 | AY32: 1400 | AZ32: 801.58 | BA32: 500 | BB32: 267.19 | BC32: =SUM(مدنى!$BD32:$BE32) -> 2884.92 | BD32: =TRUNC(الجدول4[[#This Row],[اجر وظيفي 2021]]*7%,2) -> 188.73 | BE32: =SUM(الجدول4[[#This Row],[علاوة 2020]:[الاجر الوظيفي]]) -> 2696.19 | BF32: 176.38 | BG32: =SUM(الجدول4[[#This Row],[تشجيعية 2020]:[اجر وظيفي 2019]]) -> 2519.81 | BH32: 164.84 | BI32: 2354.97 | BK32: 190 | BL32: 141.63 | BM32: 2023.34 | BN32: 124.24 | BO32: 124.24 | BP32: 1774.86 | BQ32: 116.11 | BR32: 1658.75 | BS32: 78.98 | BT32: 1579.77 | BU32: 822.21 | BV32: 754.32469 | BW32: 692.041 | BX32: 634.9 | BY32: 582.48 | BZ32: 534.39 | CD32: 29.9 | CE32: 339.29 | CF32: 624.35 | CG32: 528.98 | CH32: 287.48 | CI32: 255.16 | CJ32: 4289.54 | CK32: 16.5 | CL32: 15.82 | CM32: 2.68 | CN32: 183 | CO32: 16.04 | CP32: 53.44 | CQ32: 4 | CR32: 2 | CS32: 1335.97 | CT32: 49.71 | CU32: 49.21 | CV32: 56.86 | CW32: 50.71 | CX32: 29.5 | CZ32: 0 | DG32: 2519.81 | DH32: نجلاء محمد سعد بدران
A33: اولى | B33: كفرسعد جزئي | D33: =IF(E33<>"",SUBTOTAL(3,$E$1:E32),"") -> 7 | E33: سونة محمد السيد الصياد | F33: =الجدول4[[#This Row],[الجملة]]-الجدول4[[#This Row],[الاستقطاعات]] -> 5902.57 | G33: =SUM(مدنى!$H33:$AI33) -> 1833.01 | H33: 40.2 | I33: 196.57 | J33: =TRUNC((الجدول4[[#This Row],[الجملة]]-SUM(Z33:AF33,H33:I33))*1%,2) -> 59.72 | W33: 10 | Z33: =مدنى!$AN33 -> 54.04 | AA33: =مدنى!$AN33 -> 54.04 | AB33: 486.32 | AC33: =مدنى!$AL33 -> 162.11 | AD33: =مدنى!$AM33 -> 67.55 | AE33: =مدنى!$AN33 -> 54.04 | AF33: =مدنى!$AO33 -> 648.42 | AJ33: 7735.58 | AL33: 162.11 | AM33: 67.55 | AN33: 54.04 | AO33: 648.42 | AP33: 3868.97 | AQ33: =IF(مدنى!$A33="مدير عام",350)+IF(مدنى!$A33="اولى",325)+IF(مدنى!$A33="ثانية",275)+IF(مدنى!$A33="ثالثة",225)+IF(مدنى!$A33="رابعة",175)+IF(مدنى!$A33="خامسة",175)+IF(مدنى!$A33="سادسة",175) -> 325 | AR33: 356.2 | AS33: 3187.77 | AT33: 255 | AW33: 300 | AX33: 150 | AY33: 1400 | AZ33: 819.58 | BA33: 500 | BB33: 273.19 | BC33: =SUM(مدنى!$BD33:$BE33) -> 2934.49 | BD33: =TRUNC(الجدول4[[#This Row],[اجر وظيفي 2021]]*7%,2) -> 191.97 | BE33: =SUM(الجدول4[[#This Row],[علاوة 2020]:[الاجر الوظيفي]]) -> 2742.52 | BF33: 179.41 | BG33: =SUM(الجدول4[[#This Row],[تشجيعية 2020]:[اجر وظيفي 2019]]) -> 2563.11 | BH33: 167.68 | BI33: 2395.43 | BK33: 190 | BL33: 144.28 | BM33: 2061.15 | BN33: 126.56 | BO33: 126.56 | BP33: 1808.03 | BQ33: 118.28 | BR33: 1689.75 | BS33: 80.46 | BT33: 1609.29 | BU33: 840.68 | BV33: 771.266996 | BW33: 707.5844 | BX33: 649.16 | BY33: 595.56 | BZ33: 546.39 | CD33: 30.3 | CE33: 354.23 | CF33: 641.31 | CG33: 537.53 | CH33: 296.98 | CI33: 256.78 | CJ33: 4343.06 | CK33: 16.8 | CL33: 23.4 | CM33: 2.74 | CN33: 183 | CO33: 16.4 | CP33: 54.64 | CQ33: 4 | CR33: 2 | CS33: 1365.97 | CT33: 50.84 | CU33: 50.34 | CV33: 58.12 | CW33: 51.97 | CX33: 30.24 | CZ33: 0 | DG33: 2563.11 | DH33: سونة محمد السيد الصياد
A34: ثانية | B34: كفرسعد جزئي | D34: =IF(E34<>"",SUBTOTAL(3,$E$1:E33),"") -> 7 | E34: نجلاء احمد عيد ابراهيم | F34: =الجدول4[[#This Row],[الجملة]]-الجدول4[[#This Row],[الاستقطاعات]] -> 4732.91 | G34: =SUM(مدنى!$H34:$AI34) -> 1264.81 | H34: 29.05 | I34: 49.27 | J34: =TRUNC((الجدول4[[#This Row],[الجملة]]-SUM(Z34:AF34,H34:I34))*1%,2) -> 48.11 | X34: 30.58 | Z34: =مدنى!$AN34 -> 39.22 | AA34: =مدنى!$AN34 -> 39.22 | AB34: 352.92 | AC34: =مدنى!$AL34 -> 117.64 | AD34: =مدنى!$AM34 -> 49.02 | AE34: =مدنى!$AN34 -> 39.22 | AF34: =مدنى!$AO34 -> 470.56 | AJ34: 5997.72 | AL34: 117.64 | AM34: 49.02 | AN34: 39.22 | AO34: 470.56 | AP34: 3193.79 | AQ34: =IF(مدنى!$A34="مدير عام",350)+IF(مدنى!$A34="اولى",325)+IF(مدنى!$A34="ثانية",275)+IF(مدنى!$A34="ثالثة",225)+IF(مدنى!$A34="رابعة",175)+IF(مدنى!$A34="خامسة",175)+IF(مدنى!$A34="سادسة",175) -> 275 | AR34: 249.18 | AS34: 2669.61 | AT34: 340 | AW34: 250 | AX34: 150 | AY34: 1400 | AZ34: 509.61 | BA34: 500 | BB34: 200 | BC34: =SUM(مدنى!$BD34:$BE34) -> 2127.49 | BD34: =TRUNC(الجدول4[[#This Row],[اجر وظيفي 2021]]*7%,2) -> 139.18 | BE34: =SUM(الجدول4[[#This Row],[علاوة 2020]:[الاجر الوظيفي]]) -> 1988.31 | BF34: 130.07 | BG34: =SUM(الجدول4[[#This Row],[تشجيعية 2020]:[اجر وظيفي 2019]]) -> 1858.24 | BH34: 121.56 | BI34: 1736.68 | BJ34: 82.69 | BK34: 190 | BL34: 95.77 | BM34: 1368.22 | BN34: 84.01 | BO34: 84.01 | BP34: 1200.2 | BQ34: 78.51 | BR34: 1121.69 | BS34: 53.41 | BT34: 1068.28 | BU34: 522.71 | BV34: 479.552803 | BW34: 439.9567 | BX34: 403.63 | BY34: 370.31 | BZ34: 339.74 | CD34: 23.1 | CE34: 207.6 | CF34: 435 | CG34: 385.8 | CH34: 216.2 | CI34: 204.3 | CJ34: 3333.89 | CK34: 11.9 | CM34: 1.7 | CN34: 158.42 | CO34: 10.2 | CP34: 33.98 | CQ34: 4 | CR34: 2 | CS34: 849.35 | CT34: 4.8 | CU34: 7.2 | CV34: 7.2 | CW34: 4.8 | CX34: 4.8 | CZ34: 0 | DG34: 1858.24 | DH34: نجلاء احمد عيد ابراهيم
A35: ثانية | B35: كفرسعد جزئي | D35: =IF(E35<>"",SUBTOTAL(3,$E$1:E34),"") -> 7 | E35: حماده سادات محمد مصطفى | F35: =الجدول4[[#This Row],[الجملة]]-الجدول4[[#This Row],[الاستقطاعات]] -> 4785.48 | G35: =SUM(مدنى!$H35:$AI35) -> 1287.41 | H35: 29.55 | I35: 55.17 | J35: =TRUNC((الجدول4[[#This Row],[الجملة]]-SUM(Z35:AF35,H35:I35))*1%,2) -> 48.62 | X35: 28.16 | Z35: =مدنى!$AN35 -> 39.86 | AA35: =مدنى!$AN35 -> 39.86 | AB35: 358.69 | AC35: =مدنى!$AL35 -> 119.57 | AD35: =مدنى!$AM35 -> 49.82 | AE35: =مدنى!$AN35 -> 39.86 | AF35: =مدنى!$AO35 -> 478.25 | AJ35: 6072.89 | AL35: 119.57 | AM35: 49.82 | AN35: 39.86 | AO35: 478.25 | AP35: 3154.03 | AQ35: =IF(مدنى!$A35="مدير عام",350)+IF(مدنى!$A35="اولى",325)+IF(مدنى!$A35="ثانية",275)+IF(مدنى!$A35="ثالثة",225)+IF(مدنى!$A35="رابعة",175)+IF(مدنى!$A35="خامسة",175)+IF(مدنى!$A35="سادسة",175) -> 275 | AR35: 249.71 | AS35: 2629.32 | AT35: 340 | AW35: 250 | AX35: 150 | AY35: 1400 | AZ35: 469.32 | BA35: 500 | BB35: 200 | BC35: =SUM(مدنى!$BD35:$BE35) -> 2231.36 | BD35: =TRUNC(الجدول4[[#This Row],[اجر وظيفي 2021]]*7%,2) -> 145.97 | BE35: =SUM(الجدول4[[#This Row],[علاوة 2020]:[الاجر الوظيفي]]) -> 2085.39 | BF35: 136.42 | BG35: =SUM(الجدول4[[#This Row],[تشجيعية 2020]:[اجر وظيفي 2019]]) -> 1948.97 | BH35: 127.5 | BI35: 1821.47 | BJ35: 86.73 | BK35: 190 | BL35: 101.05 | BM35: 1443.69 | BN35: 88.64 | BO35: 88.64 | BP35: 1266.41 | BQ35: 82.84 | BR35: 1183.57 | BS35: 56.17 | BT35: 1123.4 | BU35: 481.38 | BV35: 441.640532 | BW35: 405.1748 | BX35: 371.72 | BY35: 341.03 | BZ35: 312.88 | CD35: 23.25 | CE35: 210.25 | CF35: 438.74 | CG35: 392.1 | CH35: 216.59 | CI35: 205.24 | CJ35: 3352.72 | CK35: 11.35 | CM35: 1.57 | CN35: 162.99 | CO35: 9.39 | CP35: 31.29 | CQ35: 4 | CR35: 6 | CS35: 782.2 | CT35: 29.4 | CU35: 29 | CV35: 34.74 | CW35: 28.74 | CX35: 15.76 | CY35: 4 | DG35: 1948.97 | DH35: حماده سادات محمد مصطفى
A36: ثالثة | B36: كفرسعد جزئي | D36: =IF(E36<>"",SUBTOTAL(3,$E$1:E35),"") -> 7 | E36: خديجة ربيع حسن عبد الله | F36: =الجدول4[[#This Row],[الجملة]]-الجدول4[[#This Row],[الاستقطاعات]] -> 4278.6 | G36: =SUM(مدنى!$H36:$AI36) -> 1062.42 | H36: 24.85 | I36: 23.64 | J36: =TRUNC((الجدول4[[#This Row],[الجملة]]-SUM(Z36:AF36,H36:I36))*1%,2) -> 43.42 | X36: 20.93 | Z36: =مدنى!$AN36 -> 33.62 | AA36: =مدنى!$AN36 -> 33.62 | AB36: 302.51 | AC36: =مدنى!$AL36 -> 100.84 | AD36: =مدنى!$AM36 -> 42.02 | AE36: =مدنى!$AN36 -> 33.62 | AF36: =مدنى!$AO36 -> 403.35 | AJ36: 5341.02 | AL36: 100.84 | AM36: 42.02 | AN36: 33.62 | AO36: 403.35 | AP36: 2874.9 | AQ36: =IF(مدنى!$A36="مدير عام",350)+IF(مدنى!$A36="اولى",325)+IF(مدنى!$A36="ثانية",275)+IF(مدنى!$A36="ثالثة",225)+IF(مدنى!$A36="رابعة",175)+IF(مدنى!$A36="خامسة",175)+IF(مدنى!$A36="سادسة",175) -> 225 | AR36: 226.22 | AS36: 2423.68 | AT36: 340 | AW36: 200 | AX36: 150 | AY36: 1400 | AZ36: 348.72 | BA36: 464.96 | BB36: 200 | BC36: =SUM(مدنى!$BD36:$BE36) -> 1886.29 | BD36: =TRUNC(الجدول4[[#This Row],[اجر وظيفي 2021]]*7%,2) -> 123.4 | BE36: =SUM(الجدول4[[#This Row],[علاوة 2020]:[الاجر الوظيفي]]) -> 1762.89 | BF36: 115.32 | BG36: =SUM(الجدول4[[#This Row],[تشجيعية 2020]:[اجر وظيفي 2019]]) -> 1647.57 | BH36: 107.78 | BI36: 1539.79 | BJ36: 73.32 | BK36: 190 | BL36: 83.5 | BM36: 1192.97 | BN36: 73.25 | BO36: 73.25 | BP36: 1046.47 | BQ36: 68.46 | BR36: 978.01 | BS36: 46.57 | BT36: 931.44 | BU36: 357.68 | BV36: 328.15322 | BW36: 301.058 | BX36: 276.2 | BY36: 253.4 | BZ36: 232.48 | CD36: 20.9 | CE36: 167.16 | CF36: 355.33 | CG36: 331.42 | CH36: 176.62 | CI36: 167.27 | CJ36: 3001.12 | CK36: 9.35 | CM36: 1.17 | CN36: 135.87 | CO36: 6.98 | CP36: 23.25 | CQ36: 4 | CR36: 2 | CS36: 581.2 | CT36: 21.47 | CU36: 21.07 | CV36: 28.74 | CW36: 23.04 | CX36: 12.16 | CZ36: 0 | DG36: 1647.57 | DH36: خديجة ربيع حسن عبد الله
A37: اولى | D37: =IF(E37<>"",SUBTOTAL(3,$E$1:E36),"") -> 7 | E37: محمد احمد محمد السعيد | F37: =الجدول4[[#This Row],[الجملة]]-الجدول4[[#This Row],[الاستقطاعات]] -> 5239.28 | G37: =SUM(مدنى!$H37:$AI37) -> 1515.12 | H37: 33.9 | I37: 106.11 | J37: =TRUNC((الجدول4[[#This Row],[الجملة]]-SUM(Z37:AF37,H37:I37))*1%,2) -> 53.24 | X37: 31.77 | Z37: =مدنى!$AN37 -> 45.67 | AA37: =مدنى!$AN37 -> 45.67 | AB37: 411 | AC37: =مدنى!$AL37 -> 137 | AD37: =مدنى!$AM37 -> 57.09 | AE37: =مدنى!$AN37 -> 45.67 | AF37: =مدنى!$AO37 -> 548 | AJ37: 6754.4 | AL37: 137 | AM37: 57.09 | AN37: 45.67 | AO37: 548 | AP37: 3334.11 | AQ37: =IF(مدنى!$A37="مدير عام",350)+IF(مدنى!$A37="اولى",325)+IF(مدنى!$A37="ثانية",275)+IF(مدنى!$A37="ثالثة",225)+IF(مدنى!$A37="رابعة",175)+IF(مدنى!$A37="خامسة",175)+IF(مدنى!$A37="سادسة",175) -> 325 | AR37: 269.67 | AS37: 2739.44 | AT37: 340 | AW37: 300 | AX37: 150 | AY37: 1400 | AZ37: 529.44 | BA37: 500 | BB37: 200 | BC37: =SUM(مدنى!$BD37:$BE37) -> 2632.53 | BD37: =TRUNC(الجدول4[[#This Row],[اجر وظيفي 2021]]*7%,2) -> 172.22 | BE37: =SUM(الجدول4[[#This Row],[علاوة 2020]:[الاجر الوظيفي]]) -> 2460.31 | BF37: 160.95 | BG37: =SUM(الجدول4[[#This Row],[تشجيعية 2020]:[اجر وظيفي 2019]]) -> 2299.36 | BH37: 143.26 | BI37: 2046.61 | BJ37: 97.45 | BK37: 190 | BL37: 115.08 | BM37: 1644.08 | BN37: 100.95 | BO37: 100.95 | BP37: 1442.18 | BQ37: 89.85 | BR37: 1283.66 | BS37: 61.12 | BT37: 1222.54 | BU37: 543.06 | BV37: 498.2235569 | BW37: 457.085832 | BX37: 419.3448 | BY37: 384.72 | BZ37: 352.96 | CD37: 24.5 | CE37: 234.61 | CF37: 486.29 | CG37: 434.77 | CH37: 239.23 | CI37: 227.18 | CJ37: 3541.98 | CK37: 12.05 | CM37: 1.82 | CN37: 177.91 | CO37: 10.95 | CP37: 36.5 | CQ37: 4 | CR37: 6 | CS37: 912.4 | CT37: 35.94 | CU37: 35.04 | CV37: 37.14 | CW37: 31.14 | CX37: 17.36 | CZ37: 68.67 | DA37: 1373.51 | DF37: =TRUNC(الجدول4[[#This Row],[اجر وظيفي 2019]]*5%,2) -> 109.49 | DG37: 2189.87 | DH37: محمد احمد محمد السعيد
A38: ثالثة | B38: كفرسعد جزئي | D38: =IF(E38<>"",SUBTOTAL(3,$E$1:E37),"") -> 8 | E38: سمر حسن الانور يونس | F38: =الجدول4[[#This Row],[الجملة]]-الجدول4[[#This Row],[الاستقطاعات]] -> 4447.54 | G38: =SUM(مدنى!$H38:$AI38) -> 1142.37 | H38: 26.45 | I38: 28.27 | J38: =TRUNC((الجدول4[[#This Row],[الجملة]]-SUM(Z38:AF38,H38:I38))*1%,2) -> 45.25 | W38: 10 | X38: 22.86 | Z38: =مدنى!$AN38 -> 35.74 | AA38: =مدنى!$AN38 -> 35.74 | AB38: 321.62 | AC38: =مدنى!$AL38 -> 107.21 | AD38: =مدنى!$AM38 -> 44.67 | AE38: =مدنى!$AN38 -> 35.74 | AF38: =مدنى!$AO38 -> 428.82 | AJ38: 5589.91 | AL38: 107.21 | AM38: 44.67 | AN38: 35.74 | AO38: 428.82 | AP38: 2949.32 | AQ38: =IF(مدنى!$A38="مدير عام",350)+IF(مدنى!$A38="اولى",325)+IF(مدنى!$A38="ثانية",275)+IF(مدنى!$A38="ثالثة",225)+IF(مدنى!$A38="رابعة",175)+IF(مدنى!$A38="خامسة",175)+IF(مدنى!$A38="سادسة",175) -> 225 | AR38: 233.32 | AS38: 2491 | AT38: 340 | AW38: 200 | AX38: 150 | AY38: 1400 | AZ38: 381 | BA38: 500 | BB38: 200 | BC38: =SUM(مدنى!$BD38:$BE38) -> 2024.15 | BD38: =TRUNC(الجدول4[[#This Row],[اجر وظيفي 2021]]*7%,2) -> 132.42 | BE38: =SUM(الجدول4[[#This Row],[علاوة 2020]:[الاجر الوظيفي]]) -> 1891.73 | BF38: 123.75 | BG38: =SUM(الجدول4[[#This Row],[تشجيعية 2020]:[اجر وظيفي 2019]]) -> 1767.98 | BH38: 115.66 | BI38: 1652.32 | BJ38: 78.68 | BK38: 190 | BL38: 90.51 | BM38: 1293.13 | BN38: 79.4 | BO38: 79.4 | BP38: 1134.33 | BQ38: 70.67 | BR38: 1009.65 | BS38: 48.07 | BT38: 961.58 | BU38: 390.8 | BV38: 358.532937 | BW38: 328.9293 | BX38: 301.77 | BY38: 276.86 | BZ38: 254 | CD38: 21.55 | CE38: 187.47 | CF38: 386.57 | CG38: 353.77 | CH38: 187.6 | CI38: 177.55 | CJ38: 3096.58 | CK38: 10.05 | CM38: 1.27 | CN38: 143.26 | CO38: 7.62 | CP38: 25.4 | CQ38: 4 | CS38: 635 | CT38: 24.52 | CU38: 24.12 | CV38: 32.94 | CW38: 7.2 | CX38: 4.8 | CZ38: 54.01 | DA38: 1080.32 | DG38: 1767.98 | DH38: سمر حسن الانور يونس
A39: اولى | B39: كفرسعد جزئي | D39: =IF(E39<>"",SUBTOTAL(3,$E$1:E38),"") -> 8 | E39: عبير السعيد ابراهيم حمام | F39: =الجدول4[[#This Row],[الجملة]]-الجدول4[[#This Row],[الاستقطاعات]] -> 5894.01 | G39: =SUM(مدنى!$H39:$AI39) -> 1891.49 | H39: 40.5 | I39: 195.13 | J39: =TRUNC((الجدول4[[#This Row],[الجملة]]-SUM(Z39:AF39,H39:I39))*1%,2) -> 60.11 | W39: 10 | X39: 47.22 | Z39: =مدنى!$AN39 -> 54.46 | AA39: =مدنى!$AN39 -> 54.46 | AB39: 490.15 | AC39: =مدنى!$AL39 -> 163.39 | AD39: =مدنى!$AM39 -> 68.08 | AE39: =مدنى!$AN39 -> 54.46 | AF39: =مدنى!$AO39 -> 653.53 | AJ39: 7785.5 | AL39: 163.39 | AM39: 68.08 | AN39: 54.46 | AO39: 653.53 | AP39: 3769.24 | AQ39: =IF(مدنى!$A39="مدير عام",350)+IF(مدنى!$A39="اولى",325)+IF(مدنى!$A39="ثانية",275)+IF(مدنى!$A39="ثالثة",225)+IF(مدنى!$A39="رابعة",175)+IF(مدنى!$A39="خامسة",175)+IF(مدنى!$A39="سادسة",175) -> 325 | AR39: 344.95 | AS39: 3099.29 | AT39: 300 | AW39: 300 | AX39: 150 | AY39: 1400 | AZ39: 786.97 | BA39: 500 | BB39: 262.32 | BC39: =SUM(مدنى!$BD39:$BE39) -> 3076.8 | BD39: =TRUNC(الجدول4[[#This Row],[اجر وظيفي 2021]]*7%,2) -> 201.28 | BE39: =SUM(الجدول4[[#This Row],[علاوة 2020]:[الاجر الوظيفي]]) -> 2875.52 | BF39: 188.11 | BG39: =SUM(الجدول4[[#This Row],[تشجيعية 2020]:[اجر وظيفي 2019]]) -> 2687.41 | BH39: 175.81 | BI39: 2511.6 | BJ39: 119.6 | BK39: 190 | BL39: 144.05 | BM39: 2057.95 | BN39: 126.36 | BO39: 126.36 | BP39: 1805.23 | BQ39: 118.09 | BR39: 1687.14 | BS39: 80.1 | BT39: 1602.04 | BU39: 807.21 | BV39: 740.566492 | BW39: 679.4188 | BX39: 623.32 | BY39: 571.86 | BZ39: 524.65 | CD39: 29.6 | CE39: 333.34 | CF39: 616.78 | CG39: 541.18 | CH39: 283.7 | CI39: 253.84 | CJ39: 4247.33 | CK39: 16.3 | CL39: 13.56 | CM39: 2.63 | CN39: 183 | CO39: 15.74 | CP39: 52.47 | CQ39: 4 | CR39: 2 | CS39: 1311.62 | CT39: 49.34 | CU39: 48.84 | CV39: 56.55 | CW39: 49.65 | CX39: 28.36 | CY39: 5 | DG39: 2687.41 | DH39: عبير السعيد ابراهيم حمام
A40: ثانية | B40: كفرسعد جزئي | D40: =IF(E40<>"",SUBTOTAL(3,$E$1:E39),"") -> 8 | E40: محمد حسن حسن مصطفى شرة | F40: =الجدول4[[#This Row],[الجملة]]-الجدول4[[#This Row],[الاستقطاعات]] -> 4957.99 | G40: =SUM(مدنى!$H40:$AI40) -> 1390.5 | H40: 31.3 | I40: 75.66 | J40: =TRUNC((الجدول4[[#This Row],[الجملة]]-SUM(Z40:AF40,H40:I40))*1%,2) -> 50.49 | W40: 10 | X40: 30.74 | Z40: =مدنى!$AN40 -> 42.21 | AA40: =مدنى!$AN40 -> 42.21 | AB40: 379.84 | AC40: =مدنى!$AL40 -> 126.62 | AD40: =مدنى!$AM40 -> 52.76 | AE40: =مدنى!$AN40 -> 42.21 | AF40: =مدنى!$AO40 -> 506.46 | AJ40: 6348.49 | AL40: 126.62 | AM40: 52.76 | AN40: 42.21 | AO40: 506.46 | AP40: 3249.18 | AQ40: =IF(مدنى!$A40="مدير عام",350)+IF(مدنى!$A40="اولى",325)+IF(مدنى!$A40="ثانية",275)+IF(مدنى!$A40="ثالثة",225)+IF(مدنى!$A40="رابعة",175)+IF(مدنى!$A40="خامسة",175)+IF(مدنى!$A40="سادسة",175) -> 275 | AR40: 261.84 | AS40: 2712.34 | AT40: 300 | AW40: 250 | AX40: 150 | AY40: 1400 | AZ40: 512.34 | BA40: 500 | BB40: 200 | BC40: =SUM(مدنى!$BD40:$BE40) -> 2371.26 | BD40: =TRUNC(الجدول4[[#This Row],[اجر وظيفي 2021]]*7%,2) -> 155.12 | BE40: =SUM(الجدول4[[#This Row],[علاوة 2020]:[الاجر الوظيفي]]) -> 2216.14 | BF40: 144.98 | BG40: =SUM(الجدول4[[#This Row],[تشجيعية 2020]:[اجر وظيفي 2019]]) -> 2071.16 | BH40: 135.49 | BI40: 1935.67 | BJ40: 92.17 | BK40: 190 | BL40: 108.17 | BM40: 1545.33 | BN40: 94.88 | BO40: 94.88 | BP40: 1355.57 | BQ40: 84.45 | BR40: 1206.57 | BS40: 57.45 | BT40: 1149.12 | BU40: 525.52 | BV40: 482.13098 | BW40: 442.322 | BX40: 405.8 | BY40: 372.3 | BZ40: 341.56 | CD40: 24 | CE40: 224.28 | CF40: 465.39 | CG40: 416.95 | CH40: 229.01 | CI40: 217.11 | CJ40: 3461.46 | CK40: 11.9 | CM40: 1.71 | CN40: 170.99 | CO40: 10.25 | CP40: 34.16 | CQ40: 4 | CR40: 6 | CS40: 853.9 | CT40: 31.68 | CU40: 31.28 | CV40: 36.54 | CW40: 29.94 | CX40: 16.56 | CZ40: 64.55 | DA40: 1291.02 | DG40: 2071.16 | DH40: محمد حسن حسن مصطفى شرة
A41: ثالثة | B41: كفرسعد جزئي | D41: =IF(E41<>"",SUBTOTAL(3,$E$1:E40),"") -> 8 | E41: نورا حمدى كامل عبد الطيف | F41: =الجدول4[[#This Row],[الجملة]]-الجدول4[[#This Row],[الاستقطاعات]] -> 4476.99 | G41: =SUM(مدنى!$H41:$AI41) -> 1153.23 | H41: =CEILING((((BC41+AP41-1450))*0.75%),0.05) -> 26.7 | I41: 29.03 | J41: =TRUNC((الجدول4[[#This Row],[الجملة]]-SUM(Z41:AF41,H41:I41))*1%,2) -> 45.55 | W41: 10 | X41: 22.71 | Z41: =مدنى!$AN41 -> 36.08 | AA41: =مدنى!$AN41 -> 36.08 | AB41: 324.71 | AC41: =مدنى!$AL41 -> 108.24 | AD41: =مدنى!$AM41 -> 45.1 | AE41: =مدنى!$AN41 -> 36.08 | AF41: =مدنى!$AO41 -> 432.95 | AJ41: 5630.22 | AL41: 108.24 | AM41: 45.1 | AN41: 36.08 | AO41: 432.95 | AP41: 2947.83 | AQ41: =IF(مدنى!$A41="مدير عام",350)+IF(مدنى!$A41="اولى",325)+IF(مدنى!$A41="ثانية",275)+IF(مدنى!$A41="ثالثة",225)+IF(مدنى!$A41="رابعة",175)+IF(مدنى!$A41="خامسة",175)+IF(مدنى!$A41="سادسة",175) -> 225 | AR41: 234.35 | AS41: 2488.48 | AT41: 340 | AW41: 200 | AX41: 150 | AY41: 1400 | AZ41: 378.48 | BA41: 500 | BB41: 200 | BC41: =SUM(مدنى!$BD41:$BE41) -> 2060.02 | BD41: =TRUNC(الجدول4[[#This Row],[اجر وظيفي 2021]]*7%,2) -> 134.76 | BE41: =SUM(الجدول4[[#This Row],[علاوة 2020]:[الاجر الوظيفي]]) -> 1925.26 | BF41: 125.95 | BG41: =SUM(الجدول4[[#This Row],[تشجيعية 2020]:[اجر وظيفي 2019]]) -> 1799.31 | BH41: 117.71 | BI41: 1681.6 | BJ41: 80.07 | BK41: 190 | BL41: 92.34 | BM41: 1319.19 | BN41: 77.14 | BO41: 77.14 | BP41: 1102.1 | BQ41: 72.1 | BR41: 1030 | BS41: 49.04 | BT41: 980.96 | BU41: 388.21 | BV41: 356.156737 | BW41: 326.7493 | BX41: 299.77 | BY41: 275.02 | BZ41: 252.32 | CD41: 21.65 | CE41: 189.17 | CF41: 390.22 | CG41: 357.29 | CH41: 189.5 | CI41: 179.4 | CJ41: 3115.44 | CK41: 10.1 | CM41: 1.27 | CN41: 145.32 | CO41: 7.57 | CP41: 25.24 | CQ41: 4 | CR41: 2 | CS41: 630.8 | CT41: 23.53 | CU41: 23.13 | CV41: 31.26 | CW41: 24.96 | CX41: 13.44 | CZ41: 62.81 | DA41: 1256.38 | DG41: 1799.31 | DH41: نورا حمدى كامل عبد الطيف
A42: رابعة | B42: كفرسعد جزئي | D42: =IF(E42<>"",SUBTOTAL(3,$E$1:E41),"") -> 8 | E42: عمرو عنتر محمد المنسى | F42: =الجدول4[[#This Row],[الجملة]]-الجدول4[[#This Row],[الاستقطاعات]] -> 4010.27 | G42: =SUM(مدنى!$H42:$AI42) -> 972.67 | H42: 22.55 | I42: 16.95 | J42: =TRUNC((الجدول4[[#This Row],[الجملة]]-SUM(Z42:AF42,H42:I42))*1%,2) -> 40.8 | W42: 10 | X42: 19.08 | Z42: =مدنى!$AN42 -> 30.56 | AA42: =مدنى!$AN42 -> 30.56 | AB42: 275.03 | AC42: =مدنى!$AL42 -> 91.68 | AD42: =مدنى!$AM42 -> 38.2 | AE42: =مدنى!$AN42 -> 30.56 | AF42: =مدنى!$AO42 -> 366.7 | AJ42: 4982.94 | AL42: 91.68 | AM42: 38.2 | AN42: 30.56 | AO42: 366.7 | AP42: 2648.37 | AQ42: =IF(مدنى!$A42="مدير عام",350)+IF(مدنى!$A42="اولى",325)+IF(مدنى!$A42="ثانية",275)+IF(مدنى!$A42="ثالثة",225)+IF(مدنى!$A42="رابعة",175)+IF(مدنى!$A42="خامسة",175)+IF(مدنى!$A42="سادسة",175) -> 175 | AR42: 216.37 | AS42: 2257 | AT42: 385 | AW42: 150 | AX42: 150 | AY42: 1400 | AZ42: 318 | BA42: 424 | BB42: 200 | BC42: =SUM(مدنى!$BD42:$BE42) -> 1807.43 | BD42: =TRUNC(الجدول4[[#This Row],[اجر وظيفي 2021]]*7%,2) -> 118.24 | BE42: =SUM(الجدول4[[#This Row],[علاوة 2020]:[الاجر الوظيفي]]) -> 1689.19 | BF42: 110.5 | BG42: =SUM(الجدول4[[#This Row],[تشجيعية 2020]:[اجر وظيفي 2019]]) -> 1578.69 | BH42: 103.27 | BI42: 1475.42 | BK42: 200 | BL42: 83.43 | BM42: 1191.99 | BN42: 73.19 | BO42: 73.19 | BP42: 1045.61 | BQ42: 68.4 | BR42: 977.21 | BS42: 46.53 | BT42: 930.68 | BU42: 326.18 | BV42: 299.2553013 | BW42: 274.546148 | BX42: 251.8772 | BY42: 231.08 | BZ42: 212 | CD42: 20.15 | CE42: 169.33 | CF42: 344.67 | CG42: 303.89 | CH42: 163.79 | CI42: 155.19 | CJ42: 2887.68 | CK42: 8.6 | CM42: 1.06 | CN42: 126.57 | CO42: 6.36 | CP42: 21.2 | CQ42: 4 | CR42: 6 | CS42: 530 | CT42: 20.34 | CU42: 20.19 | CV42: 27.63 | CW42: 22 | CX42: 11.52 | CZ42: 0 | DG42: 1578.69 | DH42: عمرو عنتر محمد المنسى
A43: ثانية | B43: كفرسعد جزئي | D43: =IF(E43<>"",SUBTOTAL(3,$E$1:E42),"") -> 8 | E43: مظهر يحيى محمد عبد المحسن بركة | F43: =الجدول4[[#This Row],[الجملة]]-الجدول4[[#This Row],[الاستقطاعات]] -> 4375.78 | G43: =SUM(مدنى!$H43:$AI43) -> 1469.92 | H43: 28.1 | I43: 38.37 | J43: =TRUNC((الجدول4[[#This Row],[الجملة]]-SUM(Z43:AF43,H43:I43))*1%,2) -> 47.08 | M43: 250 | W43: 10 | X43: 25.21 | Z43: =مدنى!$AN43 -> 37.92 | AA43: =مدنى!$AN43 -> 37.92 | AB43: 341.25 | AC43: =مدنى!$AL43 -> 113.75 | AD43: =مدنى!$AM43 -> 47.4 | AE43: =مدنى!$AN43 -> 37.92 | AF43: =مدنى!$AO43 -> 455 | AJ43: =SUM(AK43:AP43,BC43) -> 5845.7 | AL43: 113.75 | AM43: 47.4 | AN43: 37.92 | AO43: 455 | AP43: =SUM(AQ43:AS43) -> 3096.99 | AQ43: =IF(مدنى!$A43="مدير عام",350)+IF(مدنى!$A43="اولى",325)+IF(مدنى!$A43="ثانية",275)+IF(مدنى!$A43="ثالثة",225)+IF(مدنى!$A43="رابعة",175)+IF(مدنى!$A43="خامسة",175)+IF(مدنى!$A43="سادسة",175) -> 275 | AR43: 241.87 | AS43: 2580.12 | AT43: 340 | AW43: 250 | AX43: 150 | AY43: 1400 | AZ43: 420.12 | BA43: 500 | BB43: 200 | BC43: =SUM(مدنى!$BD43:$BE43) -> 2094.64 | BD43: =TRUNC(الجدول4[[#This Row],[اجر وظيفي 2021]]*7%,2) -> 137.03 | BE43: =SUM(الجدول4[[#This Row],[علاوة 2020]:[الاجر الوظيفي]]) -> 1957.61 | BF43: 128.06 | BG43: =SUM(الجدول4[[#This Row],[تشجيعية 2020]:[اجر وظيفي 2019]]) -> 1829.55 | BH43: 119.69 | BI43: 1709.86 | BJ43: 81.42 | BK43: 190 | BL43: 94.1 | BM43: 1344.34 | BN43: 82.54 | BO43: 82.54 | BP43: 1179.26 | BQ43: 77.14 | BR43: 1102.12 | BS43: 52.48 | BT43: 1049.64 | BU43: 430.93 | BV43: 395.3557773 | BW43: 362.7117223 | BX43: 332.763048 | BY43: 305.2872 | BZ43: 280.08 | CD43: 22.45 | CE43: 199.04 | CF43: 413.28 | CG43: 371.77 | CH43: 202.49 | CI43: 191.79 | CJ43: 3229.76 | CK43: 10.7 | CM43: 1.4 | CN43: 153.97 | CO43: 8.41 | CP43: 28.01 | CQ43: 4 | CR43: 6 | CS43: 700.2 | CT43: 26.12 | CU43: 25.72 | CV43: 34.14 | CW43: 28.14 | CX43: 15.36 | CZ43: 0 | DG43: 1829.55 | DH43: مظهر يحيى محمد عبد المحسن بركة
A44: رابعة | B44: كفرسعد جزئي | D44: =IF(E44<>"",SUBTOTAL(3,$E$1:E43),"") -> 8 | E44: رضا مصطفى عبد اللطيف درغام | F44: =الجدول4[[#This Row],[الجملة]]-الجدول4[[#This Row],[الاستقطاعات]] -> 4409.38 | G44: =SUM(مدنى!$H44:$AI44) -> 1136.85 | H44: 26.15 | I44: 27.28 | J44: =TRUNC((الجدول4[[#This Row],[الجملة]]-SUM(Z44:AF44,H44:I44))*1%,2) -> 44.93 | W44: 10 | Z44: =مدنى!$AN44 -> 35.37 | AA44: =مدنى!$AN44 -> 35.37 | AB44: 318.26 | AC44: =مدنى!$AL44 -> 106.09 | AD44: =مدنى!$AM44 -> 44.21 | AE44: =مدنى!$AN44 -> 35.37 | AF44: =مدنى!$AO44 -> 424.35 | AI44: 29.47 | AJ44: 5546.23 | AL44: 106.09 | AM44: 44.21 | AN44: 35.37 | AO44: 424.35 | AP44: 2803.8 | AQ44: =IF(مدنى!$A44="مدير عام",350)+IF(مدنى!$A44="اولى",325)+IF(مدنى!$A44="ثانية",275)+IF(مدنى!$A44="ثالثة",225)+IF(مدنى!$A44="رابعة",175)+IF(مدنى!$A44="خامسة",175)+IF(مدنى!$A44="سادسة",175) -> 175 | AR44: 234.2 | AS44: 2394.6 | AT44: 400 | AW44: 150 | AX44: 150 | AY44: 1400 | AZ44: 394.6 | BA44: 500 | BB44: 200 | BC44: =SUM(مدنى!$BD44:$BE44) -> 2132.41 | BD44: =TRUNC(الجدول4[[#This Row],[اجر وظيفي 2021]]*7%,2) -> 139.5 | BE44: =SUM(الجدول4[[#This Row],[علاوة 2020]:[الاجر الوظيفي]]) -> 1992.91 | BF44: 130.37 | BG44: =SUM(الجدول4[[#This Row],[تشجيعية 2020]:[اجر وظيفي 2019]]) -> 1862.54 | BH44: 121.84 | BI44: 1740.7 | BJ44: 82.89 | BK44: 200 | BL44: 95.37 | BM44: 1362.44 | BN44: 83.65 | BO44: 83.65 | BP44: 1195.14 | BQ44: 78.18 | BR44: 1116.96 | BS44: 53.09 | BT44: 1061.87 | BU44: 404.74 | BV44: 371.328774 | BW44: 340.6686 | BX44: 312.54 | BY44: 286.74 | BZ44: 263.07 | CD44: 21.95 | CE44: 191.94 | CF44: 397.56 | CG44: 354.4 | CH44: 193.92 | CI44: 183.67 | CJ44: 3154.47 | CK44: 10.25 | CM44: 1.32 | CN44: 148.14 | CO44: 7.9 | CP44: 26.31 | CQ44: 4 | CR44: 4 | CS44: 657.67 | CT44: 24.86 | CU44: 24.71 | CV44: 29.56 | CW44: 23.94 | CX44: 12.66 | CY44: 2 | DG44: 1862.54 | DH44: رضا مصطفى عبد اللطيف درغام
A45: ثالثة | B45: كفرسعد جزئي | D45: =IF(E45<>"",SUBTOTAL(3,$E$1:E44),"") -> 8 | E45: ابراهيم محمد السعيد عقرب | F45: =الجدول4[[#This Row],[الجملة]]-الجدول4[[#This Row],[الاستقطاعات]] -> 4564.05 | G45: =SUM(مدنى!$H45:$AI45) -> 1188.58 | H45: 27.5 | I45: 31.44 | J45: =TRUNC((الجدول4[[#This Row],[الجملة]]-SUM(Z45:AF45,H45:I45))*1%,2) -> 46.44 | W45: 10 | X45: 24.45 | Z45: =مدنى!$AN45 -> 37.13 | AA45: =مدنى!$AN45 -> 37.13 | AB45: 334.11 | AC45: =مدنى!$AL45 -> 111.37 | AD45: =مدنى!$AM45 -> 46.41 | AE45: =مدنى!$AN45 -> 37.13 | AF45: =مدنى!$AO45 -> 445.47 | AJ45: 5752.63 | AL45: 111.37 | AM45: 46.41 | AN45: 37.13 | AO45: 445.47 | AP45: 2981.65 | AQ45: =IF(مدنى!$A45="مدير عام",350)+IF(مدنى!$A45="اولى",325)+IF(مدنى!$A45="ثانية",275)+IF(مدنى!$A45="ثالثة",225)+IF(مدنى!$A45="رابعة",175)+IF(مدنى!$A45="خامسة",175)+IF(مدنى!$A45="سادسة",175) -> 225 | AR45: 239.24 | AS45: 2517.41 | AT45: 340 | AW45: 200 | AX45: 150 | AY45: 1400 | AZ45: 407.41 | BA45: 500 | BB45: 200 | BC45: =SUM(مدنى!$BD45:$BE45) -> 2130.6 | BD45: =TRUNC(الجدول4[[#This Row],[اجر وظيفي 2021]]*7%,2) -> 139.38 | BE45: =SUM(الجدول4[[#This Row],[علاوة 2020]:[الاجر الوظيفي]]) -> 1991.22 | BF45: 130.26 | BG45: =SUM(الجدول4[[#This Row],[تشجيعية 2020]:[اجر وظيفي 2019]]) -> 1860.96 | BH45: 121.74 | BI45: 1739.22 | BJ45: 82.82 | BK45: 190 | BL45: 95.93 | BM45: 1370.47 | BN45: 80.14 | BO45: 80.14 | BP45: 1144.93 | BQ45: 74.9 | BR45: 1070.03 | BS45: 50.95 | BT45: 1019.08 | BU45: 417.89 | BV45: 383.387989 | BW45: 351.7321 | BX45: 322.69 | BY45: 296.05 | BZ45: 271.61 | CD45: 22.15 | CE45: 195.28 | CF45: 404.6 | CG45: 368.27 | CH45: 197.57 | CI45: 187.17 | CJ45: 3186.49 | CK45: 10.4 | CM45: 1.36 | CN45: 150.49 | CO45: 8.15 | CP45: 27.17 | CQ45: 4 | CR45: 6 | CS45: 679.02 | CT45: 25.56 | CU45: 24.76 | CV45: 29.34 | CW45: 23.64 | CX45: 12.56 | CZ45: 65.26 | DA45: 1305.21 | DG45: 1860.96 | DH45: ابراهيم محمد السعيد عقرب
A46: ثالثة | B46: كفرسعد جزئي | D46: =IF(E46<>"",SUBTOTAL(3,$E$1:E45),"") -> 8 | E46: حسن محمد حسن سليمان | F46: =الجدول4[[#This Row],[الجملة]]-الجدول4[[#This Row],[الاستقطاعات]] -> 4251.3 | G46: =SUM(مدنى!$H46:$AI46) -> 1067.86 | H46: 24.7 | I46: 23.19 | J46: =TRUNC((الجدول4[[#This Row],[الجملة]]-SUM(Z46:AF46,H46:I46))*1%,2) -> 43.26 | W46: 10 | X46: 22.41 | Z46: =مدنى!$AN46 -> 33.43 | AA46: =مدنى!$AN46 -> 33.43 | AB46: 300.83 | AC46: =مدنى!$AL46 -> 100.28 | AD46: =مدنى!$AM46 -> 41.79 | AE46: =مدنى!$AN46 -> 33.43 | AF46: =مدنى!$AO46 -> 401.11 | AJ46: 5319.16 | AL46: 100.28 | AM46: 41.79 | AN46: 33.43 | AO46: 401.11 | AP46: 2934.96 | AQ46: =IF(مدنى!$A46="مدير عام",350)+IF(مدنى!$A46="اولى",325)+IF(مدنى!$A46="ثانية",275)+IF(مدنى!$A46="ثالثة",225)+IF(مدنى!$A46="رابعة",175)+IF(مدنى!$A46="خامسة",175)+IF(مدنى!$A46="سادسة",175) -> 225 | AR46: 228.46 | AS46: 2481.5 | AT46: 340 | AW46: 200 | AX46: 150 | AY46: 1400 | AZ46: 373.5 | BA46: 498 | BB46: 200 | BC46: =SUM(مدنى!$BD46:$BE46) -> 1807.59 | BD46: =TRUNC(الجدول4[[#This Row],[اجر وظيفي 2021]]*7%,2) -> 118.25 | BE46: =SUM(الجدول4[[#This Row],[علاوة 2020]:[الاجر الوظيفي]]) -> 1689.34 | BF46: 110.51 | BG46: =SUM(الجدول4[[#This Row],[تشجيعية 2020]:[اجر وظيفي 2019]]) -> 1578.83 | BH46: 103.28 | BI46: 1475.55 | BJ46: 70.26 | BK46: 190 | BL46: 79.5 | BM46: 1135.79 | BN46: 69.74 | BO46: 69.74 | BP46: 996.31 | BQ46: 65.17 | BR46: 931.14 | BS46: 44.34 | BT46: 886.8 | BU46: 383.11 | BV46: 351.4838209 | BW46: 322.462221 | BX46: 295.8369 | BY46: 271.41 | BZ46: 249 | CD46: 21 | CE46: 180.36 | CF46: 370.71 | CG46: 329.94 | CH46: 179.25 | CI46: 169.35 | CJ46: 3016.3 | CK46: 9.9 | CM46: 1.25 | CN46: 135.73 | CO46: 7.47 | CP46: 24.9 | CQ46: 4 | CR46: 4 | CS46: 622.5 | CT46: 4.8 | CU46: 4.8 | CV46: 7.2 | CW46: 7.2 | CX46: 4.8 | CZ46: 0 | DG46: 1578.83 | DH46: حسن محمد حسن سليمان
A47: اولى | B47: كفرسعد جزئي | D47: =IF(E47<>"",SUBTOTAL(3,$E$1:E46),"") -> 8 | E47: هشام محمد ابو العنين عيسي | F47: =الجدول4[[#This Row],[الجملة]]-الجدول4[[#This Row],[الاستقطاعات]] -> 5068.73 | G47: =SUM(مدنى!$H47:$AI47) -> 1867.56 | H47: =CEILING((((BC47+AP47-1450))*0.75%),0.05) -> 35.05 | I47: 102.31 | J47: =TRUNC((الجدول4[[#This Row],[الجملة]]-SUM(Z47:AF47,H47:I47))*1%,2) -> 54.65 | M47: 125 | W47: 10 | X47: 37.6 | Y47: 169.02 | Z47: =مدنى!$AN47 -> 47.22 | AA47: =مدنى!$AN47 -> 47.22 | AB47: 424.96 | AC47: =مدنى!$AL47 -> 141.66 | AD47: =مدنى!$AM47 -> 59.03 | AE47: =مدنى!$AN47 -> 47.22 | AF47: =مدنى!$AO47 -> 566.62 | AJ47: =SUM(AK47:AP47,BC47) -> 6936.29 | AL47: 141.66 | AM47: 59.03 | AN47: 47.22 | AO47: 566.62 | AP47: =SUM(AQ47:AS47) -> 3507.53 | AQ47: =IF(مدنى!$A47="مدير عام",350)+IF(مدنى!$A47="اولى",325)+IF(مدنى!$A47="ثانية",275)+IF(مدنى!$A47="ثالثة",225)+IF(مدنى!$A47="رابعة",175)+IF(مدنى!$A47="خامسة",175)+IF(مدنى!$A47="سادسة",175) -> 325 | AR47: 296.97 | AS47: =SUM(AU47:BB47)-AT47 -> 2885.56 | AT47: 300 | AW47: 300 | AX47: 150 | AY47: 1400 | AZ47: 626.67 | BA47: 500 | BB47: 208.89 | BC47: =SUM(مدنى!$BD47:$BE47) -> 2614.23 | BD47: =TRUNC(الجدول4[[#This Row],[اجر وظيفي 2021]]*7%,2) -> 171.02 | BE47: =SUM(الجدول4[[#This Row],[علاوة 2020]:[الاجر الوظيفي]]) -> 2443.21 | BF47: =TRUNC(BG47*7%,2) -> 159.83 | BG47: =SUM(الجدول4[[#This Row],[تشجيعية 2020]:[اجر وظيفي 2019]]) -> 2283.38 | BH47: 149.38 | BI47: 2134 | BJ47: 101.61 | BK47: 190 | BL47: 120.53 | BM47: 1721.86 | BN47: 105.72 | BO47: 105.72 | BP47: 1510.42 | BQ47: 98.81 | BR47: 1411.61 | BS47: 66.98 | BT47: 1339.63 | BU47: 642.8 | BV47: 589.730565 | BW47: 541.0372156 | BX47: 496.364418 | BY47: 455.3802 | BZ47: 417.78 | CD47: 26.15 | CE47: 241.29 | CF47: 506.85 | CG47: 464.84 | CH47: 253.11 | CI47: 239.41 | CJ47: 3775.19 | CK47: 13.7 | CM47: 2.09 | CN47: 183 | CO47: 12.54 | CP47: 41.78 | CQ47: 4 | CR47: 6 | CS47: 1044.45 | CT47: 39.25 | CU47: 38.75 | CV47: 45.12 | CW47: 38.97 | CX47: 21.98 | CY47: 5 | CZ47: 0 | DG47: 2283.38 | DH47: هشام محمد ابو العنين عيسي
A48: اولى | B48: كفرسعد جزئي | D48: =IF(E48<>"",SUBTOTAL(3,$E$1:E47),"") -> 8 | E48: اسماء احمد محمد صالح | F48: =الجدول4[[#This Row],[الجملة]]-الجدول4[[#This Row],[الاستقطاعات]] -> 5817.07 | G48: =SUM(مدنى!$H48:$AI48) -> 2520.16 | H48: 44 | I48: 226.35 | J48: =TRUNC((الجدول4[[#This Row],[الجملة]]-SUM(Z48:AF48,H48:I48))*1%,2) -> 63.95 | M48: 250 | W48: 10 | X48: 54.39 | Y48: 200 | Z48: =مدنى!$AN48 -> 59.17 | AA48: =مدنى!$AN48 -> 59.17 | AB48: 532.5 | AC48: =مدنى!$AL48 -> 177.5 | AD48: =مدنى!$AM48 -> 73.96 | AE48: =مدنى!$AN48 -> 59.17 | AF48: =مدنى!$AO48 -> 710 | AJ48: 8337.23 | AL48: 177.5 | AM48: 73.96 | AN48: 59.17 | AO48: 710 | AP48: 4003.38 | AQ48: =IF(مدنى!$A48="مدير عام",350)+IF(مدنى!$A48="اولى",325)+IF(مدنى!$A48="ثانية",275)+IF(مدنى!$A48="ثالثة",225)+IF(مدنى!$A48="رابعة",175)+IF(مدنى!$A48="خامسة",175)+IF(مدنى!$A48="سادسة",175) -> 325 | AR48: 374.85 | AS48: 3303.53 | AT48: 255 | AW48: 300 | AX48: 150 | AY48: 1400 | AZ48: 906.4 | BA48: 500 | BB48: 302.13 | BC48: =SUM(مدنى!$BD48:$BE48) -> 3313.22 | BD48: =TRUNC(الجدول4[[#This Row],[اجر وظيفي 2021]]*7%,2) -> 216.75 | BE48: =SUM(الجدول4[[#This Row],[علاوة 2020]:[الاجر الوظيفي]]) -> 3096.47 | BF48: 202.57 | BG48: =SUM(الجدول4[[#This Row],[تشجيعية 2020]:[اجر وظيفي 2019]]) -> 2893.9 | BH48: 189.32 | BI48: 2704.58 | BK48: 190 | BL48: 164.5 | BM48: 2350.08 | BN48: 130 | BO48: 137.91 | BP48: 1970.27 | BQ48: 128.89 | BR48: 1841.38 | BS48: 87.68 | BT48: 1753.7 | BU48: 929.74 | BV48: 852.9764195 | BW48: 782.5471738 | BX48: 717.933187 | BY48: 658.6543 | BZ48: 604.27 | CD48: 32.2 | CE48: 353.64 | CF48: 650.43 | CG48: 591.24 | CH48: 316.72 | CI48: 264.59 | CJ48: 4603.23 | CK48: 18.3 | CL48: 33.83 | CM48: 3.03 | CN48: 183 | CO48: 18.13 | CP48: 60.43 | CQ48: 4 | CR48: 2 | CS48: 1510.67 | CT48: 56.84 | CU48: 56.34 | CV48: 65.04 | CW48: 58.14 | CX48: 33.8 | CZ48: 111.9 | DA48: 2238.18 | DG48: 2893.9 | DH48: اسماء احمد محمد صالح
A49: اولى | B49: كفرسعد جزئي | D49: =IF(E49<>"",SUBTOTAL(3,$E$1:E48),"") -> 8 | E49: امل عبد السلام عبد السلام بدر | F49: =الجدول4[[#This Row],[الجملة]]-الجدول4[[#This Row],[الاستقطاعات]] -> 5299.69 | G49: =SUM(مدنى!$H49:$AI49) -> 1576.36 | H49: 34.7 | I49: 114.02 | J49: =TRUNC((الجدول4[[#This Row],[الجملة]]-SUM(Z49:AF49,H49:I49))*1%,2) -> 54.07 | W49: 10 | X49: 36.99 | Z49: =مدنى!$AN49 -> 46.71 | AA49: =مدنى!$AN49 -> 46.71 | AB49: 420.34 | AC49: =مدنى!$AL49 -> 140.12 | AD49: =مدنى!$AM49 -> 58.38 | AE49: =مدنى!$AN49 -> 46.71 | AF49: =مدنى!$AO49 -> 560.45 | AI49: 7.16 | AJ49: 6876.05 | AL49: 140.12 | AM49: 58.38 | AN49: 46.71 | AO49: 560.45 | AP49: 3488.31 | AQ49: =IF(مدنى!$A49="مدير عام",350)+IF(مدنى!$A49="اولى",325)+IF(مدنى!$A49="ثانية",275)+IF(مدنى!$A49="ثالثة",225)+IF(مدنى!$A49="رابعة",175)+IF(مدنى!$A49="خامسة",175)+IF(مدنى!$A49="سادسة",175) -> 325 | AR49: 291.31 | AS49: 2872 | AT49: 300 | AW49: 300 | AX49: 150 | AY49: 1400 | AZ49: 616.5 | BA49: 500 | BB49: 205.5 | BC49: =SUM(مدنى!$BD49:$BE49) -> 2582.08 | BD49: =TRUNC(الجدول4[[#This Row],[اجر وظيفي 2021]]*7%,2) -> 168.92 | BE49: =SUM(الجدول4[[#This Row],[علاوة 2020]:[الاجر الوظيفي]]) -> 2413.16 | BF49: 157.87 | BG49: =SUM(الجدول4[[#This Row],[تشجيعية 2020]:[اجر وظيفي 2019]]) -> 2255.29 | BH49: 147.54 | BI49: 2107.75 | BJ49: 100.36 | BK49: 190 | BL49: 118.89 | BM49: 1698.5 | BN49: 104.29 | BO49: 104.29 | BP49: 1489.92 | BQ49: 97.47 | BR49: 1392.45 | BS49: 66.06 | BT49: 1321.39 | BU49: 632.37 | BV49: 580.1600417 | BW49: 532.256919 | BX49: 488.3091 | BY49: 447.99 | BZ49: 411 | CD49: 25.9 | CE49: 260.46 | CF49: 524.85 | CG49: 459.43 | CH49: 252.14 | CI49: 238.49 | CJ49: 3739.39 | CK49: 13.65 | CM49: 2.06 | CN49: 183 | CO49: 12.33 | CP49: 41.1 | CQ49: 4 | CR49: 2 | CS49: 1027.5 | CT49: 38.64 | CU49: 37.64 | CV49: 44.01 | CW49: 37.86 | CX49: 21.24 | CY49: 5 | DG49: 2255.29 | DH49: امل عبد السلام عبد السلام بدر
A50: اولى | B50: كفرسعد جزئي | D50: =IF(E50<>"",SUBTOTAL(3,$E$1:E49),"") -> 8 | E50: ملكة عبد السلام عبد اللطيف درغام | F50: =الجدول4[[#This Row],[الجملة]]-الجدول4[[#This Row],[الاستقطاعات]] -> 5027.4 | G50: =SUM(مدنى!$H50:$AI50) -> 2041.48 | H50: 35.9 | I50: 111.71 | J50: =TRUNC((الجدول4[[#This Row],[الجملة]]-SUM(Z50:AF50,H50:I50))*1%,2) -> 55.55 | M50: 250 | W50: 10 | X50: 39.09 | Y50: 173.36 | Z50: =مدنى!$AN50 -> 48.35 | AA50: =مدنى!$AN50 -> 48.35 | AB50: 435.14 | AC50: =مدنى!$AL50 -> 145.05 | AD50: =مدنى!$AM50 -> 60.44 | AE50: =مدنى!$AN50 -> 48.35 | AF50: =مدنى!$AO50 -> 580.19 | AJ50: 7068.88 | AL50: 145.05 | AM50: 60.44 | AN50: 48.35 | AO50: 580.19 | AP50: 3548.96 | AQ50: =IF(مدنى!$A50="مدير عام",350)+IF(مدنى!$A50="اولى",325)+IF(مدنى!$A50="ثانية",275)+IF(مدنى!$A50="ثالثة",225)+IF(مدنى!$A50="رابعة",175)+IF(مدنى!$A50="خامسة",175)+IF(مدنى!$A50="سادسة",175) -> 325 | AR50: 305.32 | AS50: 2918.64 | AT50: 300 | AW50: 300 | AX50: 150 | AY50: 1400 | AZ50: 651.48 | BA50: 500 | BB50: 217.16 | BC50: =SUM(مدنى!$BD50:$BE50) -> 2685.89 | BD50: =TRUNC(الجدول4[[#This Row],[اجر وظيفي 2021]]*7%,2) -> 175.71 | BE50: =SUM(الجدول4[[#This Row],[علاوة 2020]:[الاجر الوظيفي]]) -> 2510.18 | BF50: 164.21 | BG50: =SUM(الجدول4[[#This Row],[تشجيعية 2020]:[اجر وظيفي 2019]]) -> 2345.97 | BH50: 153.47 | BI50: 2192.5 | BJ50: 104.4 | BK50: 190 | BL50: 124.17 | BM50: 1773.93 | BN50: 108.92 | BO50: 108.92 | BP50: 1556.09 | BQ50: 101.8 | BR50: 1454.29 | BS50: 69.01 | BT50: 1380.28 | BU50: 668.25 | BV50: 613.0781249 | BW50: 562.4569953 | BX50: 516.015592 | BY50: 473.4088 | BZ50: 434.32 | CD50: 26.65 | CE50: 250.46 | CF50: 518.76 | CG50: 476.78 | CH50: 255.75 | CI50: 241.65 | CJ50: 3844.92 | CK50: 14.1 | CM50: 2.18 | CN50: 183 | CO50: 13.03 | CP50: 43.44 | CQ50: 4 | CR50: 2 | CS50: 1085.8 | CT50: 40.8 | CU50: 40.3 | CV50: 46.82 | CW50: 40.67 | CX50: 23.05 | CY50: 5 | DG50: 2345.97 | DH50: ملكة عبد السلام عبد اللطيف درغام
A51: اولى | D51: =IF(E51<>"",SUBTOTAL(3,$E$1:E50),"") -> 8 | E51: حازم عطا عبد الحافظ ا براهيم | F51: =الجدول4[[#This Row],[الجملة]]-الجدول4[[#This Row],[الاستقطاعات]] -> 4958.79 | G51: =SUM(مدنى!$H51:$AI51) -> 1580.82 | H51: 32.55 | I51: 74.8 | J51: =TRUNC((الجدول4[[#This Row],[الجملة]]-SUM(Z51:AF51,H51:I51))*1%,2) -> 51.93 | X51: 31.48 | Y51: 151.7 | Z51: =مدنى!$AN51 -> 43.84 | AA51: =مدنى!$AN51 -> 43.84 | AB51: 394.51 | AC51: =مدنى!$AL51 -> 131.51 | AD51: =مدنى!$AM51 -> 54.8 | AE51: =مدنى!$AN51 -> 43.84 | AF51: =مدنى!$AO51 -> 526.02 | AJ51: 6539.61 | AL51: 131.51 | AM51: 54.8 | AN51: 43.84 | AO51: 526.02 | AP51: 3364.47 | AQ51: =IF(مدنى!$A51="مدير عام",350)+IF(مدنى!$A51="اولى",325)+IF(مدنى!$A51="ثانية",275)+IF(مدنى!$A51="ثالثة",225)+IF(مدنى!$A51="رابعة",175)+IF(مدنى!$A51="خامسة",175)+IF(مدنى!$A51="سادسة",175) -> 325 | AR51: 264.83 | AS51: 2774.64 | AT51: 300 | AW51: 300 | AX51: 150 | AY51: 1400 | AZ51: 524.64 | BA51: 500 | BB51: 200 | BC51: =SUM(مدنى!$BD51:$BE51) -> 2418.97 | BD51: =TRUNC(الجدول4[[#This Row],[اجر وظيفي 2021]]*7%,2) -> 158.25 | BE51: =SUM(الجدول4[[#This Row],[علاوة 2020]:[الاجر الوظيفي]]) -> 2260.72 | BF51: 147.89 | BG51: =SUM(الجدول4[[#This Row],[تشجيعية 2020]:[اجر وظيفي 2019]]) -> 2112.83 | BH51: 131.64 | BI51: 1880.58 | BJ51: 89.55 | BK51: 190 | BL51: 104.74 | BM51: 1496.29 | BN51: 91.87 | BO51: 91.87 | BP51: 1312.55 | BQ51: 85.86 | BR51: 1226.69 | BS51: 58.41 | BT51: 1168.28 | BU51: 538.14 | BV51: 493.7147839 | BW51: 452.949343 | BX51: 415.549856 | BY51: 381.2384 | BZ51: 349.76 | CD51: 24.2 | CE51: 206.32 | CF51: 450.87 | CG51: 417.19 | CH51: 232.5 | CI51: 220.35 | CJ51: 3490.92 | CK51: 12.15 | CM51: 1.75 | CN51: 173.12 | CO51: 10.5 | CP51: 34.98 | CQ51: 4 | CR51: 4 | CS51: 874.4 | CT51: 32.86 | CU51: 31.86 | CV51: 36.54 | CW51: 30.54 | CX51: 16.96 | CZ51: 0 | DF51: =TRUNC(الجدول4[[#This Row],[اجر وظيفي 2019]]*5%,2) -> 100.61 | DG51: 2012.22 | DH51: حازم عطا عبد الحافظ ا براهيم
A52: ثانية | B52: كفرسعد جزئي | D52: =IF(E52<>"",SUBTOTAL(3,$E$1:E51),"") -> 9 | E52: محمد فخرى عبده على الدين | F52: =الجدول4[[#This Row],[الجملة]]-الجدول4[[#This Row],[الاستقطاعات]] -> 4709.48 | G52: =SUM(مدنى!$H52:$AI52) -> 1462.53 | H52: 30.15 | I52: 47.93 | J52: =TRUNC((الجدول4[[#This Row],[الجملة]]-SUM(Z52:AF52,H52:I52))*1%,2) -> 49.44 | W52: 10 | X52: 29.43 | Y52: 145.8 | Z52: =مدنى!$AN52 -> 40.7 | AA52: =مدنى!$AN52 -> 40.7 | AB52: 366.3 | AC52: =مدنى!$AL52 -> 122.1 | AD52: =مدنى!$AM52 -> 50.88 | AE52: =مدنى!$AN52 -> 40.7 | AF52: =مدنى!$AO52 -> 488.4 | AJ52: 6172.01 | AL52: 122.1 | AM52: 50.88 | AN52: 40.7 | AO52: 488.4 | AP52: 3179.62 | AQ52: =IF(مدنى!$A52="مدير عام",350)+IF(مدنى!$A52="اولى",325)+IF(مدنى!$A52="ثانية",275)+IF(مدنى!$A52="ثالثة",225)+IF(مدنى!$A52="رابعة",175)+IF(مدنى!$A52="خامسة",175)+IF(مدنى!$A52="سادسة",175) -> 275 | AR52: 254.18 | AS52: 2650.44 | AT52: 340 | AW52: 250 | AX52: 150 | AY52: 1400 | AZ52: 490.44 | BA52: 500 | BB52: 200 | BC52: =SUM(مدنى!$BD52:$BE52) -> 2290.31 | BD52: =TRUNC(الجدول4[[#This Row],[اجر وظيفي 2021]]*7%,2) -> 149.83 | BE52: =SUM(الجدول4[[#This Row],[علاوة 2020]:[الاجر الوظيفي]]) -> 2140.48 | BF52: 140.03 | BG52: =SUM(الجدول4[[#This Row],[تشجيعية 2020]:[اجر وظيفي 2019]]) -> 2000.45 | BH52: 130.87 | BI52: 1869.58 | BJ52: 89.02 | BK52: 190 | BL52: 104.05 | BM52: 1486.51 | BN52: 91.27 | BO52: 91.27 | BP52: 1303.97 | BQ52: 85.3 | BR52: 1218.67 | BS52: 57.79 | BT52: 1155.88 | BU52: 503.06 | BV52: 461.5307232 | BW52: 423.4226818 | BX52: 388.461176 | BY52: 356.3864 | BZ52: 326.96 | CD52: 23.6 | CE52: 199.64 | CF52: 434.33 | CG52: 400.98 | CH52: 222.69 | CI52: 211.09 | CJ52: 3406.32 | CK52: 11.6 | CM52: 1.64 | CN52: 166.94 | CO52: 9.81 | CP52: 32.7 | CQ52: 4 | CR52: 6 | CS52: 817.4 | CT52: 30.76 | CU52: 30.36 | CV52: 35.34 | CW52: 29.34 | CX52: 16.16 | CY52: 5 | DG52: 2000.45 | DH52: محمد فخرى عبده على الدين
A53: ثالثة | B53: كفرسعد جزئي | D53: =IF(E53<>"",SUBTOTAL(3,$E$1:E52),"") -> 9 | E53: سحر احمد ابراهيم المرسي | F53: =الجدول4[[#This Row],[الجملة]]-الجدول4[[#This Row],[الاستقطاعات]] -> 3203.37 | G53: =SUM(مدنى!$H53:$AI53) -> 1244.09 | H53: 17.8 | I53: 0 | J53: =TRUNC((الجدول4[[#This Row],[الجملة]]-SUM(Z53:AF53,H53:I53))*1%,2) -> 34.03 | W53: 10 | X53: 24.94 | Y53: 130.99 | Z53: =مدنى!$AN53 -> 36.33 | AA53: =مدنى!$AN53 -> 36.33 | AB53: 326.97 | AC53: =مدنى!$AL53 -> 108.99 | AD53: =مدنى!$AM53 -> 45.42 | AE53: =مدنى!$AN53 -> 36.33 | AF53: =مدنى!$AO53 -> 435.96 | AJ53: 4447.46 | AL53: 108.99 | AM53: 45.42 | AN53: 36.33 | AO53: 435.96 | AP53: 2084.7 | AQ53: =IF(مدنى!$A53="مدير عام",350)+IF(مدنى!$A53="اولى",325)+IF(مدنى!$A53="ثانية",275)+IF(مدنى!$A53="ثالثة",225)+IF(مدنى!$A53="رابعة",175)+IF(مدنى!$A53="خامسة",175)+IF(مدنى!$A53="سادسة",175) -> 225 | AR53: 249.7 | AS53: 1610 | AT53: 340 | AW53: 200 | AX53: 150 | AY53: 1400 | BB53: 200 | BC53: =SUM(مدنى!$BD53:$BE53) -> 1736.06 | BD53: =TRUNC(الجدول4[[#This Row],[اجر وظيفي 2021]]*7%,2) -> 113.57 | BE53: =SUM(الجدول4[[#This Row],[علاوة 2020]:[الاجر الوظيفي]])-الجدول4[[#This Row],[اجر اساسي]] -> 1622.49 | BF53: 124.27 | BG53: =SUM(الجدول4[[#This Row],[تشجيعية 2020]:[اجر وظيفي 2019]]) -> 1775.33 | BH53: 116.14 | BI53: 1659.19 | BJ53: 79 | BK53: 190 | BL53: 90.94 | BM53: 1299.25 | BN53: 79.77 | BO53: 79.77 | BP53: 1139.71 | BQ53: 74.56 | BR53: 1065.15 | BS53: 50.72 | BT53: 1014.43 | BU53: 426.36 | BV53: 391.1633799 | BW53: 358.8654862 | BX53: 329.234391 | BY53: 302.0499 | BZ53: 277.11 | CD53: 22.15 | CE53: 182.07 | CF53: 391.54 | CG53: 360.25 | CH53: 187.32555 | CI53: 187.32555 | CJ53: 3186.09 | CM53: 1.38555 | CN53: 149.9 | CO53: 8.32 | CP53: 27.72 | CQ53: 4 | CR53: 2 | CS53: 692.77 | CT53: 23.94 | CU53: 12.76 | CV53: 12.18 | CW53: 34.8 | CX53: 16.53 | CZ53: 0 | DG53: 1775.33 | DH53: سحر احمد ابراهيم المرسي
A54: اولى | B54: كفرسعد جزئي | D54: =IF(E54<>"",SUBTOTAL(3,$E$1:E53),"") -> 9 | E54: صلاح الدين رزق احمد رزق الزيات | F54: =الجدول4[[#This Row],[الجملة]]-الجدول4[[#This Row],[الاستقطاعات]] -> 5016.52 | G54: =SUM(مدنى!$H54:$AI54) -> 1636.31 | H54: 33.25 | I54: 96.28 | J54: =TRUNC((الجدول4[[#This Row],[الجملة]]-SUM(Z54:AF54,H54:I54))*1%,2) -> 52.57 | M54: 125 | W54: 10 | X54: 32.87 | Z54: =مدنى!$AN54 -> 44.8 | AA54: =مدنى!$AN54 -> 44.8 | AB54: 403.21 | AC54: =مدنى!$AL54 -> 134.4 | AD54: =مدنى!$AM54 -> 56 | AE54: =مدنى!$AN54 -> 44.8 | AF54: =مدنى!$AO54 -> 537.61 | AI54: 20.72 | AJ54: 6652.83 | AL54: 134.4 | AM54: 56 | AN54: 44.8 | AO54: 537.61 | AP54: 3390.7 | AQ54: =IF(مدنى!$A54="مدير عام",350)+IF(مدنى!$A54="اولى",325)+IF(مدنى!$A54="ثانية",275)+IF(مدنى!$A54="ثالثة",225)+IF(مدنى!$A54="رابعة",175)+IF(مدنى!$A54="خامسة",175)+IF(مدنى!$A54="سادسة",175) -> 325 | AR54: 267.89 | AS54: 2797.81 | AT54: 300 | AW54: 300 | AX54: 150 | AY54: 1400 | AZ54: 547.81 | BA54: 500 | BB54: 200 | BC54: =SUM(مدنى!$BD54:$BE54) -> 2489.32 | BD54: =TRUNC(الجدول4[[#This Row],[اجر وظيفي 2021]]*7%,2) -> 162.85 | BE54: =SUM(الجدول4[[#This Row],[علاوة 2020]:[الاجر الوظيفي]]) -> 2326.47 | BF54: 152.19 | BG54: =SUM(الجدول4[[#This Row],[تشجيعية 2020]:[اجر وظيفي 2019]]) -> 2174.28 | BH54: 142.24 | BI54: 2032.04 | BJ54: 96.76 | BK54: 190 | BL54: 114.17 | BM54: 1631.11 | BN54: 95.38 | BO54: 95.38 | BP54: 1362.68 | BQ54: 89.14 | BR54: 1273.54 | BS54: 60.4 | BT54: 1208.14 | BU54: 561.92 | BV54: 515.5237198 | BW54: 472.9575411 | BX54: 433.906001 | BY54: 398.0789 | BZ54: 365.21 | CD54: 24.6 | CE54: 232.85 | CF54: 484.45 | CG54: 439.16 | CH54: 239.55 | CI54: 227 | CJ54: 3551.95 | CK54: 12.55 | CM54: 1.83 | CN54: 177.68 | CO54: 10.96 | CP54: 36.53 | CQ54: 4 | CR54: 2 | CS54: 913.02 | CT54: 34.34 | CU54: 33.84 | CV54: 39.39 | CW54: 32.49 | CX54: 17.66 | CY54: 5 | CZ54: 77.67 | DA54: 1553.44 | DG54: 2174.28 | DH54: صلاح الدين رزق احمد رزق الزيات
A55: ثالثة | B55: بنوك | D55: =IF(E55<>"",SUBTOTAL(3,$E$1:E54),"") -> 9 | E55: محمد السيد على هاشم | F55: =الجدول4[[#This Row],[الجملة]]-الجدول4[[#This Row],[الاستقطاعات]] -> 4091.62 | G55: =SUM(مدنى!$H55:$AI55) -> 1003.17 | H55: 23.3 | I55: 19.05 | J55: =TRUNC((الجدول4[[#This Row],[الجملة]]-SUM(Z55:AF55,H55:I55))*1%,2) -> 41.62 | W55: 10 | X55: 18.95 | Z55: =مدنى!$AN55 -> 31.52 | AA55: =مدنى!$AN55 -> 31.52 | AB55: 283.61 | AC55: =مدنى!$AL55 -> 94.54 | AD55: =مدنى!$AM55 -> 39.39 | AE55: =مدنى!$AN55 -> 31.52 | AF55: =مدنى!$AO55 -> 378.15 | AJ55: 5094.79 | AL55: 94.54 | AM55: 39.39 | AN55: 31.52 | AO55: 378.15 | AP55: 2738.96 | AQ55: =IF(مدنى!$A55="مدير عام",350)+IF(مدنى!$A55="اولى",325)+IF(مدنى!$A55="ثانية",275)+IF(مدنى!$A55="ثالثة",225)+IF(مدنى!$A55="رابعة",175)+IF(مدنى!$A55="خامسة",175)+IF(مدنى!$A55="سادسة",175) -> 225 | AR55: 212.21 | AS55: 2301.75 | AT55: 385 | AW55: 200 | AX55: 150 | AY55: 1400 | AZ55: 315.75 | BA55: 421 | BB55: 200 | BC55: =SUM(مدنى!$BD55:$BE55) -> 1812.23 | BD55: =TRUNC(الجدول4[[#This Row],[اجر وظيفي 2021]]*7%,2) -> 118.55 | BE55: =SUM(الجدول4[[#This Row],[علاوة 2020]:[الاجر الوظيفي]]) -> 1693.68 | BF55: 110.8 | BG55: =SUM(الجدول4[[#This Row],[تشجيعية 2020]:[اجر وظيفي 2019]]) -> 1582.88 | BH55: 103.55 | BI55: 1479.33 | BJ55: 70.44 | BK55: 200 | BL55: 79.08 | BM55: 1129.81 | BN55: 69.37 | BO55: 69.37 | BP55: 991.07 | BQ55: 64.83 | BR55: 926.24 | BS55: 44.1 | BT55: 882.14 | BU55: 323.87 | BV55: 297.13 | BW55: 272.6 | BX55: 250.09505 | BY55: 229.445 | BZ55: 210.5 | CD55: 19.75 | CE55: 164.01 | CF55: 332.93 | CG55: 308.85 | CH55: 157.72 | CI55: 149.17 | CJ55: 2827.89 | CK55: 8.55 | CM55: 1.06 | CN55: 120.74 | CO55: 6.32 | CP55: 21.05 | CQ55: 4 | CS55: 526.25 | CT55: 20.47 | CU55: 20.47 | CV55: 5.7 | CW55: 5.7 | CX55: 3.8 | CZ55: 0 | DG55: 1582.88 | DH55: محمد السيد على هاشم
A56: ثالثة | B56: كفرسعد جزئي | D56: =IF(E56<>"",SUBTOTAL(3,$E$1:E55),"") -> 9 | E56: هشام مصطفى طاهر ابو النور | F56: =الجدول4[[#This Row],[الجملة]]-الجدول4[[#This Row],[الاستقطاعات]] -> 4243.05 | G56: =SUM(مدنى!$H56:$AI56) -> 1237.46 | H56: 25.75 | I56: 26.21 | J56: =TRUNC((الجدول4[[#This Row],[الجملة]]-SUM(Z56:AF56,H56:I56))*1%,2) -> 44.45 | M56: 125 | W56: 10 | X56: 22.86 | Z56: =مدنى!$AN56 -> 34.81 | AA56: =مدنى!$AN56 -> 34.81 | AB56: 313.22 | AC56: =مدنى!$AL56 -> 104.41 | AD56: =مدنى!$AM56 -> 43.51 | AE56: =مدنى!$AN56 -> 34.81 | AF56: =مدنى!$AO56 -> 417.62 | AJ56: 5480.51 | AL56: 104.41 | AM56: 43.51 | AN56: 34.81 | AO56: 417.62 | AP56: 2940.77 | AQ56: =IF(مدنى!$A56="مدير عام",350)+IF(مدنى!$A56="اولى",325)+IF(مدنى!$A56="ثانية",275)+IF(مدنى!$A56="ثالثة",225)+IF(مدنى!$A56="رابعة",175)+IF(مدنى!$A56="خامسة",175)+IF(مدنى!$A56="سادسة",175) -> 225 | AR56: 224.77 | AS56: 2491 | AT56: 340 | AW56: 200 | AX56: 150 | AY56: 1400 | AZ56: 381 | BA56: 500 | BB56: 200 | BC56: =SUM(مدنى!$BD56:$BE56) -> 1939.39 | BD56: =TRUNC(الجدول4[[#This Row],[اجر وظيفي 2021]]*7%,2) -> 126.87 | BE56: =SUM(الجدول4[[#This Row],[علاوة 2020]:[الاجر الوظيفي]]) -> 1812.52 | BF56: 118.57 | BG56: =SUM(الجدول4[[#This Row],[تشجيعية 2020]:[اجر وظيفي 2019]]) -> 1693.95 | BH56: 110.81 | BI56: 1583.14 | BJ56: 75.38 | BK56: 190 | BL56: 86.2 | BM56: 1231.56 | BN56: 75.62 | BO56: 75.62 | BP56: 1080.32 | BQ56: 70.67 | BR56: 1009.65 | BS56: 48.07 | BT56: 961.58 | BU56: 390.81 | BV56: 358.5417289 | BW56: 328.937366 | BX56: 301.7774 | BY56: 276.86 | BZ56: 254 | CD56: 21.55 | CE56: 187.47 | CF56: 386.57 | CG56: 344.13 | CH56: 196.15 | CI56: 177.55 | CJ56: 3096.58 | CK56: 18.6 | CM56: 1.27 | CN56: 143.26 | CO56: 7.62 | CP56: 25.4 | CQ56: 4 | CS56: 635 | CT56: 24.52 | CU56: 24.12 | CV56: 32.94 | CW56: 7.2 | CX56: 4.8 | CZ56: 0 | DG56: 1693.95 | DH56: هشام مصطفى طاهر ابو النور
A57: اولى | B57: كفرسعد جزئي | D57: =IF(E57<>"",SUBTOTAL(3,$E$1:E56),"") -> 9 | E57: صفاء عبد الحميد محمد مطر | F57: =الجدول4[[#This Row],[الجملة]]-الجدول4[[#This Row],[الاستقطاعات]] -> 5777.75 | G57: =SUM(مدنى!$H57:$AI57) -> 1863.31 | H57: 39.55 | I57: 172.7 | J57: =TRUNC((الجدول4[[#This Row],[الجملة]]-SUM(Z57:AF57,H57:I57))*1%,2) -> 59.25 | Z57: =مدنى!$AN57 -> 53.23 | AA57: =مدنى!$AN57 -> 53.23 | AB57: 479.06 | AC57: =مدنى!$AL57 -> 159.69 | AD57: =مدنى!$AM57 -> 66.54 | AE57: =مدنى!$AN57 -> 53.23 | AF57: =مدنى!$AO57 -> 638.75 | AG57: 88.08 | AJ57: 7641.06 | AL57: 159.69 | AM57: 66.54 | AN57: 53.23 | AO57: 638.75 | AP57: 3837.15 | AQ57: =IF(مدنى!$A57="مدير عام",350)+IF(مدنى!$A57="اولى",325)+IF(مدنى!$A57="ثانية",275)+IF(مدنى!$A57="ثالثة",225)+IF(مدنى!$A57="رابعة",175)+IF(مدنى!$A57="خامسة",175)+IF(مدنى!$A57="سادسة",175) -> 325 | AR57: 347.91 | AS57: 3164.24 | AT57: 255 | AW57: 300 | AX57: 150 | AY57: 1400 | AZ57: 801.93 | BA57: 500 | BB57: 267.31 | BC57: =SUM(مدنى!$BD57:$BE57) -> 2885.7 | BD57: =TRUNC(الجدول4[[#This Row],[اجر وظيفي 2021]]*7%,2) -> 188.78 | BE57: =SUM(الجدول4[[#This Row],[علاوة 2020]:[الاجر الوظيفي]]) -> 2696.92 | BF57: 176.43 | BG57: =SUM(الجدول4[[#This Row],[تشجيعية 2020]:[اجر وظيفي 2019]]) -> 2520.49 | BH57: 164.89 | BI57: 2355.6 | BK57: 190 | BL57: 141.67 | BM57: 2023.93 | BN57: 124.27 | BO57: 124.27 | BP57: 1775.39 | BQ57: 116.14 | BR57: 1659.25 | BS57: 79.01 | BT57: 1580.24 | BU57: 822.56 | BV57: 754.645477 | BW57: 692.3353 | BX57: 635.17 | BY57: 582.73 | BZ57: 534.62 | CD57: 29.9 | CE57: 333.43 | CF57: 618.52 | CG57: 529 | CH57: 282.62 | CI57: 255.19 | CJ57: 4290.48 | CK57: 16.45 | CL57: 10.98 | CM57: 2.68 | CN57: 183 | CO57: 16.04 | CP57: 53.47 | CQ57: 4 | CR57: 2 | CS57: 1336.55 | CT57: 49.71 | CU57: 49.21 | CV57: 56.71 | CW57: 50.56 | CX57: 29.81 | DG57: 2520.49 | DH57: صفاء عبد الحميد محمد مطر
A58: رابعة | B58: كفرسعد جزئي | D58: =IF(E58<>"",SUBTOTAL(3,$E$1:E57),"") -> 9 | E58: السيد توفيق عباس الدمرداش | F58: =الجدول4[[#This Row],[الجملة]]-الجدول4[[#This Row],[الاستقطاعات]] -> 3866.09 | G58: =SUM(مدنى!$H58:$AI58) -> 920.4 | H58: 21.3 | I58: 13.21 | J58: =TRUNC((الجدول4[[#This Row],[الجملة]]-SUM(Z58:AF58,H58:I58))*1%,2) -> 39.36 | W58: 10 | X58: 18.3 | Z58: =مدنى!$AN58 -> 28.89 | AA58: =مدنى!$AN58 -> 28.89 | AB58: 259.95 | AC58: =مدنى!$AL58 -> 86.65 | AD58: =مدنى!$AM58 -> 36.11 | AE58: =مدنى!$AN58 -> 28.89 | AF58: =مدنى!$AO58 -> 346.59 | AI58: 2.26 | AJ58: 4786.49 | AL58: 86.65 | AM58: 36.11 | AN58: 28.89 | AO58: 346.59 | AP58: 2593.05 | AQ58: =IF(مدنى!$A58="مدير عام",350)+IF(مدنى!$A58="اولى",325)+IF(مدنى!$A58="ثانية",275)+IF(مدنى!$A58="ثالثة",225)+IF(مدنى!$A58="رابعة",175)+IF(مدنى!$A58="خامسة",175)+IF(مدنى!$A58="سادسة",175) -> 175 | AR58: 206.68 | AS58: 2211.37 | AT58: 400 | AW58: 150 | AX58: 150 | AY58: 1400 | AZ58: 304.87 | BA58: 406.5 | BB58: 200 | BC58: =SUM(مدنى!$BD58:$BE58) -> 1695.2 | BD58: =TRUNC(الجدول4[[#This Row],[اجر وظيفي 2021]]*7%,2) -> 110.9 | BE58: =SUM(الجدول4[[#This Row],[علاوة 2020]:[الاجر الوظيفي]]) -> 1584.3 | BF58: 103.64 | BG58: =SUM(الجدول4[[#This Row],[تشجيعية 2020]:[اجر وظيفي 2019]]) -> 1480.66 | BH58: 96.86 | BI58: 1383.8 | BK58: 200 | BL58: 77.44 | BM58: 1106.36 | BN58: 67.93 | BO58: 67.93 | BP58: 970.5 | BQ58: 63.49 | BR58: 907.01 | BS58: 43.191 | BT58: 863.82 | BU58: 312.71 | BV58: 286.890507 | BW58: 263.2023 | BX58: 241.47 | BY58: 221.54 | BZ58: 203.25 | CD58: 19.35 | CE58: 158.63 | CF58: 321.03 | CG58: 286.28 | CH58: 151.35 | CI58: 143.05 | CJ58: 2769.19 | CK58: 8.3 | CM58: 1.02 | CN58: 115.6 | CO58: 6.1 | CP58: 20.33 | CQ58: 4 | CS58: 508.12 | CT58: 19.82 | CU58: 3.5 | CV58: 5.25 | CW58: 5.25 | CX58: 3.5 | CZ58: 1.5 | DG58: 1480.66 | DH58: السيد توفيق عباس الدمرداش
A59: ثالثة | B59: كفرسعد جزئي | D59: =IF(E59<>"",SUBTOTAL(3,$E$1:E58),"") -> 9 | E59: عمرو محمود عبد المنعم عوض سلامة | F59: =الجدول4[[#This Row],[الجملة]]-الجدول4[[#This Row],[الاستقطاعات]] -> 4268.6 | G59: =SUM(مدنى!$H59:$AI59) -> 1072.42 | H59: 24.85 | I59: 23.64 | J59: =TRUNC((الجدول4[[#This Row],[الجملة]]-SUM(Z59:AF59,H59:I59))*1%,2) -> 43.42 | W59: 10 | X59: 20.93 | Z59: =مدنى!$AN59 -> 33.62 | AA59: =مدنى!$AN59 -> 33.62 | AB59: 302.51 | AC59: =مدنى!$AL59 -> 100.84 | AD59: =مدنى!$AM59 -> 42.02 | AE59: =مدنى!$AN59 -> 33.62 | AF59: =مدنى!$AO59 -> 403.35 | AJ59: 5341.02 | AL59: 100.84 | AM59: 42.02 | AN59: 33.62 | AO59: 403.35 | AP59: 2874.9 | AQ59: =IF(مدنى!$A59="مدير عام",350)+IF(مدنى!$A59="اولى",325)+IF(مدنى!$A59="ثانية",275)+IF(مدنى!$A59="ثالثة",225)+IF(مدنى!$A59="رابعة",175)+IF(مدنى!$A59="خامسة",175)+IF(مدنى!$A59="سادسة",175) -> 225 | AR59: 226.22 | AS59: 2423.68 | AT59: 340 | AW59: 200 | AX59: 150 | AY59: 1400 | AZ59: 348.72 | BA59: 464.96 | BB59: 200 | BC59: =SUM(مدنى!$BD59:$BE59) -> 1886.29 | BD59: =TRUNC(الجدول4[[#This Row],[اجر وظيفي 2021]]*7%,2) -> 123.4 | BE59: =SUM(الجدول4[[#This Row],[علاوة 2020]:[الاجر الوظيفي]]) -> 1762.89 | BF59: 115.32 | BG59: =SUM(الجدول4[[#This Row],[تشجيعية 2020]:[اجر وظيفي 2019]]) -> 1647.57 | BH59: 107.78 | BI59: 1539.79 | BJ59: 73.32 | BK59: 190 | BL59: 83.5 | BM59: 1192.97 | BN59: 73.25 | BO59: 73.25 | BP59: 1046.47 | BQ59: 68.46 | BR59: 978.01 | BS59: 46.57 | BT59: 931.44 | BU59: 357.69 | BV59: 328.1644927 | BW59: 301.0683419 | BX59: 276.209488 | BY59: 253.4032 | BZ59: 232.48 | CD59: 20.9 | CE59: 179.21 | CF59: 367.38 | CG59: 331.42 | CH59: 176.62 | CI59: 167.27 | CJ59: 3001.12 | CK59: 9.35 | CL59: 0 | CM59: 1.17 | CN59: 135.87 | CO59: 6.98 | CP59: 23.25 | CQ59: 4 | CR59: 2 | CS59: 581.2 | CT59: 21.47 | CU59: 21.07 | CV59: 28.74 | CW59: 23.04 | CX59: 12.16 | CZ59: 0 | DG59: 1647.57 | DH59: عمرو محمود عبد المنعم عوض سلامة
A60: ثالثة | D60: =IF(E60<>"",SUBTOTAL(3,$E$1:E59),"") -> 9 | E60: ايمان محمد عبد الغفار جازية | F60: =الجدول4[[#This Row],[الجملة]]-الجدول4[[#This Row],[الاستقطاعات]] -> 4220.96 | G60: =SUM(مدنى!$H60:$AI60) -> 1203.74 | H60: 25.4 | I60: 22.18 | J60: =TRUNC((الجدول4[[#This Row],[الجملة]]-SUM(Z60:AF60,H60:I60))*1%,2) -> 44.07 | X60: 22.41 | Y60: 119.95 | Z60: =مدنى!$AN60 -> 34.33 | AA60: =مدنى!$AN60 -> 34.33 | AB60: 308.94 | AC60: =مدنى!$AL60 -> 102.98 | AD60: =مدنى!$AM60 -> 42.91 | AE60: =مدنى!$AN60 -> 34.33 | AF60: =مدنى!$AO60 -> 411.91 | AJ60: 5424.7 | AL60: 102.98 | AM60: 42.91 | AN60: 34.33 | AO60: 411.91 | AP60: 2934.6 | AQ60: =IF(مدنى!$A60="مدير عام",350)+IF(مدنى!$A60="اولى",325)+IF(مدنى!$A60="ثانية",275)+IF(مدنى!$A60="ثالثة",225)+IF(مدنى!$A60="رابعة",175)+IF(مدنى!$A60="خامسة",175)+IF(مدنى!$A60="سادسة",175) -> 225 | AR60: 228.1 | AS60: 2481.5 | AT60: 340 | AW60: 200 | AX60: 150 | AY60: 1400 | AZ60: 373.5 | BA60: 498 | BB60: 200 | BC60: =SUM(مدنى!$BD60:$BE60) -> 1897.97 | BD60: =TRUNC(الجدول4[[#This Row],[اجر وظيفي 2021]]*7%,2) -> 124.16 | BE60: =SUM(الجدول4[[#This Row],[علاوة 2020]:[الاجر الوظيفي]]) -> 1773.81 | BF60: 116.04 | BG60: =SUM(الجدول4[[#This Row],[تشجيعية 2020]:[اجر وظيفي 2019]]) -> 1657.77 | BH60: 103.28 | BI60: 1475.55 | BJ60: 70.26 | BK60: 190 | BL60: 79.5 | BM60: 1135.79 | BN60: 69.74 | BO60: 69.74 | BP60: 996.31 | BQ60: 65.17 | BR60: 931.14 | BS60: 44.34 | BT60: 886.8 | BU60: 383.1 | BV60: 351.47 | BW60: 322.45 | BX60: 295.83 | BY60: 271.41 | BZ60: 249 | CD60: 20.95 | CE60: 168.01 | CF60: 357.91 | CG60: 329.89 | CH60: 178.8 | CI60: 168.95 | CJ60: 3012.3 | CK60: 9.85 | CM60: 1.25 | CN60: 135.33 | CO60: 7.47 | CP60: 24.9 | CQ60: 4 | CS60: 622.5 | CT60: 4.8 | CU60: 4.8 | CV60: 7.2 | CW60: 7.2 | CX60: 4.8 | DF60: =TRUNC(الجدول4[[#This Row],[اجر وظيفي 2019]]*5%,2) -> 78.94 | DG60: 1578.83 | DH60: ايمان محمد عبد الغفار جازية
A61: ثانية | B61: نقل | D61: =IF(E61<>"",SUBTOTAL(3,$E$1:E60),"") -> 10 | E61: ايمان محمد عبد الرازق | F61: =الجدول4[[#This Row],[الجملة]]-الجدول4[[#This Row],[الاستقطاعات]] -> 4661.12 | G61: =SUM(مدنى!$H61:$AI61) -> 1239.23 | H61: 28.45 | I61: 42.34 | J61: =TRUNC((الجدول4[[#This Row],[الجملة]]-SUM(Z61:AF61,H61:I61))*1%,2) -> 47.45 | W61: 10 | X61: 26.65 | Z61: =مدنى!$AN61 -> 38.39 | AA61: =مدنى!$AN61 -> 38.39 | AB61: 345.45 | AC61: =مدنى!$AL61 -> 115.15 | AD61: =مدنى!$AM61 -> 47.98 | AE61: =مدنى!$AN61 -> 38.39 | AF61: =مدنى!$AO61 -> 460.59 | AJ61: =SUM(AK61:AP61,BC61) -> 5900.35 | AL61: 115.15 | AM61: 47.98 | AN61: 38.39 | AO61: 460.59 | AP61: =SUM(AQ61:AS61) -> 3146.08 | AQ61: =IF(مدنى!$A61="مدير عام",350)+IF(مدنى!$A61="اولى",325)+IF(مدنى!$A61="ثانية",275)+IF(مدنى!$A61="ثالثة",225)+IF(مدنى!$A61="رابعة",175)+IF(مدنى!$A61="خامسة",175)+IF(مدنى!$A61="سادسة",175) -> 275 | AR61: 226.96 | AS61: =SUM(AU61:BB61)-AT61 -> 2644.12 | AT61: 300 | AW61: 250 | AX61: 150 | AY61: 1400 | AZ61: =TRUNC(BZ61*150%,2) -> 444.12 | BA61: =IF(BZ61*200%>500,500,BZ61*200%) -> 500 | BB61: =IF(BZ61*50%<200,200,TRUNC(BZ61*50%,2)) -> 200 | BC61: =SUM(مدنى!$BD61:$BE61) -> 2092.16 | BD61: =TRUNC(الجدول4[[#This Row],[اجر وظيفي 2021]]*7%,2) -> 136.87 | BE61: =SUM(الجدول4[[#This Row],[علاوة 2020]:[الاجر الوظيفي]]) -> 1955.29 | BF61: =TRUNC(BG61*7%,2) -> 127.91 | BG61: =SUM(الجدول4[[#This Row],[تشجيعية 2020]:[اجر وظيفي 2019]]) -> 1827.38 | BH61: 119.54 | BI61: 1707.84 | BJ61: 81.32 | BK61: 190 | BL61: 93.97 | BM61: 1342.55 | BN61: 82.43 | BO61: 82.43 | BP61: 1177.69 | BQ61: 77.04 | BR61: 1100.65 | BS61: 52.41 | BT61: 1048.24 | BU61: 455.52 | BV61: 417.91 | BW61: 383.41 | BX61: 351.76 | BY61: 322.72 | BZ61: 296.08 | CD61: 22.85 | CE61: 204.07 | CF61: 425.13 | CG61: 376.92 | CH61: 209.31 | CI61: 198.21 | CJ61: 3288.36 | CK61: 11.1 | CM61: 1.48 | CN61: 158.23 | CO61: 8.89 | CP61: 29.61 | CQ61: 4 | CR61: 2 | CS61: 740.2 | CT61: 27.22 | CU61: 26.82 | CV61: 35.79 | CW61: 29.79 | CX61: 16.46 | DG61: 1827.38 | DH61: ايمان محمد عبد الرازق
A62: ثانية | B62: بنوك | D62: =IF(E62<>"",SUBTOTAL(3,$E$1:E61),"") -> 10 | E62: فاطمه جمال الدين عبد الله | F62: =الجدول4[[#This Row],[الجملة]]-الجدول4[[#This Row],[الاستقطاعات]] -> 4646.9 | G62: =SUM(مدنى!$H62:$AI62) -> 1425.79 | H62: 29.55 | I62: 40.9 | J62: =TRUNC((الجدول4[[#This Row],[الجملة]]-SUM(Z62:AF62,H62:I62))*1%,2) -> 48.76 | W62: 10 | X62: 28.16 | Y62: 142.56 | Z62: =مدنى!$AN62 -> 39.86 | AA62: =مدنى!$AN62 -> 39.86 | AB62: 358.67 | AC62: =مدنى!$AL62 -> 119.56 | AD62: =مدنى!$AM62 -> 49.82 | AE62: =مدنى!$AN62 -> 39.86 | AF62: =مدنى!$AO62 -> 478.23 | AJ62: 6072.69 | AL62: 119.56 | AM62: 49.82 | AN62: 39.86 | AO62: 478.23 | AP62: 3153.55 | AQ62: =IF(مدنى!$A62="مدير عام",350)+IF(مدنى!$A62="اولى",325)+IF(مدنى!$A62="ثانية",275)+IF(مدنى!$A62="ثالثة",225)+IF(مدنى!$A62="رابعة",175)+IF(مدنى!$A62="خامسة",175)+IF(مدنى!$A62="سادسة",175) -> 275 | AR62: 249.23 | AS62: 2629.32 | AT62: 340 | AW62: 250 | AX62: 150 | AY62: 1400 | AZ62: 469.32 | BA62: 500 | BB62: 200 | BC62: =SUM(مدنى!$BD62:$BE62) -> 2231.67 | BD62: =TRUNC(الجدول4[[#This Row],[اجر وظيفي 2021]]*7%,2) -> 145.99 | BE62: =SUM(الجدول4[[#This Row],[علاوة 2020]:[الاجر الوظيفي]]) -> 2085.68 | BF62: 136.44 | BG62: =SUM(الجدول4[[#This Row],[تشجيعية 2020]:[اجر وظيفي 2019]]) -> 1949.24 | BH62: 127.52 | BI62: 1821.72 | BJ62: 86.74 | BK62: 190 | BL62: 101.07 | BM62: 1443.91 | BN62: 88.66 | BO62: 88.66 | BP62: 1266.59 | BQ62: 82.86 | BR62: 1183.73 | BS62: 56.13 | BT62: 1122.6 | BU62: 481.37 | BV62: 441.63 | BW62: 405.17 | BX62: 371.72 | BY62: 341.03 | BZ62: 312.88 | CD62: 23.2 | CE62: 194.93 | CF62: 422.89 | CG62: 392.08 | CH62: 216.11 | CI62: 204.76 | CJ62: 3347.92 | CK62: 11.35 | CM62: 1.57 | CN62: 162.51 | CO62: 9.39 | CP62: 31.29 | CQ62: 4 | CR62: 2 | CS62: 782.2 | CT62: 29 | CU62: 28.6 | CV62: 34.74 | CW62: 28.74 | CX62: 15.76 | CY62: 5 | DG62: 1949.24 | DH62: فاطمه جمال الدين عبد الله
A63: ثانية | B63: كفرسعد جزئي | D63: =IF(E63<>"",SUBTOTAL(3,$E$1:E62),"") -> 10 | E63: مسعود رزق الجنيدى | F63: =الجدول4[[#This Row],[الجملة]]-الجدول4[[#This Row],[الاستقطاعات]] -> 4952.1349 | G63: =SUM(مدنى!$H63:$AI63) -> 1595.86 | H63: 32.6 | I63: 75.17 | J63: =TRUNC((الجدول4[[#This Row],[الجملة]]-SUM(Z63:AF63,H63:I63))*1%,2) -> 51.99 | W63: 10 | X63: 32.27 | Y63: 153.45 | Z63: =مدنى!$AN63 -> 43.91 | AA63: =مدنى!$AN63 -> 43.91 | AB63: 395.16 | AC63: =مدنى!$AL63 -> 131.72 | AD63: =مدنى!$AM63 -> 54.89 | AE63: =مدنى!$AN63 -> 43.91 | AF63: =مدنى!$AO63 -> 526.88 | AJ63: 6547.9949 | AL63: 131.72 | AM63: 54.89 | AN63: 43.91 | AO63: 526.88 | AP63: 3250.51 | AQ63: =IF(مدنى!$A63="مدير عام",350)+IF(مدنى!$A63="اولى",325)+IF(مدنى!$A63="ثانية",275)+IF(مدنى!$A63="ثالثة",225)+IF(مدنى!$A63="رابعة",175)+IF(مدنى!$A63="خامسة",175)+IF(مدنى!$A63="سادسة",175) -> 275 | AR63: 277.67 | AS63: 2697.84 | AT63: 340 | AW63: 250 | AX63: 150 | AY63: 1400 | AZ63: 537.84 | BA63: 500 | BB63: 200 | BC63: =SUM(مدنى!$BD63:$BE63) -> 2540.0849 | BD63: =TRUNC(الجدول4[[#This Row],[اجر وظيفي 2021]]*7%,2) -> 166.17 | BE63: =SUM(الجدول4[[#This Row],[علاوة 2020]:[الاجر الوظيفي]]) -> 2373.9149 | BF63: 155.3 | BG63: =SUM(الجدول4[[#This Row],[تشجيعية 2020]:[اجر وظيفي 2019]]) -> 2218.6149 | BH63: 138.23 | BI63: 1974.7449 | BJ63: 94.03 | BK63: 190 | BL63: 110.6 | BM63: 1580.1149 | BN63: 97.0249 | BO63: 97.02 | BP63: 1386.07 | BQ63: 90.67 | BR63: 1295.4 | BS63: 61.68 | BT63: 1233.72 | BU63: 551.68 | BV63: 506.13 | BW63: 464.34 | BX63: 426 | BY63: 390.83 | BZ63: 358.56 | CD63: 24.45 | CE63: 210.33 | CF63: 459.5 | CG63: 422.02 | CH63: 237.02 | CI63: 224.72 | CJ63: 3531.56 | CK63: 12.3 | CM63: 1.8 | CN63: 176.3 | CO63: 10.76 | CP63: 35.86 | CQ63: 4 | CR63: 6 | CS63: 896.4 | CT63: 33.79 | CU63: 33.38 | CV63: 38.71 | CW63: 32.71 | CX63: 18.01 | CZ63: 0 | DE63: =TRUNC(الجدول4[[#This Row],[اجر وظيفي 2019]]*5%,2) -> 105.64 | DG63: 2112.9749 | DH63: مسعود رزق الجنيدى
A64: اولى | B64: كفرسعد جزئي | D64: =IF(E64<>"",SUBTOTAL(3,$E$1:E63),"") -> 10 | E64: سومة حسين محمدعبد العال | F64: =الجدول4[[#This Row],[الجملة]]-الجدول4[[#This Row],[الاستقطاعات]] -> 5789.97 | G64: =SUM(مدنى!$H64:$AI64) -> 1829.82 | H64: 39.45 | I64: 176.59 | J64: =TRUNC((الجدول4[[#This Row],[الجملة]]-SUM(Z64:AF64,H64:I64))*1%,2) -> 59.05 | W64: 10 | X64: 46.12 | Z64: =مدنى!$AN64 -> 53.05 | AA64: =مدنى!$AN64 -> 53.05 | AB64: 477.43 | AC64: =مدنى!$AL64 -> 159.15 | AD64: =مدنى!$AM64 -> 66.31 | AE64: =مدنى!$AN64 -> 53.05 | AF64: =مدنى!$AO64 -> 636.57 | AJ64: 7619.79 | AL64: 159.15 | AM64: 66.31 | AN64: 53.05 | AO64: 636.57 | AP64: 3784.52 | AQ64: =IF(مدنى!$A64="مدير عام",350)+IF(مدنى!$A64="اولى",325)+IF(مدنى!$A64="ثانية",275)+IF(مدنى!$A64="ثالثة",225)+IF(مدنى!$A64="رابعة",175)+IF(مدنى!$A64="خامسة",175)+IF(مدنى!$A64="سادسة",175) -> 325 | AR64: 339.67 | AS64: 3119.85 | AT64: 255 | AW64: 300 | AX64: 150 | AY64: 1400 | AZ64: 768.64 | BA64: 500 | BB64: 256.21 | BC64: =SUM(مدنى!$BD64:$BE64) -> 2920.19 | BD64: =TRUNC(الجدول4[[#This Row],[اجر وظيفي 2021]]*7%,2) -> 191.04 | BE64: =SUM(الجدول4[[#This Row],[علاوة 2020]:[الاجر الوظيفي]]) -> 2729.15 | BF64: 178.54 | BG64: =SUM(الجدول4[[#This Row],[تشجيعية 2020]:[اجر وظيفي 2019]]) -> 2550.61 | BH64: 166.86 | BI64: 2383.75 | BK64: 190 | BL64: 143.51 | BM64: 2050.24 | BN64: 119.89 | BO64: 119.89 | BP64: 1712.83 | BQ64: 112.05 | BR64: 1600.78 | BS64: 76.22 | BT64: 1524.56 | BU64: 788.41 | BV64: 723.31528 | BW64: 663.592 | BX64: 608.8 | BY64: 558.54 | BZ64: 512.43 | CD64: 29.2 | CE64: 296.54 | CF64: 577.94 | CG64: 526.76 | CH64: 279.29 | CI64: 252.2 | CJ64: 4190.4105 | CK64: 16.05 | CL64: 11.04 | CM64: 2.57 | CN64: 183 | CO64: 15.38 | CP64: 51.25 | CQ64: 4 | CR64: 2 | CS64: 1281.07 | CT64: 47.67 | CU64: 47.17 | CV64: 54.0705 | CW64: 47.92 | CX64: 27.87 | CZ64: 97.63 | DA64: 1952.61 | DG64: 2550.61 | DH64: سومة حسين محمدعبد العال
A65: رابعة | D65: =IF(E65<>"",SUBTOTAL(3,$E$1:E64),"") -> 10 | E65: جمعه عبد المحسن محمد جمعه | F65: =الجدول4[[#This Row],[الجملة]]-الجدول4[[#This Row],[الاستقطاعات]] -> 4465.51 | G65: =SUM(مدنى!$H65:$AI65) -> 1104.69 | H65: 26.35 | I65: 28.47 | J65: =TRUNC((الجدول4[[#This Row],[الجملة]]-SUM(Z65:AF65,H65:I65))*1%,2) -> 45.1 | Z65: =مدنى!$AN65 -> 35.57 | AA65: =مدنى!$AN65 -> 35.57 | AB65: 320.1 | AC65: =مدنى!$AL65 -> 106.7 | AD65: =مدنى!$AM65 -> 44.46 | AE65: =مدنى!$AN65 -> 35.57 | AF65: =مدنى!$AO65 -> 426.8 | AJ65: 5570.2 | AL65: 106.7 | AM65: 44.46 | AN65: 35.57 | AO65: 426.8 | AP65: 2802.66 | AQ65: =IF(مدنى!$A65="مدير عام",350)+IF(مدنى!$A65="اولى",325)+IF(مدنى!$A65="ثانية",275)+IF(مدنى!$A65="ثالثة",225)+IF(مدنى!$A65="رابعة",175)+IF(مدنى!$A65="خامسة",175)+IF(مدنى!$A65="سادسة",175) -> 175 | AR65: 234.92 | AS65: 2392.74 | AT65: 385 | AW65: 150 | AX65: 150 | AY65: 1400 | AZ65: 377.74 | BA65: 500 | BB65: 200 | BC65: =SUM(مدنى!$BD65:$BE65) -> 2154.01 | BD65: =TRUNC(الجدول4[[#This Row],[اجر وظيفي 2021]]*7%,2) -> 140.91 | BE65: =SUM(الجدول4[[#This Row],[علاوة 2020]:[الاجر الوظيفي]]) -> 2013.1 | BF65: 131.69 | BG65: =SUM(الجدول4[[#This Row],[تشجيعية 2020]:[اجر وظيفي 2019]]) -> 1881.41 | BH65: 111.64 | BI65: 1594.86 | BK65: 200 | BL65: 91.25 | BM65: 1303.61 | BN65: 80.04 | BO65: 80.04 | BP65: 1143.53 | BQ65: 74.81 | BR65: 1068.72 | BS65: 50.89 | BT65: 1017.83 | BU65: 387.45 | BV65: 355.467639 | BW65: 326.1171 | BX65: 299.19 | BY65: 274.49 | BZ65: 251.83 | CD65: 21.65 | CE65: 191.01 | CF65: 391.55 | CG65: 335.91 | CH65: 188.89 | CI65: 178.89 | CJ65: 3110.57 | CK65: 10 | CM65: 1.26 | CN65: 144.88 | CO65: 7.56 | CP65: 25.19 | CQ65: 4 | CR65: 6 | CS65: 629.57 | CT65: 23.71 | CU65: 23.56 | CV65: 28.05 | CW65: 22.2 | CX65: 11.65 | CZ65: 0 | DE65: 89.59 | DF65: =TRUNC(الجدول4[[#This Row],[اجر وظيفي 2019]]*5%,2) -> 85.32 | DG65: 1706.5 | DH65: جمعه عبد المحسن محمد جمعه
A66: ثالثة | B66: كفرسعد جزئي | D66: =IF(E66<>"",SUBTOTAL(3,$E$1:E65),"") -> 11 | E66: غادة احمد عيد ابراهيم | F66: =الجدول4[[#This Row],[الجملة]]-الجدول4[[#This Row],[الاستقطاعات]] -> 4584.72 | G66: =SUM(مدنى!$H66:$AI66) -> 1199.63 | H66: 27.7 | I66: 33.76 | J66: =TRUNC((الجدول4[[#This Row],[الجملة]]-SUM(Z66:AF66,H66:I66))*1%,2) -> 46.66 | W66: 10 | X66: 25.12 | Z66: =مدنى!$AN66 -> 37.4 | AA66: =مدنى!$AN66 -> 37.4 | AB66: 336.54 | AC66: =مدنى!$AL66 -> 112.18 | AD66: =مدنى!$AM66 -> 46.75 | AE66: =مدنى!$AN66 -> 37.4 | AF66: =مدنى!$AO66 -> 448.72 | AJ66: 5784.35 | AL66: 112.18 | AM66: 46.75 | AN66: 37.4 | AO66: 448.72 | AP66: 2974.37 | AQ66: =IF(مدنى!$A66="مدير عام",350)+IF(مدنى!$A66="اولى",325)+IF(مدنى!$A66="ثانية",275)+IF(مدنى!$A66="ثالثة",225)+IF(مدنى!$A66="رابعة",175)+IF(مدنى!$A66="خامسة",175)+IF(مدنى!$A66="سادسة",175) -> 225 | AR66: 220.71 | AS66: 2528.66 | AT66: 340 | AW66: 200 | AX66: 150 | AY66: 1400 | AZ66: 418.66 | BA66: 500 | BB66: 200 | BC66: =SUM(مدنى!$BD66:$BE66) -> 2164.93 | BD66: =TRUNC(الجدول4[[#This Row],[اجر وظيفي 2021]]*7%,2) -> 141.63 | BE66: =SUM(الجدول4[[#This Row],[علاوة 2020]:[الاجر الوظيفي]]) -> 2023.3 | BF66: 132.36 | BG66: =SUM(الجدول4[[#This Row],[تشجيعية 2020]:[اجر وظيفي 2019]]) -> 1890.94 | BH66: 123.7 | BI66: 1767.24 | BJ66: 84.15 | BK66: 190 | BL66: 97.67 | BM66: 1395.42 | BN66: 81.6 | BO66: 81.6 | BP66: 1165.78 | BQ66: 76.26 | BR66: 1089.52 | BS66: 51.88 | BT66: 1037.64 | BU66: 429.4 | BV66: 393.95 | BW66: 361.43 | BX66: 331.59 | BY66: 304.22 | BZ66: 279.11 | CD66: 22.3 | CE66: 197.49 | CF66: 409.81 | CG66: 371 | CH66: 200.62 | CI66: 190.02 | CJ66: 3212.3 | CK66: 10.6 | CM66: 1.4 | CN66: 152.32 | CO66: 8.38 | CP66: 27.92 | CQ66: 4 | CR66: 2 | CS66: 697.77 | CT66: 26.29 | CU66: 25.89 | CV66: 30.54 | CW66: 23.94 | CX66: 12.76 | CZ66: 66.44 | DA66: 1328.98 | DG66: 1890.94 | DH66: غادة احمد عيد ابراهيم
A67: اولى | B67: مدنى فارسكور | D67: =IF(E67<>"",SUBTOTAL(3,$E$1:E66),"") -> 11 | E67: احسان على ابو زيد نوفل | F67: =الجدول4[[#This Row],[الجملة]]-الجدول4[[#This Row],[الاستقطاعات]] -> 5794.77 | G67: =SUM(مدنى!$H67:$AI67) -> 1835.07 | H67: 39.5 | I67: 177.44 | J67: =TRUNC((الجدول4[[#This Row],[الجملة]]-SUM(Z67:AF67,H67:I67))*1%,2) -> 59.11 | W67: 10 | X67: 47.98 | Z67: =مدنى!$AN67 -> 53.14 | AA67: =مدنى!$AN67 -> 53.14 | AB67: 478.2 | AC67: =مدنى!$AL67 -> 159.4 | AD67: =مدنى!$AM67 -> 66.42 | AE67: =مدنى!$AN67 -> 53.14 | AF67: =مدنى!$AO67 -> 637.6 | AJ67: =SUM(AK67:AP67,BC67) -> 7629.84 | AL67: 159.4 | AM67: 66.42 | AN67: 53.14 | AO67: 637.6 | AP67: =SUM(AQ67:AS67) -> 3834.41 | AQ67: =IF(مدنى!$A67="مدير عام",350)+IF(مدنى!$A67="اولى",325)+IF(مدنى!$A67="ثانية",275)+IF(مدنى!$A67="ثالثة",225)+IF(مدنى!$A67="رابعة",175)+IF(مدنى!$A67="خامسة",175)+IF(مدنى!$A67="سادسة",175) -> 325 | AR67: 348.17 | AS67: 3161.24 | AT67: 255 | AW67: 300 | AX67: 150 | AY67: 1400 | AZ67: 799.68 | BA67: 500 | BB67: 266.56 | BC67: =SUM(مدنى!$BD67:$BE67) -> 2878.87 | BD67: =TRUNC(الجدول4[[#This Row],[اجر وظيفي 2021]]*7%,2) -> 188.33 | BE67: =SUM(الجدول4[[#This Row],[علاوة 2020]:[الاجر الوظيفي]]) -> 2690.54 | BF67: 176.01 | BG67: =SUM(الجدول4[[#This Row],[تشجيعية 2020]:[اجر وظيفي 2019]]) -> 2514.53 | BH67: 164.5 | BI67: 2350.03 | BK67: 190 | BL67: 141.31 | BM67: 2018.72 | BN67: 123.95 | BO67: 123.95 | BP67: 1770.82 | BQ67: 115.84 | BR67: 1654.98 | BS67: 78.8 | BT67: 1576.18 | BU67: 820.27 | BV67: 752.5423879 | BW67: 690.4058605 | BX67: 633.399872 | BY67: 581.1008 | BZ67: 533.12 | CD67: 29.85 | CE67: 338.42 | CF67: 623.26 | CG67: 528 | CH67: 287.13 | CI67: 254.99 | CJ67: 4283.42 | CK67: 16.5 | CL67: 15.64 | CM67: 2.67 | CN67: 183 | CO67: 16 | CP67: 53.32 | CQ67: 4 | CR67: 2 | CS67: 1332.8 | CT67: 49.62 | CU67: 49.12 | CV67: 57 | CW67: 50.1 | CX67: 29.1 | CZ67: 0 | DG67: 2514.53 | DH67: احسان على ابو زيد نوفل
A68: اولى | B68: مدنى فارسكور | D68: =IF(E68<>"",SUBTOTAL(3,$E$1:E67),"") -> 11 | E68: اعتماد محمد حمزة حسن | F68: =الجدول4[[#This Row],[الجملة]]-الجدول4[[#This Row],[الاستقطاعات]] -> 5729.07 | G68: =SUM(مدنى!$H68:$AI68) -> 1732.51 | H68: 38.4 | I68: 165.65 | J68: =TRUNC((الجدول4[[#This Row],[الجملة]]-SUM(Z68:AF68,H68:I68))*1%,2) -> 57.97 | W68: 10 | Z68: =مدنى!$AN68 -> 51.7 | AA68: =مدنى!$AN68 -> 51.7 | AB68: =ROUNDUP(TRUNC((SUM((BC68+AP68)-AY68)*9%),3),2) -> 465.28 | AC68: =مدنى!$AL68 -> 155.1 | AD68: =مدنى!$AM68 -> 64.63 | AE68: =مدنى!$AN68 -> 51.7 | AF68: =مدنى!$AO68 -> 620.38 | AJ68: 7461.58 | AL68: =ROUNDUP(TRUNC((SUM((BC68+AP68)-AY68)*3%),3),2) -> 155.1 | AM68: =ROUNDUP(TRUNC((SUM((BC68+AP68)-AY68)*1.25%),3),2) -> 64.63 | AN68: =ROUNDUP(TRUNC((SUM((BC68+AP68)-AY68)*1%),3),2) -> 51.7 | AO68: =ROUNDUP(TRUNC((SUM((BC68+AP68)-AY68)*12%),3),2) -> 620.38 | AP68: 3783.09 | AQ68: =IF(مدنى!$A68="مدير عام",350)+IF(مدنى!$A68="اولى",325)+IF(مدنى!$A68="ثانية",275)+IF(مدنى!$A68="ثالثة",225)+IF(مدنى!$A68="رابعة",175)+IF(مدنى!$A68="خامسة",175)+IF(مدنى!$A68="سادسة",175) -> 325 | AR68: 341.97 | AS68: 3116.12 | AT68: 255 | AW68: 300 | AX68: 150 | AY68: 1400 | AZ68: 765.84 | BA68: 500 | BB68: 255.28 | BC68: =SUM(مدنى!$BD68:$BE68) -> 2786.68 | BD68: =TRUNC(الجدول4[[#This Row],[اجر وظيفي 2021]]*7%,2) -> 182.3 | BE68: =SUM(الجدول4[[#This Row],[علاوة 2020]:[الاجر الوظيفي]]) -> 2604.38 | BF68: 170.38 | BG68: =SUM(الجدول4[[#This Row],[تشجيعية 2020]:[اجر وظيفي 2019]]) -> 2434 | BH68: 159.23 | BI68: 2274.77 | BK68: 190 | BL68: 136.38 | BM68: 1948.39 | BN68: 119.63 | BO68: 119.63 | BP68: 1709.13 | BQ68: 111.81 | BR68: 1597.32 | BS68: 76.06 | BT68: 1521.26 | BU68: 785.55 | BV68: 720.6971068 | BW68: 661.1900062 | BX68: 606.596336 | BY68: 556.5104 | BZ68: 510.56 | CD68: 29.15 | CE68: 331.18 | CF68: 612.27 | CG68: 512.89 | CH68: 282.61 | CI68: 251.94 | CJ68: 4183.388 | CK68: 15.95 | CL68: 14.72 | CM68: 2.56 | CN68: 183 | CO68: 15.32 | CP68: 51.06 | CQ68: 4 | CR68: 2 | CS68: 1276.4 | CT68: 47.46 | CU68: 46.96 | CV68: 54.408 | CW68: 48.25 | CX68: 28.07 | CZ68: 0 | DG68: 2434 | DH68: اعتماد محمد حمزة حسن
A69: ثانية | B69: مدنى فارسكور | D69: =IF(E69<>"",SUBTOTAL(3,$E$1:E68),"") -> 11 | E69: نهى عوض طاهر عبد المقصود | F69: =الجدول4[[#This Row],[الجملة]]-الجدول4[[#This Row],[الاستقطاعات]] -> 4901.39 | G69: =SUM(مدنى!$H69:$AI69) -> 1363.21 | H69: 30.75 | I69: 69.31 | J69: =TRUNC((الجدول4[[#This Row],[الجملة]]-SUM(Z69:AF69,H69:I69))*1%,2) -> 49.92 | W69: 10 | X69: 31.14 | Z69: =مدنى!$AN69 -> 41.49 | AA69: =مدنى!$AN69 -> 41.49 | AB69: 373.41 | AC69: =مدنى!$AL69 -> 124.47 | AD69: =مدنى!$AM69 -> 51.87 | AE69: =مدنى!$AN69 -> 41.49 | AF69: =مدنى!$AO69 -> 497.87 | AJ69: 6264.6 | AL69: 124.47 | AM69: 51.87 | AN69: 41.49 | AO69: 497.87 | AP69: 3257.17 | AQ69: =IF(مدنى!$A69="مدير عام",350)+IF(مدنى!$A69="اولى",325)+IF(مدنى!$A69="ثانية",275)+IF(مدنى!$A69="ثالثة",225)+IF(مدنى!$A69="رابعة",175)+IF(مدنى!$A69="خامسة",175)+IF(مدنى!$A69="سادسة",175) -> 275 | AR69: 263.22 | AS69: 2718.95 | AT69: 300 | AW69: 250 | AX69: 150 | AY69: 1400 | AZ69: 518.95 | BA69: 500 | BB69: 200 | BC69: =SUM(مدنى!$BD69:$BE69) -> 2291.73 | BD69: =TRUNC(الجدول4[[#This Row],[اجر وظيفي 2021]]*7%,2) -> 149.92 | BE69: =SUM(الجدول4[[#This Row],[علاوة 2020]:[الاجر الوظيفي]]) -> 2141.81 | BF69: 140.11 | BG69: =SUM(الجدول4[[#This Row],[تشجيعية 2020]:[اجر وظيفي 2019]]) -> 2001.7 | BH69: 130.95 | BI69: 1870.75 | BJ69: 89.08 | BK69: 190 | BL69: 104.12 | BM69: 1487.55 | BN69: 91.34 | BO69: 91.34 | BP69: 1304.87 | BQ69: 85.36 | BR69: 1219.51 | BS69: 58.07 | BT69: 1161.44 | BU69: 532.31 | BV69: 488.3648896 | BW69: 448.0411831 | BX69: 411.046957 | BY69: 377.1073 | BZ69: 345.97 | CD69: 24.1 | CE69: 226.19 | CF69: 469.05 | CG69: 409.64 | CH69: 230.81 | CI69: 218.76 | CJ69: 3476.39 | CK69: 12.05 | CM69: 1.73 | CN69: 172.05 | CO69: 10.38 | CP69: 34.6 | CQ69: 4 | CR69: 2 | CS69: 864.92 | CT69: 32.11 | CU69: 31.71 | CV69: 37.53 | CW69: 30.93 | CX69: 17.22 | CZ69: 0 | DG69: 2001.7 | DH69: نهى عوض طاهر عبد المقصود
A70: ثانية | B70: مدنى فارسكور | D70: =IF(E70<>"",SUBTOTAL(3,$E$1:E69),"") -> 11 | E70: وليد محمد شوقت زمزم | F70: =الجدول4[[#This Row],[الجملة]]-الجدول4[[#This Row],[الاستقطاعات]] -> 4736.61 | G70: =SUM(مدنى!$H70:$AI70) -> 1277.36 | H70: 29.15 | I70: 50.81 | J70: =TRUNC((الجدول4[[#This Row],[الجملة]]-SUM(Z70:AF70,H70:I70))*1%,2) -> 48.22 | W70: 10 | X70: 27.46 | Z70: =مدنى!$AN70 -> 39.36 | AA70: =مدنى!$AN70 -> 39.36 | AB70: 354.17 | AC70: =مدنى!$AL70 -> 118.06 | AD70: =مدنى!$AM70 -> 49.19 | AE70: =مدنى!$AN70 -> 39.36 | AF70: =مدنى!$AO70 -> 472.22 | AJ70: 6013.97 | AL70: 118.06 | AM70: 49.19 | AN70: 39.36 | AO70: 472.22 | AP70: 3140.18 | AQ70: =IF(مدنى!$A70="مدير عام",350)+IF(مدنى!$A70="اولى",325)+IF(مدنى!$A70="ثانية",275)+IF(مدنى!$A70="ثالثة",225)+IF(مدنى!$A70="رابعة",175)+IF(مدنى!$A70="خامسة",175)+IF(مدنى!$A70="سادسة",175) -> 275 | AR70: 247.55 | AS70: 2617.63 | AT70: 340 | AW70: 250 | AX70: 150 | AY70: 1400 | AZ70: 457.63 | BA70: 500 | BB70: 200 | BC70: =SUM(مدنى!$BD70:$BE70) -> 2194.96 | BD70: =TRUNC(الجدول4[[#This Row],[اجر وظيفي 2021]]*7%,2) -> 143.59 | BE70: =SUM(الجدول4[[#This Row],[علاوة 2020]:[الاجر الوظيفي]]) -> 2051.37 | BF70: 134.2 | BG70: =SUM(الجدول4[[#This Row],[تشجيعية 2020]:[اجر وظيفي 2019]]) -> 1917.17 | BH70: 125.42 | BI70: 1791.75 | BJ70: 85.32 | BK70: 190 | BL70: 99.2 | BM70: 1417.23 | BN70: 87.02 | BO70: 87.02 | BP70: 1243.19 | BQ70: 81.33 | BR70: 1161.86 | BS70: 55.08 | BT70: 1101.78 | BU70: 469.41 | BV70: 430.6594334 | BW70: 395.1003976 | BX70: 362.477429 | BY70: 332.5481 | BZ70: 305.09 | CD70: 23.05 | CE70: 206.73 | CF70: 431.42 | CG70: 386.83 | CH70: 212.84 | CI70: 201.64 | CJ70: 3319.412 | CK70: 11.2 | CM70: 1.53 | CN70: 160.44 | CO70: 9.16 | CP70: 30.51 | CQ70: 4 | CR70: 6 | CS70: 762.72 | CT70: 28.37 | CU70: 27.97 | CV70: 33.252 | CW70: 27.25 | CX70: 14.76 | CY70: 5 | DG70: 1917.17 | DH70: وليد محمد شوقت زمزم
A71: ثالثة | B71: مدنى فارسكور | D71: =IF(E71<>"",SUBTOTAL(3,$E$1:E70),"") -> 11 | E71: اسامه نبيل خليل زهران | F71: =الجدول4[[#This Row],[الجملة]]-الجدول4[[#This Row],[الاستقطاعات]] -> 4435.99 | G71: =SUM(مدنى!$H71:$AI71) -> 1194.23 | H71: 26.7 | I71: 29.03 | J71: =TRUNC((الجدول4[[#This Row],[الجملة]]-SUM(Z71:AF71,H71:I71))*1%,2) -> 45.55 | V71: 41 | W71: 10 | X71: 22.71 | Z71: =مدنى!$AN71 -> 36.08 | AA71: =مدنى!$AN71 -> 36.08 | AB71: 324.71 | AC71: =مدنى!$AL71 -> 108.24 | AD71: =مدنى!$AM71 -> 45.1 | AE71: =مدنى!$AN71 -> 36.08 | AF71: =مدنى!$AO71 -> 432.95 | AJ71: 5630.22 | AL71: 108.24 | AM71: 45.1 | AN71: 36.08 | AO71: 432.95 | AP71: 2947.83 | AQ71: =IF(مدنى!$A71="مدير عام",350)+IF(مدنى!$A71="اولى",325)+IF(مدنى!$A71="ثانية",275)+IF(مدنى!$A71="ثالثة",225)+IF(مدنى!$A71="رابعة",175)+IF(مدنى!$A71="خامسة",175)+IF(مدنى!$A71="سادسة",175) -> 225 | AR71: 234.35 | AS71: 2488.48 | AT71: 340 | AW71: 200 | AX71: 150 | AY71: 1400 | AZ71: 378.48 | BA71: 500 | BB71: 200 | BC71: =SUM(مدنى!$BD71:$BE71) -> 2060.02 | BD71: =TRUNC(الجدول4[[#This Row],[اجر وظيفي 2021]]*7%,2) -> 134.76 | BE71: =SUM(الجدول4[[#This Row],[علاوة 2020]:[الاجر الوظيفي]]) -> 1925.26 | BF71: 125.95 | BG71: =SUM(الجدول4[[#This Row],[تشجيعية 2020]:[اجر وظيفي 2019]]) -> 1799.31 | BH71: 117.71 | BI71: 1681.61 | BJ71: 80.07 | BK71: 190 | BL71: 92.34 | BM71: 1319.2 | BN71: 81 | BO71: 81 | BP71: 1157.2 | BQ71: 72.1 | BR71: 1030 | BS71: 49.04 | BT71: 980.96 | BU71: 388.22 | BV71: 356.1702718 | BW71: 326.7617173 | BX71: 299.781392 | BY71: 275.0288 | BZ71: 252.32 | CD71: 21.65 | CE71: 189.17 | CF71: 390.22 | CG71: 357.31 | CH71: 189.5 | CI71: 179.4 | CJ71: 3115.44 | CK71: 10.1 | CM71: 1.27 | CN71: 145.32 | CO71: 7.57 | CP71: 25.24 | CQ71: 4 | CR71: 2 | CS71: 630.8 | CT71: 23.53 | CU71: 23.13 | CV71: 31.26 | CW71: 24.96 | CX71: 13.44 | CZ71: 55.1 | DA71: 1102.1 | DG71: 1799.31 | DH71: اسامه نبيل خليل زهران
A72: ثالثة | B72: مدنى فارسكور | D72: =IF(E72<>"",SUBTOTAL(3,$E$1:E71),"") -> 11 | E72: هانم اسماعيل مصطفى باشا | F72: =الجدول4[[#This Row],[الجملة]]-الجدول4[[#This Row],[الاستقطاعات]] -> 4367.88 | G72: =SUM(مدنى!$H72:$AI72) -> 1110.33 | H72: 25.75 | I72: 26.21 | J72: =TRUNC((الجدول4[[#This Row],[الجملة]]-SUM(Z72:AF72,H72:I72))*1%,2) -> 44.43 | W72: 10 | X72: 21.31 | Z72: =مدنى!$AN72 -> 34.79 | AA72: =مدنى!$AN72 -> 34.79 | AB72: 313.04 | AC72: =مدنى!$AL72 -> 104.35 | AD72: =مدنى!$AM72 -> 43.48 | AE72: =مدنى!$AN72 -> 34.79 | AF72: =مدنى!$AO72 -> 417.39 | AJ72: 5478.21 | AL72: 104.35 | AM72: 43.48 | AN72: 34.79 | AO72: 417.39 | AP72: 2891.33 | AQ72: =IF(مدنى!$A72="مدير عام",350)+IF(مدنى!$A72="اولى",325)+IF(مدنى!$A72="ثانية",275)+IF(مدنى!$A72="ثالثة",225)+IF(مدنى!$A72="رابعة",175)+IF(مدنى!$A72="خامسة",175)+IF(مدنى!$A72="سادسة",175) -> 225 | AR72: 227.95 | AS72: =SUM(AU72:BB72)-AT72 -> 2438.38 | AT72: 340 | AW72: 200 | AX72: 150 | AY72: 1400 | AZ72: 355.02 | BA72: 473.36 | BB72: 200 | BC72: =SUM(مدنى!$BD72:$BE72) -> 1986.87 | BD72: =TRUNC(الجدول4[[#This Row],[اجر وظيفي 2021]]*7%,2) -> 129.98 | BE72: =SUM(الجدول4[[#This Row],[علاوة 2020]:[الاجر الوظيفي]]) -> 1856.89 | BF72: 121.47 | BG72: =SUM(الجدول4[[#This Row],[تشجيعية 2020]:[اجر وظيفي 2019]]) -> 1735.42 | BH72: 113.53 | BI72: 1621.91 | BJ72: 77.23 | BK72: 190 | BL72: 88.62 | BM72: 1266.06 | BN72: 77.74 | BO72: 77.74 | BP72: 1110.58 | BQ72: 69.19 | BR72: 988.51 | BS72: 47.07 | BT72: 941.44 | BU72: 364.16 | BV72: 334.0931355 | BW72: 306.5074637 | BX72: 281.199508 | BY72: 257.9812 | BZ72: 236.68 | CD72: 21.05 | CE72: 181.36 | CF72: 372.29 | CG72: 343.58 | CH72: 179.43 | CI72: 169.88 | CJ72: 3025.82 | CK72: 9.55 | CL72: 0 | CM72: 1.19 | CN72: 137.92 | CO72: 7.1 | CP72: 23.67 | CQ72: 4 | CR72: 2 | CS72: 591.7 | CT72: 22.07 | CU72: 21.27 | CV72: 29.04 | CW72: 23.34 | CX72: 12.36 | CZ72: 52.88 | DA72: 1057.7 | DG72: 1735.42 | DH72: هانم اسماعيل مصطفى باشا
A73: ثانية | B73: مدنى فارسكور | D73: =IF(E73<>"",SUBTOTAL(3,$E$1:E72),"") -> 11 | E73: امل ابراهيم عبد الرازق قاسم | F73: =الجدول4[[#This Row],[الجملة]]-الجدول4[[#This Row],[الاستقطاعات]] -> 4819.33 | G73: =SUM(مدنى!$H73:$AI73) -> 1320.01 | H73: 29.95 | I73: 60.1 | J73: =TRUNC((الجدول4[[#This Row],[الجملة]]-SUM(Z73:AF73,H73:I73))*1%,2) -> 49.07 | W73: 10 | X73: 28.99 | Z73: =مدنى!$AN73 -> 40.42 | AA73: =مدنى!$AN73 -> 40.42 | AB73: 363.79 | AC73: =مدنى!$AL73 -> 121.27 | AD73: =مدنى!$AM73 -> 50.53 | AE73: =مدنى!$AN73 -> 40.42 | AF73: =مدنى!$AO73 -> 485.05 | AJ73: 6139.34 | AL73: 121.27 | AM73: 50.53 | AN73: 40.42 | AO73: 485.05 | AP73: 3169.82 | AQ73: =IF(مدنى!$A73="مدير عام",350)+IF(مدنى!$A73="اولى",325)+IF(مدنى!$A73="ثانية",275)+IF(مدنى!$A73="ثالثة",225)+IF(مدنى!$A73="رابعة",175)+IF(مدنى!$A73="خامسة",175)+IF(مدنى!$A73="سادسة",175) -> 275 | AR73: 251.67 | AS73: 2643.15 | AT73: 340 | AW73: 250 | AX73: 150 | AY73: 1400 | AZ73: 483.15 | BA73: 500 | BB73: 200 | BC73: =SUM(مدنى!$BD73:$BE73) -> 2272.25 | BD73: =TRUNC(الجدول4[[#This Row],[اجر وظيفي 2021]]*7%,2) -> 148.65 | BE73: =SUM(الجدول4[[#This Row],[علاوة 2020]:[الاجر الوظيفي]]) -> 2123.6 | BF73: 138.92 | BG73: =SUM(الجدول4[[#This Row],[تشجيعية 2020]:[اجر وظيفي 2019]]) -> 1984.68 | BH73: 129.83 | BI73: 1854.85 | BJ73: 88.32 | BK73: 190 | BL73: 103.13 | BM73: 1473.4 | BN73: 90.47 | BO73: 90.47 | BP73: 1292.46 | BQ73: 84.55 | BR73: 1207.91 | BS73: 57.28 | BT73: 1145.63 | BU73: 495.56 | BV73: 454.650227 | BW73: 417.1103 | BX73: 382.67 | BY73: 351.08 | BZ73: 322.1 | CD73: 23.45 | CE73: 214.37 | CF73: 446.58 | CG73: 398.04 | CH73: 220.31 | CI73: 208.76 | CJ73: 3384.78 | CK73: 11.55 | CM73: 1.61 | CN73: 165.27 | CO73: 9.67 | CP73: 32.21 | CQ73: 4 | CR73: 2 | CS73: 805.25 | CT73: 30.34 | CU73: 29.94 | CV73: 35.83 | CW73: 29.23 | CX73: 16.09 | CY73: 5 | DG73: 1984.68 | DH73: امل ابراهيم عبد الرازق قاسم
A74: اولى | D74: =IF(E74<>"",SUBTOTAL(3,$E$1:E73),"") -> 11 | E74: رجاء ابو السعد رزق سبلة | F74: =الجدول4[[#This Row],[الجملة]]-الجدول4[[#This Row],[الاستقطاعات]] -> 5114.29 | G74: =SUM(مدنى!$H74:$AI74) -> 1468.65 | H74: 32.8 | I74: 93.2 | J74: =TRUNC((الجدول4[[#This Row],[الجملة]]-SUM(Z74:AF74,H74:I74))*1%,2) -> 52.08 | W74: 10 | X74: 31.77 | Z74: =مدنى!$AN74 -> 44.21 | AA74: =مدنى!$AN74 -> 44.21 | AB74: 397.84 | AC74: =مدنى!$AL74 -> 132.62 | AD74: =مدنى!$AM74 -> 55.26 | AE74: =مدنى!$AN74 -> 44.21 | AF74: =مدنى!$AO74 -> 530.45 | AJ74: 6582.94 | AL74: 132.62 | AM74: 55.26 | AN74: 44.21 | AO74: 530.45 | AP74: 3375.08 | AQ74: =IF(مدنى!$A74="مدير عام",350)+IF(مدنى!$A74="اولى",325)+IF(مدنى!$A74="ثانية",275)+IF(مدنى!$A74="ثالثة",225)+IF(مدنى!$A74="رابعة",175)+IF(مدنى!$A74="خامسة",175)+IF(مدنى!$A74="سادسة",175) -> 325 | AR74: 270.64 | AS74: 2779.44 | AT74: 300 | AW74: 300 | AX74: 150 | AY74: 1400 | AZ74: 529.44 | BA74: 500 | BB74: 200 | BC74: =SUM(مدنى!$BD74:$BE74) -> 2445.32 | BD74: =TRUNC(الجدول4[[#This Row],[اجر وظيفي 2021]]*7%,2) -> 159.97 | BE74: =SUM(الجدول4[[#This Row],[علاوة 2020]:[الاجر الوظيفي]]) -> 2285.35 | BF74: 149.5 | BG74: =SUM(الجدول4[[#This Row],[تشجيعية 2020]:[اجر وظيفي 2019]]) -> 2135.85 | BH74: 133.07 | BI74: 1901.08 | BJ74: 90.52 | BK74: 190 | BL74: 106.01 | BM74: 1514.55 | BN74: 92.99 | BO74: 92.99 | BP74: 1328.57 | BQ74: 86.91 | BR74: 1241.66 | BS74: 59.12 | BT74: 1182.54 | BU74: 543.07 | BV74: 498.2318451 | BW74: 457.0934358 | BX74: 419.351776 | BY74: 384.7264 | BZ74: 352.96 | CD74: 24.5 | CE74: 234.07 | CF74: 485.35 | CG74: 420.94 | CH74: 238.88 | CI74: 226.78 | CJ74: 3537.98 | CK74: 12.1 | CM74: 1.82 | CN74: 177.51 | CO74: 10.95 | CP74: 36.5 | CQ74: 4 | CR74: 2 | CS74: 912.4 | CT74: 35.94 | CU74: 35.04 | CV74: 37.14 | CW74: 31.14 | CX74: 17.36 | CZ74: 0 | DF74: =TRUNC(الجدول4[[#This Row],[اجر وظيفي 2019]]*5%,2) -> 101.7 | DG74: 2034.15 | DH74: رجاء ابو السعد رزق سبلة
A75: اولى | D75: =IF(E75<>"",SUBTOTAL(3,$E$1:E74),"") -> 12 | E75: عثمان عثمان على عبد الله | F75: =الجدول4[[#This Row],[الجملة]]-الجدول4[[#This Row],[الاستقطاعات]] -> 5210.74 | G75: =SUM(مدنى!$H75:$AI75) -> 1501.15 | H75: 33.65 | I75: 102.91 | J75: =TRUNC((الجدول4[[#This Row],[الجملة]]-SUM(Z75:AF75,H75:I75))*1%,2) -> 52.95 | X75: 31.77 | Z75: =مدنى!$AN75 -> 45.31 | AA75: =مدنى!$AN75 -> 45.31 | AB75: 407.74 | AC75: =مدنى!$AL75 -> 135.92 | AD75: =مدنى!$AM75 -> 56.63 | AE75: =مدنى!$AN75 -> 45.31 | AF75: =مدنى!$AO75 -> 543.65 | AJ75: 6711.89 | AL75: 135.92 | AM75: 56.63 | AN75: 45.31 | AO75: 543.65 | AP75: 3375.62 | AQ75: =IF(مدنى!$A75="مدير عام",350)+IF(مدنى!$A75="اولى",325)+IF(مدنى!$A75="ثانية",275)+IF(مدنى!$A75="ثالثة",225)+IF(مدنى!$A75="رابعة",175)+IF(مدنى!$A75="خامسة",175)+IF(مدنى!$A75="سادسة",175) -> 325 | AR75: 271.18 | AS75: 2779.44 | AT75: 300 | AW75: 300 | AX75: 150 | AY75: 1400 | AZ75: 529.44 | BA75: 500 | BB75: 200 | BC75: =SUM(مدنى!$BD75:$BE75) -> 2554.76 | BD75: =TRUNC(الجدول4[[#This Row],[اجر وظيفي 2021]]*7%,2) -> 167.13 | BE75: =SUM(الجدول4[[#This Row],[علاوة 2020]:[الاجر الوظيفي]]) -> 2387.63 | BF75: 156.2 | BG75: =SUM(الجدول4[[#This Row],[تشجيعية 2020]:[اجر وظيفي 2019]]) -> 2231.43 | BH75: 139.03 | BI75: 1986.15 | BJ75: 94.57 | BK75: 190 | BL75: 111.31 | BM75: 1590.27 | BN75: 92.99 | BO75: 92.99 | BP75: 1328.57 | BQ75: 86.91 | BR75: 1241.66 | BS75: 59.12 | BT75: 1182.54 | BU75: 543.07 | BV75: 498.2318451 | BW75: 457.0934358 | BX75: 419.351776 | BY75: 384.7264 | BZ75: 352.96 | CD75: 24.5 | CE75: 234.61 | CF75: 486.29 | CG75: 431.71 | CH75: 239.28 | CI75: 227.18 | CJ75: 3541.98 | CK75: 12.1 | CM75: 1.82 | CN75: 177.91 | CO75: 10.95 | CP75: 36.5 | CQ75: 4 | CR75: 6 | CS75: 912.4 | CT75: 35.94 | CU75: 35.04 | CV75: 37.14 | CW75: 31.14 | CX75: 17.36 | CZ75: 75.72 | DA75: 1514.55 | DF75: =TRUNC(الجدول4[[#This Row],[اجر وظيفي 2019]]*5%,2) -> 106.25 | DG75: 2125.18 | DH75: عثمان عثمان على عبد الله
A76: اولى | D76: =IF(E76<>"",SUBTOTAL(3,$E$1:E75),"") -> 13 | E76: منى السيد العوضي الغباري | F76: =الجدول4[[#This Row],[الجملة]]-الجدول4[[#This Row],[الاستقطاعات]] -> 5114.29 | G76: =SUM(مدنى!$H76:$AI76) -> 1468.65 | H76: 32.8 | I76: 93.2 | J76: =TRUNC((الجدول4[[#This Row],[الجملة]]-SUM(Z76:AF76,H76:I76))*1%,2) -> 52.08 | W76: 10 | X76: 31.77 | Z76: =مدنى!$AN76 -> 44.21 | AA76: =مدنى!$AN76 -> 44.21 | AB76: 397.84 | AC76: =مدنى!$AL76 -> 132.62 | AD76: =مدنى!$AM76 -> 55.26 | AE76: =مدنى!$AN76 -> 44.21 | AF76: =مدنى!$AO76 -> 530.45 | AJ76: 6582.94 | AL76: 132.62 | AM76: 55.26 | AN76: 44.21 | AO76: 530.45 | AP76: 3375.08 | AQ76: =IF(مدنى!$A76="مدير عام",350)+IF(مدنى!$A76="اولى",325)+IF(مدنى!$A76="ثانية",275)+IF(مدنى!$A76="ثالثة",225)+IF(مدنى!$A76="رابعة",175)+IF(مدنى!$A76="خامسة",175)+IF(مدنى!$A76="سادسة",175) -> 325 | AR76: 270.64 | AS76: 2779.44 | AT76: 300 | AW76: 300 | AX76: 150 | AY76: 1400 | AZ76: 529.44 | BA76: 500 | BB76: 200 | BC76: =SUM(مدنى!$BD76:$BE76) -> 2445.32 | BD76: =TRUNC(الجدول4[[#This Row],[اجر وظيفي 2021]]*7%,2) -> 159.97 | BE76: =SUM(الجدول4[[#This Row],[علاوة 2020]:[الاجر الوظيفي]]) -> 2285.35 | BF76: 149.5 | BG76: =SUM(الجدول4[[#This Row],[تشجيعية 2020]:[اجر وظيفي 2019]]) -> 2135.85 | BH76: 133.07 | BI76: 1901.08 | BJ76: 90.52 | BK76: 190 | BL76: 106.01 | BM76: 1514.55 | BN76: 92.99 | BO76: 92.99 | BP76: 1328.57 | BQ76: 86.91 | BR76: 1241.66 | BS76: 59.12 | BT76: 1182.54 | BU76: 543.07 | BV76: 498.2318451 | BW76: 457.0934358 | BX76: 419.351776 | BY76: 384.7264 | BZ76: 352.96 | CD76: 24.5 | CE76: 234.07 | CF76: 485.35 | CG76: 420.94 | CH76: 238.88 | CI76: 226.78 | CJ76: 3537.98 | CK76: 12.1 | CM76: 1.82 | CN76: 177.51 | CO76: 10.95 | CP76: 36.5 | CQ76: 4 | CR76: 2 | CS76: 912.4 | CT76: 35.94 | CU76: 35.04 | CV76: 37.14 | CW76: 31.14 | CX76: 17.36 | CZ76: 0 | DF76: =TRUNC(الجدول4[[#This Row],[اجر وظيفي 2019]]*5%,2) -> 101.7 | DG76: 2034.15 | DH76: منى السيد العوضي الغباري
A77: ثانية | B77: مدنى فارسكور | D77: =IF(E77<>"",SUBTOTAL(3,$E$1:E76),"") -> 14 | E77: عطيات مصطفى مسعد زغلول | F77: =الجدول4[[#This Row],[الجملة]]-الجدول4[[#This Row],[الاستقطاعات]] -> 4513.88 | G77: =SUM(مدنى!$H77:$AI77) -> 1367.75 | H77: 28.3 | I77: =TRUNC(IF(((BC77+AP77)-H77-X77-Y77-Z77-AA77-AB77-AY77-AG77-AH77-AI77)*12<=24000,0, IF(((BC77+AP77)-H77-X77-Y77-Z77-AA77-AB77-AY77-AG77-AH77-AI77)*12-9000<=30000,(((BC77+AP77)-H77-X77-Y77-Z77-AA77-AB77-AY77-AG77-AH77-AI77)*12-24000)*2.5%, IF(((BC77+AP77)-H77-X77-Y77-Z77-AA77-AB77-AY77-AG77-AH77-AI77)*12-9000<=45000,(((BC77+AP77)-H77-X77-Y77-Z77-AA77-AB77-AY77-AG77-AH77-AI77)*12-39000)*10%+375, IF(((BC77+AP77)-H77-X77-Y77-Z77-AA77-AB77-AY77-AG77-AH77-AI77)*12-9000<=60000,(((BC77+AP77)-H77-X77-Y77-Z77-AA77-AB77-AY77-AG77-AH77-AI77)*12-54000)*15%+1875, IF(((BC77+AP77)-H77-X77-Y77-Z77-AA77-AB77-AY77-AG77-AH77-AI77)*12-9000<=200000,(((BC77+AP77)-H77-X77-Y77-Z77-AA77-AB77-AY77-AG77-AH77-AI77)*12-60000)*20%+4125, IF(((BC77+AP77)-H77-X77-Y77-Z77-AA77-AB77-AY77-AG77-AH77-AI77)*12-9000<=400000,(((BC77+AP77)-H77-X77-Y77-Z77-AA77-AB77-AY77-AG77-AH77-AI77)*12-200000)*22.5%+32125, IF(((BC77+AP77)-H77-X77-Y77-Z77-AA77-AB77-AY77-AG77-AH77-AI77)*12-9000<=600000,(((BC77+AP77)-H77-X77-Y77-Z77-AA77-AB77-AY77-AG77-AH77-AI77)*12-400000)*25%+77125, IF(((BC77+AP77)-H77-X77-Y77-Z77-AA77-AB77-AY77-AG77-AH77-AI77)*12-9000>600000,(((BC77+AP77)-H77-X77-Y77-Z77-AA77-AB77-AY77-AG77-AH77-AI77)*12-400000)*25%+77125 ))))))))/12,2) -> 30.28 | J77: =TRUNC((الجدول4[[#This Row],[الجملة]]-SUM(Z77:AF77,H77:I77))*1%,2) -> 47.43 | P77: 10 | W77: 10 | X77: 25.57 | Y77: 136.34 | Z77: =مدنى!$AN77 -> 38.23 | AA77: =مدنى!$AN77 -> 38.23 | AB77: 344.01 | AC77: =مدنى!$AL77 -> 114.67 | AD77: =مدنى!$AM77 -> 47.78 | AE77: =مدنى!$AN77 -> 38.23 | AF77: =مدنى!$AO77 -> 458.68 | AJ77: 5881.63 | AL77: 114.67 | AM77: 47.78 | AN77: 38.23 | AO77: 458.68 | AP77: 3103.36 | AQ77: =IF(مدنى!$A77="مدير عام",350)+IF(مدنى!$A77="اولى",325)+IF(مدنى!$A77="ثانية",275)+IF(مدنى!$A77="ثالثة",225)+IF(مدنى!$A77="رابعة",175)+IF(مدنى!$A77="خامسة",175)+IF(مدنى!$A77="سادسة",175) -> 275 | AR77: 242.24 | AS77: 2586.12 | AT77: 340 | AW77: 250 | AX77: 150 | AY77: 1400 | AZ77: 426.12 | BA77: 500 | BB77: 200 | BC77: =SUM(مدنى!$BD77:$BE77) -> 2118.91 | BD77: =TRUNC(الجدول4[[#This Row],[اجر وظيفي 2021]]*7%,2) -> 138.62 | BE77: =SUM(الجدول4[[#This Row],[علاوة 2020]:[الاجر الوظيفي]]) -> 1980.29 | BF77: 129.55 | BG77: =SUM(الجدول4[[#This Row],[تشجيعية 2020]:[اجر وظيفي 2019]]) -> 1850.74 | BH77: 121.07 | BI77: 1729.67 | BJ77: 82.36 | BK77: 190 | BL77: 95.33 | BM77: 1361.98 | BN77: 83.63 | BO77: 83.63 | BP77: 1194.72 | BQ77: 78.15 | BR77: 1116.57 | BS77: 52.93 | BT77: 1058.64 | BU77: 437.09 | BV77: 401.0021038 | BW77: 367.8918383 | BX77: 337.515448 | BY77: 309.6472 | BZ77: 284.08 | CD77: 22.5 | CE77: 186.34 | CF77: 401.87 | CG77: 374.96 | CH77: 203.83 | CI77: 193.03 | CJ77: 3240.76 | CK77: 10.8 | CM77: 1.42 | CN77: 154.67 | CO77: 8.53 | CP77: 28.41 | CQ77: 4 | CR77: 2 | CS77: 710.2 | CT77: 26.52 | CU77: 25.72 | CV77: 34.74 | CW77: 28.14 | CX77: 15.36 | CY77: 5 | DG77: 1850.74 | DH77: عطيات مصطفى مسعد زغلول
A78: ثالثة | B78: مدنى فارسكور | D78: =IF(E78<>"",SUBTOTAL(3,$E$1:E77),"") -> 14 | E78: نورا ابراهيم كامل رضوان | F78: =الجدول4[[#This Row],[الجملة]]-الجدول4[[#This Row],[الاستقطاعات]] -> 4403.34 | G78: =SUM(مدنى!$H78:$AI78) -> 1125.52 | H78: 26.05 | I78: 27.13 | J78: =TRUNC((الجدول4[[#This Row],[الجملة]]-SUM(Z78:AF78,H78:I78))*1%,2) -> 44.8 | W78: 10 | X78: 22.71 | Z78: =مدنى!$AN78 -> 35.22 | AA78: =مدنى!$AN78 -> 35.22 | AB78: 316.93 | AC78: =مدنى!$AL78 -> 105.65 | AD78: =مدنى!$AM78 -> 44.02 | AE78: =مدنى!$AN78 -> 35.22 | AF78: =مدنى!$AO78 -> 422.57 | AJ78: 5528.86 | AL78: 105.65 | AM78: 44.02 | AN78: 35.22 | AO78: 422.57 | AP78: 2947.83 | AQ78: =IF(مدنى!$A78="مدير عام",350)+IF(مدنى!$A78="اولى",325)+IF(مدنى!$A78="ثانية",275)+IF(مدنى!$A78="ثالثة",225)+IF(مدنى!$A78="رابعة",175)+IF(مدنى!$A78="خامسة",175)+IF(مدنى!$A78="سادسة",175) -> 225 | AR78: 234.35 | AS78: 2488.48 | AT78: 340 | AW78: 200 | AX78: 150 | AY78: 1400 | AZ78: 378.48 | BA78: 500 | BB78: 200 | BC78: =SUM(مدنى!$BD78:$BE78) -> 1973.57 | BD78: =TRUNC(الجدول4[[#This Row],[اجر وظيفي 2021]]*7%,2) -> 129.11 | BE78: =SUM(الجدول4[[#This Row],[علاوة 2020]:[الاجر الوظيفي]]) -> 1844.46 | BF78: 120.66 | BG78: =SUM(الجدول4[[#This Row],[تشجيعية 2020]:[اجر وظيفي 2019]]) -> 1723.8 | BH78: 112.77 | BI78: 1611.03 | BJ78: 76.71 | BK78: 190 | BL78: 87.94 | BM78: 1256.38 | BN78: 77.14 | BO78: 77.14 | BP78: 1102.1 | BQ78: 72.1 | BR78: 1030 | BS78: 49.04 | BT78: 980.96 | BU78: 388.22 | BV78: 356.1702718 | BW78: 326.7617173 | BX78: 299.781392 | BY78: 275.0288 | BZ78: 252.32 | CD78: 21.65 | CE78: 189.17 | CF78: 390.22 | CG78: 348.42 | CH78: 189.5 | CI78: 179.4 | CJ78: 3115.44 | CK78: 10.1 | CM78: 1.27 | CN78: 145.32 | CO78: 7.57 | CP78: 25.24 | CQ78: 4 | CR78: 2 | CS78: 630.8 | CT78: 23.53 | CU78: 23.13 | CV78: 31.26 | CW78: 24.96 | CX78: 13.44 | CZ78: 0 | DG78: 1723.8 | DH78: نورا ابراهيم كامل رضوان
A79: ثالثة | B79: مدنى فارسكور | D79: =IF(E79<>"",SUBTOTAL(3,$E$1:E78),"") -> 14 | E79: ميادة رضا جاد الشافعي | F79: =الجدول4[[#This Row],[الجملة]]-الجدول4[[#This Row],[الاستقطاعات]] -> 4480.48 | G79: =SUM(مدنى!$H79:$AI79) -> 1154.55 | H79: 26.75 | I79: 29.12 | J79: =TRUNC((الجدول4[[#This Row],[الجملة]]-SUM(Z79:AF79,H79:I79))*1%,2) -> 45.58 | W79: 10 | X79: 22.71 | Z79: =مدنى!$AN79 -> 36.12 | AA79: =مدنى!$AN79 -> 36.12 | AB79: 325.08 | AC79: =مدنى!$AL79 -> 108.36 | AD79: =مدنى!$AM79 -> 45.15 | AE79: =مدنى!$AN79 -> 36.12 | AF79: =مدنى!$AO79 -> 433.44 | AJ79: 5635.03 | AL79: 108.36 | AM79: 45.15 | AN79: 36.12 | AO79: 433.44 | AP79: 2945.88 | AQ79: =IF(مدنى!$A79="مدير عام",350)+IF(مدنى!$A79="اولى",325)+IF(مدنى!$A79="ثانية",275)+IF(مدنى!$A79="ثالثة",225)+IF(مدنى!$A79="رابعة",175)+IF(مدنى!$A79="خامسة",175)+IF(مدنى!$A79="سادسة",175) -> 225 | AR79: 232.4 | AS79: 2488.48 | AT79: 340 | AW79: 200 | AX79: 150 | AY79: 1400 | AZ79: 378.48 | BA79: 500 | BB79: 200 | BC79: =SUM(مدنى!$BD79:$BE79) -> 2066.08 | BD79: =TRUNC(الجدول4[[#This Row],[اجر وظيفي 2021]]*7%,2) -> 135.16 | BE79: =SUM(الجدول4[[#This Row],[علاوة 2020]:[الاجر الوظيفي]]) -> 1930.92 | BF79: 126.32 | BG79: =SUM(الجدول4[[#This Row],[تشجيعية 2020]:[اجر وظيفي 2019]]) -> 1804.6 | BH79: 118.05 | BI79: 1686.55 | BJ79: 80.31 | BK79: 190 | BL79: 92.65 | BM79: 1323.59 | BN79: 81.27 | BO79: 81.27 | BP79: 1161.05 | BQ79: 75.95 | BR79: 1085.1 | BS79: 49.04 | BT79: 980.96 | BU79: 388.22 | BV79: 356.1702718 | BW79: 326.7617173 | BX79: 299.781392 | BY79: 275.0288 | BZ79: 252.32 | CD79: 21.65 | CE79: 189.17 | CF79: 390.22 | CG79: 357.71 | CH79: 189.5 | CI79: 179.4 | CJ79: 3115.44 | CK79: 10.1 | CM79: 1.27 | CN79: 145.32 | CO79: 7.57 | CP79: 25.24 | CQ79: 4 | CR79: 2 | CS79: 630.8 | CT79: 23.53 | CU79: 23.13 | CV79: 31.26 | CW79: 24.96 | CX79: 13.44 | CZ79: 0 | DG79: 1804.6 | DH79: ميادة رضا جاد الشافعي
A80: ثالثة | B80: مدنى فارسكور | D80: =IF(E80<>"",SUBTOTAL(3,$E$1:E79),"") -> 14 | E80: عزة ابراهيم احمد العيسوي | F80: =الجدول4[[#This Row],[الجملة]]-الجدول4[[#This Row],[الاستقطاعات]] -> 4301.1 | G80: =SUM(مدنى!$H80:$AI80) -> 1087.11 | H80: 25.15 | I80: 24.48 | J80: =TRUNC((الجدول4[[#This Row],[الجملة]]-SUM(Z80:AF80,H80:I80))*1%,2) -> 43.77 | W80: 10 | X80: 22.77 | Z80: =مدنى!$AN80 -> 34.02 | AA80: =مدنى!$AN80 -> 34.02 | AB80: 306.13 | AC80: =مدنى!$AL80 -> 102.05 | AD80: =مدنى!$AM80 -> 42.52 | AE80: =مدنى!$AN80 -> 34.02 | AF80: =مدنى!$AO80 -> 408.18 | AJ80: =SUM(AK80:AP80,BC80) -> 5388.21 | AL80: 102.05 | AM80: 42.52 | AN80: 34.02 | AO80: 408.18 | AP80: =SUM(AQ80:AS80) -> 2945.16 | AQ80: =IF(مدنى!$A80="مدير عام",350)+IF(مدنى!$A80="اولى",325)+IF(مدنى!$A80="ثانية",275)+IF(مدنى!$A80="ثالثة",225)+IF(مدنى!$A80="رابعة",175)+IF(مدنى!$A80="خامسة",175)+IF(مدنى!$A80="سادسة",175) -> 225 | AR80: 230.66 | AS80: 2489.5 | AT80: 340 | AW80: 200 | AX80: 150 | AY80: 1400 | AZ80: 379.5 | BA80: 500 | BB80: 200 | BC80: =SUM(مدنى!$BD80:$BE80) -> 1856.28 | BD80: =TRUNC(الجدول4[[#This Row],[اجر وظيفي 2021]]*7%,2) -> 121.43 | BE80: =SUM(الجدول4[[#This Row],[علاوة 2020]:[الاجر الوظيفي]]) -> 1734.85 | BF80: 113.49 | BG80: =SUM(الجدول4[[#This Row],[تشجيعية 2020]:[اجر وظيفي 2019]]) -> 1621.36 | BH80: 106.07 | BI80: 1515.29 | BJ80: 72.15 | BK80: 190 | BL80: 81.98 | BM80: 1171.16 | BN80: 71.91 | BO80: 71.91 | BP80: 1027.34 | BQ80: 67.2 | BR80: 960.14 | BS80: 45.72 | BT80: 914.42 | BU80: 389.25 | BV80: 357.119098 | BW80: 327.6322 | BX80: 300.58 | BY80: 275.77 | BZ80: 253 | CD80: 21.25 | CE80: 183.31 | CF80: 377.42 | CG80: 336.05 | CH80: 182.86 | CI80: 172.86 | CJ80: 3049.92 | CK80: 10 | CM80: 1.27 | CN80: 138.7 | CO80: 7.59 | CP80: 25.3 | CQ80: 4 | CR80: 2 | CS80: 632.5 | CT80: 24.42 | CU80: 4.8 | CV80: 7.2 | CW80: 7.2 | CX80: 4.8 | CZ80: 0 | DG80: 1621.36 | DH80: عزة ابراهيم احمد العيسوي
A81: ثانية | B81: مدنى فارسكور | D81: =IF(E81<>"",SUBTOTAL(3,$E$1:E80),"") -> 14 | E81: فهيمة عطية عبده سرحان | F81: =الجدول4[[#This Row],[الجملة]]-الجدول4[[#This Row],[الاستقطاعات]] -> 4995.31 | G81: =SUM(مدنى!$H81:$AI81) -> 1394.3 | H81: 31.55 | I81: 78.73 | J81: =TRUNC((الجدول4[[#This Row],[الجملة]]-SUM(Z81:AF81,H81:I81))*1%,2) -> 50.77 | X81: 31.03 | Z81: =مدنى!$AN81 -> 42.56 | AA81: =مدنى!$AN81 -> 42.56 | AB81: 383 | AC81: =مدنى!$AL81 -> 127.67 | AD81: =مدنى!$AM81 -> 53.2 | AE81: =مدنى!$AN81 -> 42.56 | AF81: =مدنى!$AO81 -> 510.67 | AJ81: 6389.61 | AL81: 127.67 | AM81: 53.2 | AN81: 42.56 | AO81: 510.67 | AP81: 3254.77 | AQ81: =IF(مدنى!$A81="مدير عام",350)+IF(مدنى!$A81="اولى",325)+IF(مدنى!$A81="ثانية",275)+IF(مدنى!$A81="ثالثة",225)+IF(مدنى!$A81="رابعة",175)+IF(مدنى!$A81="خامسة",175)+IF(مدنى!$A81="سادسة",175) -> 275 | AR81: 262.66 | AS81: 2717.11 | AT81: 300 | AW81: 250 | AX81: 150 | AY81: 1400 | AZ81: 517.11 | BA81: 500 | BB81: 200 | BC81: =SUM(مدنى!$BD81:$BE81) -> 2400.74 | BD81: =TRUNC(الجدول4[[#This Row],[اجر وظيفي 2021]]*7%,2) -> 157.05 | BE81: =SUM(الجدول4[[#This Row],[علاوة 2020]:[الاجر الوظيفي]]) -> 2243.69 | BF81: 146.78 | BG81: =SUM(الجدول4[[#This Row],[تشجيعية 2020]:[اجر وظيفي 2019]]) -> 2096.91 | BH81: 130.64 | BI81: 1866.42 | BJ81: 88.87 | BK81: 190 | BL81: 103.85 | BM81: 1483.7 | BN81: 91.1 | BO81: 91.1 | BP81: 1301.5 | BQ81: 85.14 | BR81: 1216.36 | BS81: 57.92 | BT81: 1158.44 | BU81: 530.39 | BV81: 486.6 | BW81: 446.43 | BX81: 409.57 | BY81: 375.76 | BZ81: 344.74 | CD81: 24.05 | CE81: 225.57 | CF81: 467.87 | CG81: 408.84 | CH81: 230.3 | CI81: 218.25 | CJ81: 3471.55 | CK81: 12.05 | CM81: 1.73 | CN81: 171.69 | CO81: 10.35 | CP81: 34.48 | CQ81: 4 | CR81: 2 | CS81: 861.85 | CT81: 32 | CU81: 31.6 | CV81: 37.41 | CW81: 30.81 | CX81: 17.14 | CZ81: 0 | DE81: =TRUNC(الجدول4[[#This Row],[اجر وظيفي 2019]]*5%,2) -> 99.85 | DG81: 1997.06 | DH81: فهيمة عطية عبده سرحان
A82: ثالثة | B82: مدنى فارسكور | D82: =IF(E82<>"",SUBTOTAL(3,$E$1:E81),"") -> 14 | E82: امانى عادل صابر غريب | F82: =الجدول4[[#This Row],[الجملة]]-الجدول4[[#This Row],[الاستقطاعات]] -> 4297.41 | G82: =SUM(مدنى!$H82:$AI82) -> 1071.6 | H82: 25.05 | I82: 24.12 | J82: =TRUNC((الجدول4[[#This Row],[الجملة]]-SUM(Z82:AF82,H82:I82))*1%,2) -> 43.63 | X82: 22.5 | Z82: =مدنى!$AN82 -> 33.85 | AA82: =مدنى!$AN82 -> 33.85 | AB82: 304.66 | AC82: =مدنى!$AL82 -> 101.56 | AD82: =مدنى!$AM82 -> 42.32 | AE82: =مدنى!$AN82 -> 33.85 | AF82: =مدنى!$AO82 -> 406.21 | AJ82: 5369.01 | AL82: 101.56 | AM82: 42.32 | AN82: 33.85 | AO82: 406.21 | AP82: 2939.91 | AQ82: =IF(مدنى!$A82="مدير عام",350)+IF(مدنى!$A82="اولى",325)+IF(مدنى!$A82="ثانية",275)+IF(مدنى!$A82="ثالثة",225)+IF(مدنى!$A82="رابعة",175)+IF(مدنى!$A82="خامسة",175)+IF(مدنى!$A82="سادسة",175) -> 225 | AR82: 229.91 | AS82: 2485 | AT82: 340 | AW82: 200 | AX82: 150 | AY82: 1400 | AZ82: 375 | BA82: 500 | BB82: 200 | BC82: =SUM(مدنى!$BD82:$BE82) -> 1845.16 | BD82: =TRUNC(الجدول4[[#This Row],[اجر وظيفي 2021]]*7%,2) -> 120.71 | BE82: =SUM(الجدول4[[#This Row],[علاوة 2020]:[الاجر الوظيفي]]) -> 1724.45 | BF82: 112.81 | BG82: =SUM(الجدول4[[#This Row],[تشجيعية 2020]:[اجر وظيفي 2019]]) -> 1611.64 | BH82: 105.43 | BI82: 1506.21 | BJ82: 71.72 | BK82: 190 | BL82: 81.41 | BM82: 1163.08 | BN82: 71.41 | BO82: 71.41 | BP82: 1020.26 | BQ82: 66.74 | BR82: 953.52 | BS82: 45.4 | BT82: 908.12 | BU82: 384.64 | BV82: 352.889462 | BW82: 323.7518 | BX82: 297.02 | BY82: 272.5 | BZ82: 250 | CD82: 21.15 | CE82: 182.38 | CF82: 375.2 | CG82: 334.35 | CH82: 181.62 | CI82: 171.67 | CJ82: 3039.12 | CK82: 9.95 | CM82: 1.25 | CN82: 137.92 | CO82: 7.5 | CP82: 25 | CQ82: 4 | CR82: 2 | CS82: 625 | CT82: 24.12 | CU82: 4.8 | CV82: 7.2 | CW82: 7.2 | CX82: 4.8 | CZ82: 0 | DG82: 1611.64 | DH82: امانى عادل صابر غريب
A83: ثالثة | B83: مدنى فارسكور | D83: =IF(E83<>"",SUBTOTAL(3,$E$1:E82),"") -> 14 | E83: ايمان سعد يوسف برتخ | F83: =الجدول4[[#This Row],[الجملة]]-الجدول4[[#This Row],[الاستقطاعات]] -> 4399.7 | G83: =SUM(مدنى!$H83:$AI83) -> 1093.71 | H83: 25.85 | I83: 27.03 | J83: =TRUNC((الجدول4[[#This Row],[الجملة]]-SUM(Z83:AF83,H83:I83))*1%,2) -> 44.54 | W83: 10 | Z83: =مدنى!$AN83 -> 34.92 | AA83: =مدنى!$AN83 -> 34.92 | AB83: 314.21 | AC83: =مدنى!$AL83 -> 104.74 | AD83: =مدنى!$AM83 -> 43.64 | AE83: =مدنى!$AN83 -> 34.92 | AF83: =مدنى!$AO83 -> 418.94 | AJ83: 5493.41 | AL83: 104.74 | AM83: 43.64 | AN83: 34.92 | AO83: 418.94 | AP83: 2951.78 | AQ83: =IF(مدنى!$A83="مدير عام",350)+IF(مدنى!$A83="اولى",325)+IF(مدنى!$A83="ثانية",275)+IF(مدنى!$A83="ثالثة",225)+IF(مدنى!$A83="رابعة",175)+IF(مدنى!$A83="خامسة",175)+IF(مدنى!$A83="سادسة",175) -> 225 | AR83: 235.78 | AS83: 2491 | AT83: 340 | AW83: 200 | AX83: 150 | AY83: 1400 | AZ83: 381 | BA83: 500 | BB83: 200 | BC83: =SUM(مدنى!$BD83:$BE83) -> 1939.39 | BD83: =TRUNC(الجدول4[[#This Row],[اجر وظيفي 2021]]*7%,2) -> 126.87 | BE83: =SUM(الجدول4[[#This Row],[علاوة 2020]:[الاجر الوظيفي]]) -> 1812.52 | BF83: 118.57 | BG83: =SUM(الجدول4[[#This Row],[تشجيعية 2020]:[اجر وظيفي 2019]]) -> 1693.95 | BH83: 110.81 | BI83: 1583.14 | BJ83: 75.38 | BK83: 190 | BL83: 86.2 | BM83: 1231.56 | BN83: 75.62 | BO83: 75.62 | BP83: 1080.32 | BQ83: 70.67 | BR83: 1009.65 | BS83: 48.07 | BT83: 961.58 | BU83: 390.8 | BV83: 358.532937 | BW83: 328.9293 | BX83: 301.77 | BY83: 276.86 | BZ83: 254 | CD83: 21.55 | CE83: 189.93 | CF83: 389.23 | CG83: 345.34 | CH83: 187.8 | CI83: 177.75 | CJ83: 3098.58 | CK83: 10.05 | CM83: 1.27 | CN83: 143.46 | CO83: 7.62 | CP83: 25.4 | CQ83: 4 | CR83: 2 | CS83: 635 | CT83: 24.52 | CU83: 24.12 | CV83: 32.94 | CW83: 7.2 | CX83: 4.8 | CZ83: 0 | DG83: 1693.95 | DH83: ايمان سعد يوسف برتخ
A84: ثانية | B84: مدنى فارسكور | D84: =IF(E84<>"",SUBTOTAL(3,$E$1:E83),"") -> 14 | E84: عاطف مجدى حلمي راشد | F84: =الجدول4[[#This Row],[الجملة]]-الجدول4[[#This Row],[الاستقطاعات]] -> 4717.73 | G84: =SUM(مدنى!$H84:$AI84) -> 1250.11 | H84: 28.85 | I84: 47.56 | J84: =TRUNC((الجدول4[[#This Row],[الجملة]]-SUM(Z84:AF84,H84:I84))*1%,2) -> 47.9 | X84: 25.21 | Z84: =مدنى!$AN84 -> 38.96 | AA84: =مدنى!$AN84 -> 38.96 | AB84: 350.63 | AC84: =مدنى!$AL84 -> 116.88 | AD84: =مدنى!$AM84 -> 48.7 | AE84: =مدنى!$AN84 -> 38.96 | AF84: =مدنى!$AO84 -> 467.5 | AJ84: 5967.84 | AL84: 116.88 | AM84: 48.7 | AN84: 38.96 | AO84: 467.5 | AP84: 3096.89 | AQ84: =IF(مدنى!$A84="مدير عام",350)+IF(مدنى!$A84="اولى",325)+IF(مدنى!$A84="ثانية",275)+IF(مدنى!$A84="ثالثة",225)+IF(مدنى!$A84="رابعة",175)+IF(مدنى!$A84="خامسة",175)+IF(مدنى!$A84="سادسة",175) -> 275 | AR84: 241.77 | AS84: 2580.12 | AT84: 340 | AW84: 250 | AX84: 150 | AY84: 1400 | AZ84: 420.12 | BA84: 500 | BB84: 200 | BC84: =SUM(مدنى!$BD84:$BE84) -> 2198.91 | BD84: =TRUNC(الجدول4[[#This Row],[اجر وظيفي 2021]]*7%,2) -> 143.85 | BE84: =SUM(الجدول4[[#This Row],[علاوة 2020]:[الاجر الوظيفي]]) -> 2055.06 | BF84: 134.44 | BG84: =SUM(الجدول4[[#This Row],[تشجيعية 2020]:[اجر وظيفي 2019]]) -> 1920.62 | BH84: 125.64 | BI84: 1794.98 | BJ84: 85.47 | BK84: 190 | BL84: 99.4 | BM84: 1420.11 | BN84: 83.04 | BO84: 83.04 | BP84: 1186.41 | BQ84: 77.61 | BR84: 1108.8 | BS84: 52.56 | BT84: 1051.24 | BU84: 430.92 | BV84: 395.340275 | BW84: 362.6975 | BX84: 332.75 | BY84: 305.28 | BZ84: 280.08 | CD84: 22.45 | CE84: 199.18 | CF84: 413.58 | CG84: 382.47 | CH84: 202.65 | CI84: 191.95 | CJ84: 3231.36 | CK84: 10.7 | CM84: 1.4 | CN84: 154.13 | CO84: 8.41 | CP84: 28.01 | CQ84: 4 | CR84: 6 | CS84: 700.2 | CT84: 26.12 | CU84: 25.72 | CV84: 34.74 | CW84: 28.74 | CX84: 15.76 | CY84: 5 | CZ84: 67.62 | DA84: 1352.49 | DG84: 1920.62 | DH84: عاطف مجدى حلمي راشد
A85: ثانية | B85: مدنى فارسكور | D85: =IF(E85<>"",SUBTOTAL(3,$E$1:E84),"") -> 14 | E85: امانى رشاد محمد القزاز | F85: =الجدول4[[#This Row],[الجملة]]-الجدول4[[#This Row],[الاستقطاعات]] -> 4887.9 | G85: =SUM(مدنى!$H85:$AI85) -> 1341.18 | H85: 30.55 | I85: 66.67 | J85: =TRUNC((الجدول4[[#This Row],[الجملة]]-SUM(Z85:AF85,H85:I85))*1%,2) -> 49.68 | X85: 30.74 | Z85: =مدنى!$AN85 -> 41.19 | AA85: =مدنى!$AN85 -> 41.19 | AB85: 370.68 | AC85: =مدنى!$AL85 -> 123.56 | AD85: =مدنى!$AM85 -> 51.49 | AE85: =مدنى!$AN85 -> 41.19 | AF85: =مدنى!$AO85 -> 494.24 | AJ85: 6229.08 | AL85: 123.56 | AM85: 51.49 | AN85: 41.19 | AO85: 494.24 | AP85: 3248.59 | AQ85: =IF(مدنى!$A85="مدير عام",350)+IF(مدنى!$A85="اولى",325)+IF(مدنى!$A85="ثانية",275)+IF(مدنى!$A85="ثالثة",225)+IF(مدنى!$A85="رابعة",175)+IF(مدنى!$A85="خامسة",175)+IF(مدنى!$A85="سادسة",175) -> 275 | AR85: 261.25 | AS85: 2712.34 | AT85: 300 | AW85: 250 | AX85: 150 | AY85: 1400 | AZ85: 512.34 | BA85: 500 | BB85: 200 | BC85: =SUM(مدنى!$BD85:$BE85) -> 2270.01 | BD85: =TRUNC(الجدول4[[#This Row],[اجر وظيفي 2021]]*7%,2) -> 148.5 | BE85: =SUM(الجدول4[[#This Row],[علاوة 2020]:[الاجر الوظيفي]]) -> 2121.51 | BF85: 138.79 | BG85: =SUM(الجدول4[[#This Row],[تشجيعية 2020]:[اجر وظيفي 2019]]) -> 1982.72 | BH85: 129.71 | BI85: 1853.01 | BJ85: 88.23 | BK85: 190 | BL85: 103.02 | BM85: 1471.76 | BN85: 90.37 | BO85: 90.37 | BP85: 1291.02 | BQ85: 84.45 | BR85: 1206.57 | BS85: 57.45 | BT85: 1149.12 | BU85: 525.52 | BV85: 482.13098 | BW85: 442.322 | BX85: 405.8 | BY85: 372.3 | BZ85: 341.56 | CD85: 23.95 | CE85: 223.74 | CF85: 464.4 | CG85: 406.48 | CH85: 228.61 | CI85: 216.71 | CJ85: 3457.46 | CK85: 11.9 | CM85: 1.71 | CN85: 170.59 | CO85: 10.25 | CP85: 34.16 | CQ85: 4 | CR85: 2 | CS85: 853.9 | CT85: 31.68 | CU85: 31.28 | CV85: 36.54 | CW85: 29.94 | CX85: 16.56 | CZ85: 0 | DG85: 1982.72 | DH85: امانى رشاد محمد القزاز
A86: اولى | D86: =IF(E86<>"",SUBTOTAL(3,$E$1:E85),"") -> 14 | E86: محمد عبد الباقى زيادة اسماعيل | F86: =الجدول4[[#This Row],[الجملة]]-الجدول4[[#This Row],[الاستقطاعات]] -> 5237.16 | G86: =SUM(مدنى!$H86:$AI86) -> 1471.4 | H86: 33.6 | I86: 105.84 | J86: =TRUNC((الجدول4[[#This Row],[الجملة]]-SUM(Z86:AF86,H86:I86))*1%,2) -> 52.9 | Z86: =مدنى!$AN86 -> 45.28 | AA86: =مدنى!$AN86 -> 45.28 | AB86: 407.48 | AC86: =مدنى!$AL86 -> 135.83 | AD86: =مدنى!$AM86 -> 56.6 | AE86: =مدنى!$AN86 -> 45.28 | AF86: =مدنى!$AO86 -> 543.31 | AJ86: 6708.56 | AL86: 135.83 | AM86: 56.6 | AN86: 45.28 | AO86: 543.31 | AP86: 3410.7 | AQ86: =IF(مدنى!$A86="مدير عام",350)+IF(مدنى!$A86="اولى",325)+IF(مدنى!$A86="ثانية",275)+IF(مدنى!$A86="ثالثة",225)+IF(مدنى!$A86="رابعة",175)+IF(مدنى!$A86="خامسة",175)+IF(مدنى!$A86="سادسة",175) -> 325 | AR86: 278.96 | AS86: 2806.74 | AT86: 300 | AW86: 300 | AX86: 150 | AY86: 1400 | AZ86: 556.74 | BA86: 500 | BB86: 200 | BC86: =SUM(مدنى!$BD86:$BE86) -> 2516.84 | BD86: =TRUNC(الجدول4[[#This Row],[اجر وظيفي 2021]]*7%,2) -> 164.65 | BE86: =SUM(الجدول4[[#This Row],[علاوة 2020]:[الاجر الوظيفي]]) -> 2352.19 | BF86: 153.88 | BG86: =SUM(الجدول4[[#This Row],[تشجيعية 2020]:[اجر وظيفي 2019]]) -> 2198.31 | BH86: 136.96 | BI86: 1956.67 | BJ86: 93.17 | BK86: 190 | BL86: 109.48 | BM86: 1564.02 | BN86: 96.03 | BO86: 96.03 | BP86: 1371.96 | BQ86: 89.75 | BR86: 1282.21 | BS86: 61.058 | BT86: 1221.16 | BU86: 571.06 | BV86: 523.916457 | BW86: 480.6573 | BX86: 440.97 | BY86: 404.56 | BZ86: 371.16 | CD86: 24.75 | CE86: 243.8 | CF86: 497.94 | CG86: 431.85 | CH86: 241.64 | CI86: 229.39 | CJ86: 3573.9 | CK86: 12.25 | CM86: 1.85 | CN86: 179.28 | CO86: 11.14 | CP86: 37.12 | CQ86: 4 | CR86: 2 | CS86: 927.9 | CT86: 36.52 | CU86: 35.08 | CV86: 37.74 | CW86: 31.74 | CX86: 17.76 | CZ86: 0 | DF86: =TRUNC(الجدول4[[#This Row],[اجر وظيفي 2019]]*5%,2) -> 104.68 | DG86: 2093.63 | DH86: محمد عبد الباقى زيادة اسماعيل
A87: مدير عام | B87: مدنى فارسكور | D87: =IF(E87<>"",SUBTOTAL(3,$E$1:E86),"") -> 15 | E87: عزة محمد محمد معوض | F87: =الجدول4[[#This Row],[الجملة]]-الجدول4[[#This Row],[الاستقطاعات]] -> 6187.82 | G87: =SUM(مدنى!$H87:$AI87) -> 2057.09 | H87: 43.45 | I87: 245.74 | J87: =TRUNC((الجدول4[[#This Row],[الجملة]]-SUM(Z87:AF87,H87:I87))*1%,2) -> 63.06 | X87: 55.62 | Z87: =مدنى!$AN87 -> 58.38 | AA87: =مدنى!$AN87 -> 58.38 | AB87: 525.41 | AC87: =مدنى!$AL87 -> 175.14 | AD87: =مدنى!$AM87 -> 72.98 | AE87: =مدنى!$AN87 -> 58.38 | AF87: =مدنى!$AO87 -> 700.55 | AJ87: 8244.91 | AL87: 175.14 | AM87: 72.98 | AN87: 58.38 | AO87: 700.55 | AP87: 4170.15 | AQ87: =IF(مدنى!$A87="مدير عام",350)+IF(مدنى!$A87="اولى",325)+IF(مدنى!$A87="ثانية",275)+IF(مدنى!$A87="ثالثة",225)+IF(مدنى!$A87="رابعة",175)+IF(مدنى!$A87="خامسة",175)+IF(مدنى!$A87="سادسة",175) -> 350 | AR87: 379.23 | AS87: 3440.92 | AT87: 170 | AW87: 325 | AX87: 150 | AY87: 1400 | AZ87: 926.94 | BA87: 500 | BB87: 308.98 | BC87: =SUM(مدنى!$BD87:$BE87) -> 3067.71 | BD87: =TRUNC(الجدول4[[#This Row],[اجر وظيفي 2021]]*7%,2) -> 200.69 | BE87: =SUM(الجدول4[[#This Row],[علاوة 2020]:[الاجر الوظيفي]]) -> 2867.02 | BF87: 187.56 | BG87: =SUM(الجدول4[[#This Row],[تشجيعية 2020]:[اجر وظيفي 2019]]) -> 2679.46 | BH87: 175.29 | BI87: 2504.17 | BK87: 180 | BL87: 152.04 | BM87: 2172.13 | BN87: 130 | BO87: 133.59 | BP87: 1908.54 | BQ87: 124.85 | BR87: 1783.69 | BS87: 84.93 | BT87: 1698.76 | BU87: 950.79 | BV87: 872.291139 | BW87: 800.2671 | BX87: 734.19 | BY87: 673.57 | BZ87: 617.96 | CD87: 32.6 | CE87: 391.44 | CF87: 690.47 | CG87: 581.61 | CH87: 322.65 | CI87: 266.43 | CJ87: 4658.6825 | CK87: 18.65 | CL87: 37.57 | CM87: 3.09 | CN87: 183 | CO87: 18.54 | CP87: 61.8 | CQ87: 4 | CS87: 1544.9 | CT87: 57.52 | CU87: 57.02 | CV87: 65.0925 | CW87: 58.94 | CX87: 34.27 | CZ87: 0 | DG87: 2679.46 | DH87: عزة محمد محمد معوض
A88: اولى | B88: مدنى فارسكور | D88: =IF(E88<>"",SUBTOTAL(3,$E$1:E87),"") -> 15 | E88: كفاية شوقى محمد رزق الله | F88: =الجدول4[[#This Row],[الجملة]]-الجدول4[[#This Row],[الاستقطاعات]] -> 6199 | G88: =SUM(مدنى!$H88:$AI88) -> 2063.58 | H88: 43.55 | I88: 247.73 | J88: =TRUNC((الجدول4[[#This Row],[الجملة]]-SUM(Z88:AF88,H88:I88))*1%,2) -> 63.17 | X88: 55.65 | Z88: =مدنى!$AN88 -> 58.53 | AA88: =مدنى!$AN88 -> 58.53 | AB88: 526.77 | AC88: =مدنى!$AL88 -> 175.59 | AD88: =مدنى!$AM88 -> 73.17 | AE88: =مدنى!$AN88 -> 58.53 | AF88: =مدنى!$AO88 -> 702.36 | AJ88: 8262.58 | AL88: 175.59 | AM88: 73.17 | AN88: 58.53 | AO88: 702.36 | AP88: 4036.78 | AQ88: =IF(مدنى!$A88="مدير عام",350)+IF(مدنى!$A88="اولى",325)+IF(مدنى!$A88="ثانية",275)+IF(مدنى!$A88="ثالثة",225)+IF(مدنى!$A88="رابعة",175)+IF(مدنى!$A88="خامسة",175)+IF(مدنى!$A88="سادسة",175) -> 325 | AR88: 380.26 | AS88: 3331.52 | AT88: 255 | AW88: 300 | AX88: 150 | AY88: 1400 | AZ88: 927.39 | BA88: 500 | BB88: 309.13 | BC88: =SUM(مدنى!$BD88:$BE88) -> 3216.15 | BD88: =TRUNC(الجدول4[[#This Row],[اجر وظيفي 2021]]*7%,2) -> 210.4 | BE88: =SUM(الجدول4[[#This Row],[علاوة 2020]:[الاجر الوظيفي]]) -> 3005.75 | BF88: =TRUNC(BG88*7%,2) -> 196.63 | BG88: =SUM(الجدول4[[#This Row],[تشجيعية 2020]:[اجر وظيفي 2019]]) -> 2809.12 | BH88: 183.77 | BI88: 2625.35 | BK88: 190 | BL88: 159.32 | BM88: 2276.03 | BN88: 130 | BO88: 140.39 | BP88: 2005.64 | BQ88: 131.21 | BR88: 1874.43 | BS88: 89.25 | BT88: 1785.18 | BU88: 951.24 | BV88: 872.7 | BW88: 800.65 | BX88: 734.55 | BY88: 673.9 | BZ88: 618.26 | CD88: 32.6 | CE88: 392.03 | CF88: 691.11 | CG88: 584.94 | CH88: 321.82 | CI88: 266.48 | CJ88: 4662.7 | CK88: 18.6 | CL88: 36.74 | CM88: 3.1 | CN88: 183 | CO88: 18.55 | CP88: 61.83 | CQ88: 4 | CR88: 2 | CS88: 1545.65 | CT88: 57.66 | CU88: 57.16 | CV88: 65.78 | CW88: 58.88 | CX88: 34.18 | CZ88: 0 | DG88: 2809.12 | DH88: كفاية شوقى محمد رزق الله
A89: اولى | B89: مدنى فارسكور | D89: =IF(E89<>"",SUBTOTAL(3,$E$1:E88),"") -> 15 | E89: سحر سعد الدين طه فرج الله | F89: =الجدول4[[#This Row],[الجملة]]-الجدول4[[#This Row],[الاستقطاعات]] -> 5881.64 | G89: =SUM(مدنى!$H89:$AI89) -> 2159.07 | H89: 42.15 | I89: 193.29 | J89: =TRUNC((الجدول4[[#This Row],[الجملة]]-SUM(Z89:AF89,H89:I89))*1%,2) -> 62.05 | W89: 10 | X89: 50.72 | Y89: 199.66 | Z89: =مدنى!$AN89 -> 56.64 | AA89: =مدنى!$AN89 -> 56.64 | AB89: 509.74 | AC89: =مدنى!$AL89 -> 169.92 | AD89: =مدنى!$AM89 -> 70.8 | AE89: =مدنى!$AN89 -> 56.64 | AF89: =مدنى!$AO89 -> 679.65 | AG89: 1.17 | AJ89: 8040.71 | AL89: 169.92 | AM89: 70.8 | AN89: 56.64 | AO89: 679.65 | AP89: 3906.16 | AQ89: =IF(مدنى!$A89="مدير عام",350)+IF(مدنى!$A89="اولى",325)+IF(مدنى!$A89="ثانية",275)+IF(مدنى!$A89="ثالثة",225)+IF(مدنى!$A89="رابعة",175)+IF(مدنى!$A89="خامسة",175)+IF(مدنى!$A89="سادسة",175) -> 325 | AR89: 359.23 | AS89: 3221.93 | AT89: 255 | AW89: 300 | AX89: 150 | AY89: 1400 | AZ89: 845.2 | BA89: 500 | BB89: 281.73 | BC89: =SUM(مدنى!$BD89:$BE89) -> 3157.54 | BD89: =TRUNC(الجدول4[[#This Row],[اجر وظيفي 2021]]*7%,2) -> 206.56 | BE89: =SUM(الجدول4[[#This Row],[علاوة 2020]:[الاجر الوظيفي]]) -> 2950.98 | BF89: 193.05 | BG89: =SUM(الجدول4[[#This Row],[تشجيعية 2020]:[اجر وظيفي 2019]]) -> 2757.93 | BH89: 171.83 | BI89: 2454.77 | BK89: 190 | BL89: 148.16 | BM89: 2116.61 | BN89: 129.96 | BO89: 129.96 | BP89: 1856.69 | BQ89: 121.46 | BR89: 1735.23 | BS89: 82.63 | BT89: 1652.6 | BU89: 866.95 | BV89: 795.373545 | BW89: 729.7005 | BX89: 669.45 | BY89: 614.18 | BZ89: 563.47 | CD89: 30.85 | CE89: 327.39 | CF89: 617.32 | CG89: 549.09 | CH89: 299.69 | CI89: 259.08 | CJ89: 4418.53 | CK89: 17.25 | CL89: 23.36 | CM89: 2.82 | CN89: 183 | CO89: 16.91 | CP89: 56.35 | CQ89: 4 | CS89: 1408.67 | CT89: 52.97 | CU89: 52.47 | CV89: 60.51 | CW89: 53.61 | CX89: 31.1 | CZ89: 0 | DE89: =TRUNC(الجدول4[[#This Row],[اجر وظيفي 2019]]*5%,2) -> 131.33 | DG89: 2626.6 | DH89: سحر سعد الدين طه فرج الله
A90: اولى | B90: مدنى فارسكور | D90: =IF(E90<>"",SUBTOTAL(3,$E$1:E89),"") -> 15 | E90: ماجدة احمد ابراهيم مرسي | F90: =الجدول4[[#This Row],[الجملة]]-الجدول4[[#This Row],[الاستقطاعات]] -> 5571.66 | G90: =SUM(مدنى!$H90:$AI90) -> 1709.54 | H90: 37.25 | I90: 144.55 | J90: =TRUNC((الجدول4[[#This Row],[الجملة]]-SUM(Z90:AF90,H90:I90))*1%,2) -> 56.82 | W90: 10 | X90: 43.9 | Z90: =مدنى!$AN90 -> 50.16 | AA90: =مدنى!$AN90 -> 50.16 | AB90: 451.44 | AC90: =مدنى!$AL90 -> 150.48 | AD90: =مدنى!$AM90 -> 62.7 | AE90: =مدنى!$AN90 -> 50.16 | AF90: =مدنى!$AO90 -> 601.92 | AJ90: 7281.2 | AL90: 150.48 | AM90: 62.7 | AN90: 50.16 | AO90: 601.92 | AP90: 3726.28 | AQ90: =IF(مدنى!$A90="مدير عام",350)+IF(مدنى!$A90="اولى",325)+IF(مدنى!$A90="ثانية",275)+IF(مدنى!$A90="ثالثة",225)+IF(مدنى!$A90="رابعة",175)+IF(مدنى!$A90="خامسة",175)+IF(مدنى!$A90="سادسة",175) -> 325 | AR90: 330.92 | AS90: 3070.36 | AT90: 255 | AW90: 300 | AX90: 150 | AY90: 1400 | AZ90: 731.52 | BA90: 500 | BB90: 243.84 | BC90: =SUM(مدنى!$BD90:$BE90) -> 2689.66 | BD90: =TRUNC(الجدول4[[#This Row],[اجر وظيفي 2021]]*7%,2) -> 175.95 | BE90: =SUM(الجدول4[[#This Row],[علاوة 2020]:[الاجر الوظيفي]]) -> 2513.71 | BF90: 164.44 | BG90: =SUM(الجدول4[[#This Row],[تشجيعية 2020]:[اجر وظيفي 2019]]) -> 2349.27 | BH90: 153.69 | BI90: 2195.58 | BK90: 190 | BL90: 131.2 | BM90: 1874.38 | BN90: 115.09 | BO90: 115.09 | BP90: 1644.2 | BQ90: 107.56 | BR90: 1536.64 | BS90: 73.17 | BT90: 1463.47 | BU90: 750.35 | BV90: 688.397021 | BW90: 631.5569 | BX90: 579.41 | BY90: 531.57 | BZ90: 487.68 | CD90: 28.4 | CE90: 309.64 | CF90: 586.88 | CG90: 496.65 | CH90: 269.23 | CI90: 248.84 | CJ90: 4079.8315 | CK90: 15.45 | CL90: 4.94 | CM90: 2.44 | CN90: 183 | CO90: 14.63 | CP90: 48.77 | CQ90: 4 | CR90: 2 | CS90: 1219.2 | CT90: 45.34 | CU90: 44.84 | CV90: 51.3915 | CW90: 45.24 | CX90: 26.3 | CZ90: 0 | DG90: 2349.27 | DH90: ماجدة احمد ابراهيم مرسي
A91: اولى | D91: =IF(E91<>"",SUBTOTAL(3,$E$1:E90),"") -> 15 | E91: محمد محمد ربيع النجيري | F91: =الجدول4[[#This Row],[الجملة]]-الجدول4[[#This Row],[الاستقطاعات]] -> 4657.72 | G91: =SUM(مدنى!$H91:$AI91) -> 1881.78 | H91: 32.55 | I91: 74.79 | J91: =TRUNC((الجدول4[[#This Row],[الجملة]]-SUM(Z91:AF91,H91:I91))*1%,2) -> 51.93 | M91: 250 | V91: 41 | W91: 10 | X91: 31.48 | Y91: 151.69 | Z91: =مدنى!$AN91 -> 43.84 | AA91: =مدنى!$AN91 -> 43.84 | AB91: 394.51 | AC91: =مدنى!$AL91 -> 131.5 | AD91: =مدنى!$AM91 -> 54.8 | AE91: =مدنى!$AN91 -> 43.84 | AF91: =مدنى!$AO91 -> 526.01 | AJ91: 6539.5 | AL91: 131.5 | AM91: 54.8 | AN91: 43.84 | AO91: 526.01 | AP91: 3364.46 | AQ91: =IF(مدنى!$A91="مدير عام",350)+IF(مدنى!$A91="اولى",325)+IF(مدنى!$A91="ثانية",275)+IF(مدنى!$A91="ثالثة",225)+IF(مدنى!$A91="رابعة",175)+IF(مدنى!$A91="خامسة",175)+IF(مدنى!$A91="سادسة",175) -> 325 | AR91: 264.82 | AS91: 2774.64 | AT91: 300 | AW91: 300 | AX91: 150 | AY91: 1400 | AZ91: 524.64 | BA91: 500 | BB91: 200 | BC91: =SUM(مدنى!$BD91:$BE91) -> 2418.89 | BD91: =TRUNC(الجدول4[[#This Row],[اجر وظيفي 2021]]*7%,2) -> 158.24 | BE91: =SUM(الجدول4[[#This Row],[علاوة 2020]:[الاجر الوظيفي]]) -> 2260.65 | BF91: 147.89 | BG91: =SUM(الجدول4[[#This Row],[تشجيعية 2020]:[اجر وظيفي 2019]]) -> 2112.76 | BH91: 131.63 | BI91: 1880.45 | BJ91: =TRUNC((SUM(الجدول4[[#This Row],[علاوة دورية]:[اجر وظيفي]]))*5%,2) -> 89.54 | BK91: 190 | BL91: 104.73 | BM91: 1496.18 | BN91: 91.87 | BO91: 91.87 | BP91: 1312.44 | BQ91: 85.86 | BR91: 1226.58 | BS91: 58.4 | BT91: 1168.18 | BU91: 538.13 | BV91: 493.703074 | BW91: 452.9386 | BX91: 415.54 | BY91: 381.23 | BZ91: 349.76 | CD91: 24.2 | CE91: 206.32 | CF91: 450.86 | CG91: 417.18 | CH91: 232.49 | CI91: 220.34 | CJ91: 3490.82 | CK91: 12.15 | CM91: 1.75 | CN91: 173.11 | CO91: 10.5 | CP91: 34.98 | CQ91: 4 | CR91: 4 | CS91: 874.4 | CT91: 32.86 | CU91: 31.76 | CV91: 36.54 | CW91: 30.54 | CX91: 16.96 | CZ91: 0 | DF91: =TRUNC(الجدول4[[#This Row],[اجر وظيفي 2019]]*5%,2) -> 100.6 | DG91: 2012.16 | DH91: محمد محمد ربيع النجيري
A92: ثالثة | B92: مدنى فارسكور | D92: =IF(E92<>"",SUBTOTAL(3,$E$1:E91),"") -> 16 | E92: هيثم احمد محمد العدوى | F92: =الجدول4[[#This Row],[الجملة]]-الجدول4[[#This Row],[الاستقطاعات]] -> 4126.45 | G92: =SUM(مدنى!$H92:$AI92) -> 1192.92 | H92: 24.7 | I92: 23.19 | J92: =TRUNC((الجدول4[[#This Row],[الجملة]]-SUM(Z92:AF92,H92:I92))*1%,2) -> 43.27 | M92: 125 | W92: 10 | X92: 22.41 | Z92: =مدنى!$AN92 -> 33.43 | AA92: =مدنى!$AN92 -> 33.43 | AB92: 300.85 | AC92: =مدنى!$AL92 -> 100.29 | AD92: =مدنى!$AM92 -> 41.79 | AE92: =مدنى!$AN92 -> 33.43 | AF92: =مدنى!$AO92 -> 401.13 | AJ92: 5319.37 | AL92: 100.29 | AM92: 41.79 | AN92: 33.43 | AO92: 401.13 | AP92: 2935.14 | AQ92: =IF(مدنى!$A92="مدير عام",350)+IF(مدنى!$A92="اولى",325)+IF(مدنى!$A92="ثانية",275)+IF(مدنى!$A92="ثالثة",225)+IF(مدنى!$A92="رابعة",175)+IF(مدنى!$A92="خامسة",175)+IF(مدنى!$A92="سادسة",175) -> 225 | AR92: 228.64 | AS92: 2481.5 | AT92: 340 | AW92: 200 | AX92: 150 | AY92: 1400 | AZ92: 373.5 | BA92: 498 | BB92: 200 | BC92: =SUM(مدنى!$BD92:$BE92) -> 1807.59 | BD92: =TRUNC(الجدول4[[#This Row],[اجر وظيفي 2021]]*7%,2) -> 118.25 | BE92: =SUM(الجدول4[[#This Row],[علاوة 2020]:[الاجر الوظيفي]]) -> 1689.34 | BF92: 110.51 | BG92: =SUM(الجدول4[[#This Row],[تشجيعية 2020]:[اجر وظيفي 2019]]) -> 1578.83 | BH92: 103.28 | BI92: 1475.55 | BJ92: =TRUNC((SUM(الجدول4[[#This Row],[علاوة دورية]:[اجر وظيفي]]))*5%,2) -> 70.26 | BK92: 190 | BL92: 79.5 | BM92: 1135.79 | BN92: 69.74 | BO92: 69.74 | BP92: 996.31 | BQ92: 65.17 | BR92: 931.14 | BS92: 44.34 | BT92: 886.8 | BU92: 383.1 | BV92: 351.475623 | BW92: 322.4547 | BX92: 295.83 | BY92: 271.41 | BZ92: 249 | CD92: 21 | CE92: 180.54 | CF92: 371.09 | CG92: 329.96 | CH92: 179.45 | CI92: 169.55 | CJ92: 3018.3 | CK92: 9.9 | CL92: 0 | CM92: 1.25 | CN92: 135.93 | CO92: 7.47 | CP92: 24.9 | CQ92: 4 | CR92: 6 | CS92: 622.5 | CT92: 4.8 | CU92: 4.8 | CV92: 7.2 | CW92: 7.2 | CX92: 4.8 | CZ92: 0 | DG92: 1578.83 | DH92: هيثم احمد محمد العدوى
A93: ثالثة | B93: مدنى فارسكور | D93: =IF(E93<>"",SUBTOTAL(3,$E$1:E92),"") -> 16 | E93: ثروت عاطف حمدى عبد الرحيم | F93: =الجدول4[[#This Row],[الجملة]]-الجدول4[[#This Row],[الاستقطاعات]] -> 4502.3 | G93: =SUM(مدنى!$H93:$AI93) -> 1118.51 | H93: 26.65 | I93: 29.42 | J93: =TRUNC((الجدول4[[#This Row],[الجملة]]-SUM(Z93:AF93,H93:I93))*1%,2) -> 45.47 | Z93: =مدنى!$AN93 -> 36 | AA93: =مدنى!$AN93 -> 36 | AB93: 323.99 | AC93: =مدنى!$AL93 -> 108 | AD93: =مدنى!$AM93 -> 45 | AE93: =مدنى!$AN93 -> 36 | AF93: =مدنى!$AO93 -> 431.98 | AJ93: 5620.81 | AL93: 108 | AM93: 45 | AN93: 36 | AO93: 431.98 | AP93: 3060.44 | AQ93: =IF(مدنى!$A93="مدير عام",350)+IF(مدنى!$A93="اولى",325)+IF(مدنى!$A93="ثانية",275)+IF(مدنى!$A93="ثالثة",225)+IF(مدنى!$A93="رابعة",175)+IF(مدنى!$A93="خامسة",175)+IF(مدنى!$A93="سادسة",175) -> 225 | AR93: 244.44 | AS93: 2591 | AT93: 340 | AV93: 100 | AW93: 200 | AX93: 150 | AY93: 1400 | AZ93: 381 | BA93: 500 | BB93: 200 | BC93: =SUM(مدنى!$BD93:$BE93) -> 1939.39 | BD93: =TRUNC(الجدول4[[#This Row],[اجر وظيفي 2021]]*7%,2) -> 126.87 | BE93: =SUM(الجدول4[[#This Row],[علاوة 2020]:[الاجر الوظيفي]]) -> 1812.52 | BF93: 118.57 | BG93: =SUM(الجدول4[[#This Row],[تشجيعية 2020]:[اجر وظيفي 2019]]) -> 1693.95 | BH93: 110.81 | BI93: 1583.14 | BJ93: =TRUNC((SUM(الجدول4[[#This Row],[علاوة دورية]:[اجر وظيفي]]))*5%,2) -> 75.38 | BK93: 190 | BL93: 86.2 | BM93: 1231.56 | BN93: 75.62 | BO93: 75.62 | BP93: 1080.32 | BQ93: 70.67 | BR93: 1009.65 | BS93: 48.07 | BT93: 961.58 | BU93: 390.8 | BV93: 358.532937 | BW93: 328.9293 | BX93: 301.77 | BY93: 276.86 | BZ93: 254 | CD93: 22.2 | CE93: 198.69 | CF93: 408.44 | CG93: 357.28 | CH93: 198.35 | CI93: 187.55 | CJ93: 3196.58 | CK93: 10.8 | CM93: 1.27 | CN93: 153.26 | CO93: 7.62 | CP93: 25.4 | CQ93: 4 | CS93: 635 | CT93: 24.52 | CU93: 24.12 | CV93: 32.94 | CW93: 7.2 | CX93: 4.8 | CZ93: 0 | DG93: 1693.95 | DH93: ثروت عاطف حمدى عبد الرحيم
A94: اولى | D94: =IF(E94<>"",SUBTOTAL(3,$E$1:E93),"") -> 16 | E94: خالد احمد عبد السميع حسن | F94: =الجدول4[[#This Row],[الجملة]]-الجدول4[[#This Row],[الاستقطاعات]] -> 5095.24 | G94: =SUM(مدنى!$H94:$AI94) -> 1582.26 | H94: 33.2 | I94: 88.63 | J94: =TRUNC((الجدول4[[#This Row],[الجملة]]-SUM(Z94:AF94,H94:I94))*1%,2) -> 52.91 | L94: 7.1 | W94: 10 | X94: 33.06 | Z94: =مدنى!$AN94 -> 44.76 | AA94: =مدنى!$AN94 -> 44.76 | AB94: 402.8 | AC94: =مدنى!$AL94 -> 134.27 | AD94: =مدنى!$AM94 -> 55.95 | AE94: =مدنى!$AN94 -> 44.76 | AF94: =مدنى!$AO94 -> 537.06 | AI94: 93 | AJ94: 6677.5 | AK94: 30 | AL94: 134.27 | AM94: 55.95 | AN94: 44.76 | AO94: 537.06 | AP94: 3385.1 | AQ94: =IF(مدنى!$A94="مدير عام",350)+IF(مدنى!$A94="اولى",325)+IF(مدنى!$A94="ثانية",275)+IF(مدنى!$A94="ثالثة",225)+IF(مدنى!$A94="رابعة",175)+IF(مدنى!$A94="خامسة",175)+IF(مدنى!$A94="سادسة",175) -> 325 | AR94: 259.21 | AS94: 2800.89 | AT94: 300 | AW94: 300 | AX94: 150 | AY94: 1400 | AZ94: 550.89 | BA94: 500 | BB94: 200 | BC94: =SUM(مدنى!$BD94:$BE94) -> 2490.36 | BD94: =TRUNC(الجدول4[[#This Row],[اجر وظيفي 2021]]*7%,2) -> 162.92 | BE94: =SUM(الجدول4[[#This Row],[علاوة 2020]:[الاجر الوظيفي]]) -> 2327.44 | BF94: 152.26 | BG94: =SUM(الجدول4[[#This Row],[تشجيعية 2020]:[اجر وظيفي 2019]]) -> 2175.18 | BH94: 135.52 | BI94: 1936.08 | BJ94: =TRUNC((SUM(الجدول4[[#This Row],[علاوة دورية]:[اجر وظيفي]]))*5%,2) -> 92.19 | BK94: 190 | BL94: 108.19 | BM94: 1545.7 | BN94: 94.91 | BO94: 94.91 | BP94: 1355.88 | BQ94: 88.7 | BR94: 1267.18 | BS94: 60.34 | BT94: 1206.84 | BU94: 565.04 | BV94: 518.39 | BW94: 475.59 | BX94: 436.33 | BY94: 400.31 | BZ94: 367.26 | CD94: 24.65 | CE94: 223.28 | CF94: 471.99 | CG94: 426.45 | CH94: 236.46 | CI94: 224.06 | CJ94: 3557.73 | CK94: 12.4 | CM94: 1.79 | CN94: 175.73 | CO94: 10.74 | CP94: 35.8 | CQ94: 4 | CR94: 6 | CS94: 918.15 | CT94: 33.14 | CU94: 32.64 | CV94: 38.04 | CW94: 31.14 | CX94: 17.36 | CZ94: 0 | DF94: =TRUNC(الجدول4[[#This Row],[اجر وظيفي 2019]]*5%,2) -> 103.58 | DG94: 2071.6 | DH94: خالد احمد عبد السميع حسن
A95: مدير عام | B95: مدنى فارسكور | D95: =IF(E95<>"",SUBTOTAL(3,$E$1:E94),"") -> 17 | E95: عفت السيد السيد النادى | F95: =الجدول4[[#This Row],[الجملة]]-الجدول4[[#This Row],[الاستقطاعات]] -> 6609.09 | G95: =SUM(مدنى!$H95:$AI95) -> 2568.65 | H95: 49.4 | I95: 501.34 | J95: =TRUNC((الجدول4[[#This Row],[الجملة]]-SUM(Z95:AF95,H95:I95))*1%,2) -> 67.53 | W95: 10 | X95: 66.4 | Z95: =مدنى!$AN95 -> 66.34 | AA95: =مدنى!$AN95 -> 66.34 | AB95: 597.01 | AC95: =مدنى!$AL95 -> 199.01 | AD95: =مدنى!$AM95 -> 82.92 | AE95: =مدنى!$AN95 -> 66.34 | AF95: =مدنى!$AO95 -> 796.02 | AJ95: 9177.74 | AL95: 199.01 | AM95: 82.92 | AN95: 66.34 | AO95: 796.02 | AP95: 4351.92 | AQ95: =IF(مدنى!$A95="مدير عام",350)+IF(مدنى!$A95="اولى",325)+IF(مدنى!$A95="ثانية",275)+IF(مدنى!$A95="ثالثة",225)+IF(مدنى!$A95="رابعة",175)+IF(مدنى!$A95="خامسة",175)+IF(مدنى!$A95="سادسة",175) -> 350 | AR95: 406.48 | AS95: 3595.44 | AT95: 255 | AW95: 325 | AX95: 150 | AY95: 1400 | AZ95: 1106.58 | BA95: 500 | BB95: 368.86 | BC95: =SUM(مدنى!$BD95:$BE95) -> 3681.53 | BD95: =TRUNC(الجدول4[[#This Row],[اجر وظيفي 2021]]*7%,2) -> 240.84 | BE95: =SUM(الجدول4[[#This Row],[علاوة 2020]:[الاجر الوظيفي]]) -> 3440.69 | BF95: 225.09 | BG95: =SUM(الجدول4[[#This Row],[تشجيعية 2020]:[اجر وظيفي 2019]]) -> 3215.6 | BH95: 210.36 | BI95: 3005.24 | BK95: 180 | BL95: 184.82 | BM95: 2640.42 | BN95: 130 | BO95: 164.23 | BP95: 2346.19 | BQ95: 153.48 | BR95: 2192.71 | BS95: 104.12 | BT95: 2082.59 | BU95: 1135.04 | BV95: 1041.33 | BW95: 955.35 | BX95: 876.47 | BY95: 804.11 | BZ95: 737.72 | CD95: 36.5 | CE95: 467.55 | CF95: 786.66 | CG95: 664.7 | CH95: 369.63 | CI95: 282.61 | CJ95: 5197.03 | CK95: 21.45 | CL95: 65.57 | CM95: 3.69 | CN95: 183 | CO95: 22.14 | CP95: 73.78 | CQ95: 4 | CS95: 1844.3 | CT95: 69.34 | CU95: 68.84 | CV95: 78.9 | CW95: 72.75 | CX95: 42.32 | CY95: 6 | DG95: 3215.6 | DH95: عفت السيد السيد النادى
A96: ثانية | B96: مدنى فارسكور | D96: =IF(E96<>"",SUBTOTAL(3,$E$1:E95),"") -> 17 | E96: ياسر طاهر طاهر الجزار | F96: =الجدول4[[#This Row],[الجملة]]-الجدول4[[#This Row],[الاستقطاعات]] -> 4629.42 | G96: =SUM(مدنى!$H96:$AI96) -> 1204.56 | H96: 28 | I96: 37.65 | J96: =TRUNC((الجدول4[[#This Row],[الجملة]]-SUM(Z96:AF96,H96:I96))*1%,2) -> 47 | X96: 23.58 | Z96: =مدنى!$AN96 -> 37.82 | AA96: =مدنى!$AN96 -> 37.82 | AB96: 340.35 | AC96: =مدنى!$AL96 -> 113.45 | AD96: =مدنى!$AM96 -> 47.27 | AE96: =مدنى!$AN96 -> 37.82 | AF96: =مدنى!$AO96 -> 453.8 | AJ96: 5833.98 | AL96: 113.45 | AM96: 47.27 | AN96: 37.82 | AO96: 453.8 | AP96: 3072.44 | AQ96: =IF(مدنى!$A96="مدير عام",350)+IF(مدنى!$A96="اولى",325)+IF(مدنى!$A96="ثانية",275)+IF(مدنى!$A96="ثالثة",225)+IF(مدنى!$A96="رابعة",175)+IF(مدنى!$A96="خامسة",175)+IF(مدنى!$A96="سادسة",175) -> 275 | AR96: 244.44 | AS96: 2553 | AT96: 340 | AW96: 250 | AX96: 150 | AY96: 1400 | AZ96: 393 | BA96: 500 | BB96: 200 | BC96: =SUM(مدنى!$BD96:$BE96) -> 2109.2 | BD96: =TRUNC(الجدول4[[#This Row],[اجر وظيفي 2021]]*7%,2) -> 137.98 | BE96: =SUM(الجدول4[[#This Row],[علاوة 2020]:[الاجر الوظيفي]]) -> 1971.22 | BF96: 128.95 | BG96: =SUM(الجدول4[[#This Row],[تشجيعية 2020]:[اجر وظيفي 2019]]) -> 1842.27 | BH96: =TRUNC(BI96*7%,2) -> 120.52 | BI96: 1721.75 | BJ96: =(SUM(الجدول4[[#This Row],[علاوة دورية]:[اجر وظيفي]]))*5% -> 81.9885 | BK96: 190 | BL96: 94.84 | BM96: 1354.93 | BN96: 83.19 | BO96: 83.19 | BP96: 1188.55 | BQ96: 74.28 | BR96: 1061.21 | BS96: 50.53 | BT96: 1010.68 | BU96: 403.11 | BV96: 369.831768 | BW96: 339.2952 | BX96: 311.28 | BY96: 285.58 | BZ96: 262 | CD96: 22 | CE96: 193.36 | CF96: 399.9 | CG96: 370.56 | CH96: 194.84 | CI96: 184.54 | CJ96: 3163.68 | CK96: 10.3 | CM96: 1.31 | CN96: 149.17 | CO96: 7.86 | CP96: 26.2 | CQ96: 4 | CR96: 6 | CS96: 655 | CT96: 25.32 | CU96: 24.92 | CV96: 33.54 | CW96: 27.54 | CX96: 15.36 | CZ96: 0 | DG96: 1842.27 | DH96: ياسر طاهر طاهر الجزار
A97: اولى | D97: =IF(E97<>"",SUBTOTAL(3,$E$1:E96),"") -> 17 | E97: هانى محمد احمد متولى بدوى | F97: =الجدول4[[#This Row],[الجملة]]-الجدول4[[#This Row],[الاستقطاعات]] -> 5034.126245 | G97: =SUM(مدنى!$H97:$AI97) -> 1418.22 | H97: =CEILING((((BC97+AP97-1450))*0.75%),0.05) -> 31.95 | I97: =TRUNC(IF(((BC97+AP97)-H97-X97-Y97-Z97-AA97-AB97-AY97-AG97-AH97-AI97)*12<=24000,0, IF(((BC97+AP97)-H97-X97-Y97-Z97-AA97-AB97-AY97-AG97-AH97-AI97)*12-9000<=30000,(((BC97+AP97)-H97-X97-Y97-Z97-AA97-AB97-AY97-AG97-AH97-AI97)*12-24000)*2.5%, IF(((BC97+AP97)-H97-X97-Y97-Z97-AA97-AB97-AY97-AG97-AH97-AI97)*12-9000<=45000,(((BC97+AP97)-H97-X97-Y97-Z97-AA97-AB97-AY97-AG97-AH97-AI97)*12-39000)*10%+375, IF(((BC97+AP97)-H97-X97-Y97-Z97-AA97-AB97-AY97-AG97-AH97-AI97)*12-9000<=60000,(((BC97+AP97)-H97-X97-Y97-Z97-AA97-AB97-AY97-AG97-AH97-AI97)*12-54000)*15%+1875, IF(((BC97+AP97)-H97-X97-Y97-Z97-AA97-AB97-AY97-AG97-AH97-AI97)*12-9000<=200000,(((BC97+AP97)-H97-X97-Y97-Z97-AA97-AB97-AY97-AG97-AH97-AI97)*12-60000)*20%+4125, IF(((BC97+AP97)-H97-X97-Y97-Z97-AA97-AB97-AY97-AG97-AH97-AI97)*12-9000<=400000,(((BC97+AP97)-H97-X97-Y97-Z97-AA97-AB97-AY97-AG97-AH97-AI97)*12-200000)*22.5%+32125, IF(((BC97+AP97)-H97-X97-Y97-Z97-AA97-AB97-AY97-AG97-AH97-AI97)*12-9000<=600000,(((BC97+AP97)-H97-X97-Y97-Z97-AA97-AB97-AY97-AG97-AH97-AI97)*12-400000)*25%+77125, IF(((BC97+AP97)-H97-X97-Y97-Z97-AA97-AB97-AY97-AG97-AH97-AI97)*12-9000>600000,(((BC97+AP97)-H97-X97-Y97-Z97-AA97-AB97-AY97-AG97-AH97-AI97)*12-400000)*25%+77125 ))))))))/12,2) -> 84.19 | J97: =TRUNC((الجدول4[[#This Row],[الجملة]]-SUM(Z97:AF97,H97:I97))*1%,2) -> 51.18 | W97: 10 | X97: 23.58 | Z97: =مدنى!$AN97 -> 43.09 | AA97: =مدنى!$AN97 -> 43.09 | AB97: 387.82 | AC97: =مدنى!$AL97 -> 129.27 | AD97: =مدنى!$AM97 -> 53.87 | AE97: =مدنى!$AN97 -> 43.09 | AF97: =مدنى!$AO97 -> 517.09 | AJ97: =SUM(AK97:AP97,BC97) -> 6452.346245 | AL97: 129.27 | AM97: 53.87 | AN97: 43.09 | AO97: 517.09 | AP97: =SUM(AQ97:AS97) -> 3306.33 | AQ97: =IF(مدنى!$A97="مدير عام",350)+IF(مدنى!$A97="اولى",325)+IF(مدنى!$A97="ثانية",275)+IF(مدنى!$A97="ثالثة",225)+IF(مدنى!$A97="رابعة",175)+IF(مدنى!$A97="خامسة",175)+IF(مدنى!$A97="سادسة",175) -> 325 | AR97: 262.69 | AS97: =SUM(AU97:BB97)-AT97 -> 2718.64 | AT97: 350 | AW97: 300 | AX97: 150 | AY97: 1400 | AZ97: 518.64 | BA97: 500 | BB97: 200 | BC97: =SUM(مدنى!$BD97:$BE97) -> 2402.696245 | BD97: =TRUNC(الجدول4[[#This Row],[اجر وظيفي 2021]]*7%,2) -> 157.18 | BE97: =SUM(الجدول4[[#This Row],[علاوة 2020]:[الاجر الوظيفي]]) -> 2245.516245 | BF97: 146.9 | BG97: =SUM(الجدول4[[#This Row],[تشجيعية 2020]:[اجر وظيفي 2019]]) -> 2098.616245 | BH97: 130.75 | BI97: =SUM(BJ97:BM97) -> 1867.936245 | BJ97: =(SUM(الجدول4[[#This Row],[علاوة دورية]:[اجر وظيفي]]))*5% -> 88.949345 | BK97: 190 | BL97: 103.95 | BM97: 1485.0369 | BN97: 91.1869 | BO97: 91.18 | BP97: 1302.67 | BQ97: 85.22 | BR97: 1039.88 | BS97: 25.36 | BT97: 1014.52 | BU97: =TRUNC(BV97*109%,2) -> 531.96 | BV97: =TRUNC(BW97*109%,2) -> 488.04 | BW97: =TRUNC(BX97*109%,2) -> 447.75 | BX97: =TRUNC(BY97*109%,2) -> 410.78 | BY97: =TRUNC(BZ97*109%,2) -> 376.87 | BZ97: 345.76 | CD97: 22 | CE97: 193.36 | CF97: 399.9 | CG97: 370.56 | CH97: 194.84 | CI97: 184.54 | CJ97: 3163.68 | CK97: 12.05 | CM97: 1.73 | CN97: 172.04 | CO97: 10.38 | CP97: 34.58 | CQ97: 4 | CR97: 4 | CS97: 864.4 | CT97: 32.46 | CU97: 31.46 | CV97: 36.54 | CW97: 30.54 | CX97: 16.96 | CZ97: 0 | DF97: =TRUNC(الجدول4[[#This Row],[اجر وظيفي 2019]]*5%,2) -> 99.93 | DG97: 1998.686245 | DH97: هانى محمد احمد متولى بدوى
A98: خامسة | D98: =IF(E98<>"",SUBTOTAL(3,$E$1:E97),"") -> 18 | E98: محمود محمد عباس عبده | F98: =الجدول4[[#This Row],[الجملة]]-الجدول4[[#This Row],[الاستقطاعات]] -> 4095.58 | G98: =SUM(مدنى!$H98:$AI98) -> 1005.16 | H98: 23.3 | I98: 19.15 | J98: =TRUNC((الجدول4[[#This Row],[الجملة]]-SUM(Z98:AF98,H98:I98))*1%,2) -> 41.66 | W98: 10 | X98: 19.36 | Z98: =مدنى!$AN98 -> 31.57 | AA98: =مدنى!$AN98 -> 31.57 | AB98: 284.07 | AC98: =مدنى!$AL98 -> 94.69 | AD98: =مدنى!$AM98 -> 39.46 | AE98: =مدنى!$AN98 -> 31.57 | AF98: =مدنى!$AO98 -> 378.76 | AJ98: 5100.74 | AL98: 94.69 | AM98: 39.46 | AN98: 31.57 | AO98: 378.76 | AP98: 2624.37 | AQ98: =IF(مدنى!$A98="مدير عام",350)+IF(مدنى!$A98="اولى",325)+IF(مدنى!$A98="ثانية",275)+IF(مدنى!$A98="ثالثة",225)+IF(مدنى!$A98="رابعة",175)+IF(مدنى!$A98="خامسة",175)+IF(مدنى!$A98="سادسة",175) -> 175 | AR98: 196.52 | AS98: 2252.85 | AT98: 400 | AW98: 150 | AX98: 150 | AY98: 1400 | AZ98: 322.65 | BA98: 430.2 | BB98: 200 | BC98: =SUM(مدنى!$BD98:$BE98) -> 1931.89 | BD98: =TRUNC(الجدول4[[#This Row],[اجر وظيفي 2021]]*7%,2) -> 126.38 | BE98: =SUM(الجدول4[[#This Row],[علاوة 2020]:[الاجر الوظيفي]]) -> 1805.51 | BF98: 118.11 | BG98: =SUM(الجدول4[[#This Row],[تشجيعية 2020]:[اجر وظيفي 2019]]) -> 1687.4 | BH98: 105.13 | BI98: 1501.92 | BK98: 200 | BL98: 85.17 | BM98: 1216.75 | BN98: 74.71 | BO98: 74.71 | BP98: 1067.33 | BQ98: 69.82 | BR98: 997.51 | BS98: 47.5 | BT98: 950.01 | BU98: 330.94 | BV98: 303.618955 | BW98: 278.5495 | BX98: 255.55 | BY98: 234.45 | BZ98: 215.1 | CD98: 20.2 | CE98: 170.11 | CF98: 346.54 | CG98: 306.77 | CH98: 164.98 | CI98: 156.23 | CJ98: 2896.86 | CK98: 8.75 | CL98: 0 | CM98: 1.08 | CN98: 127.18 | CO98: 6.46 | CP98: 21.51 | CQ98: 4 | CS98: 537.75 | CT98: 20.12 | CU98: 19.82 | CV98: 27.15 | CW98: 21.52 | CX98: 11.2 | CZ98: 0 | DF98: =TRUNC(الجدول4[[#This Row],[اجر وظيفي 2019]]*5%,2) -> 80.35 | DG98: 1607.05 | DH98: محمود محمد عباس عبده
A99: خامسة | B99: مدنى فارسكور | D99: =IF(E99<>"",SUBTOTAL(3,$E$1:E98),"") -> 19 | E99: سعيد وهبه ابو زيد وهبة | F99: =الجدول4[[#This Row],[الجملة]]-الجدول4[[#This Row],[الاستقطاعات]] -> 3948.6 | G99: =SUM(مدنى!$H99:$AI99) -> 934.68 | H99: 21.95 | I99: 15.09 | J99: =TRUNC((الجدول4[[#This Row],[الجملة]]-SUM(Z99:AF99,H99:I99))*1%,2) -> 40.06 | X99: 18.3 | Z99: =مدنى!$AN99 -> 29.71 | AA99: =مدنى!$AN99 -> 29.71 | AB99: 267.38 | AC99: =مدنى!$AL99 -> 89.13 | AD99: =مدنى!$AM99 -> 37.14 | AE99: =مدنى!$AN99 -> 29.71 | AF99: =مدنى!$AO99 -> 356.5 | AJ99: 4883.28 | AL99: 89.13 | AM99: 37.14 | AN99: 29.71 | AO99: 356.5 | AP99: 2591.67 | AQ99: =IF(مدنى!$A99="مدير عام",350)+IF(مدنى!$A99="اولى",325)+IF(مدنى!$A99="ثانية",275)+IF(مدنى!$A99="ثالثة",225)+IF(مدنى!$A99="رابعة",175)+IF(مدنى!$A99="خامسة",175)+IF(مدنى!$A99="سادسة",175) -> 175 | AR99: 205.3 | AS99: 2211.37 | AT99: 400 | AW99: 150 | AX99: 150 | AY99: 1400 | AZ99: 304.87 | BA99: 406.5 | BB99: 200 | BC99: =SUM(مدنى!$BD99:$BE99) -> 1779.13 | BD99: =TRUNC(الجدول4[[#This Row],[اجر وظيفي 2021]]*7%,2) -> 116.39 | BE99: =SUM(الجدول4[[#This Row],[علاوة 2020]:[الاجر الوظيفي]]) -> 1662.74 | BF99: 108.77 | BG99: =SUM(الجدول4[[#This Row],[تشجيعية 2020]:[اجر وظيفي 2019]]) -> 1553.97 | BH99: 101.66 | BI99: 1452.31 | BJ99: 69.15 | BK99: 200 | BL99: 77.4 | BM99: 1105.76 | BN99: 67.89 | BO99: 67.89 | BP99: 969.98 | BQ99: 63.45 | BR99: 906.53 | BS99: 43.16 | BT99: 863.37 | BU99: 312.69 | BV99: 286.88 | BW99: 263.2 | BX99: 241.47 | BY99: 221.54 | BZ99: 203.25 | CD99: 19.4 | CE99: 159.61 | CF99: 319.99 | CG99: 294.75 | CH99: 149.08 | CI99: 140.98 | CJ99: 2774.74 | CK99: 8.1 | CL99: 0 | CM99: 1 | CN99: 114.13 | CO99: 5.97 | CP99: 19.88 | CQ99: 4 | CR99: 6 | CS99: 508.12 | CT99: 19.37 | CU99: 3.5 | CV99: 5.25 | CW99: 5.25 | CX99: 3.5 | CZ99: 0 | DG99: 1553.97 | DH99: سعيد وهبه ابو زيد وهبة
A100: ثالثة | B100: كفرسعد جزئي | D100: =IF(E100<>"",SUBTOTAL(3,$E$1:E99),"") -> 19 | E100: حمدى صلاح السعيد عطوية | F100: =الجدول4[[#This Row],[الجملة]]-الجدول4[[#This Row],[الاستقطاعات]] -> 3818.95 | G100: =SUM(مدنى!$H100:$AI100) -> 1374.33 | H100: =CEILING((((BC100+AP100-1450))*0.75%),0.05) -> 23.9 | I100: =TRUNC(IF(((BC100+AP100)-H100-X100-Y100-Z100-AA100-AB100-AY100-AG100-AH100-AI100)*12<=24000,0, IF(((BC100+AP100)-H100-X100-Y100-Z100-AA100-AB100-AY100-AG100-AH100-AI100)*12-9000<=30000,(((BC100+AP100)-H100-X100-Y100-Z100-AA100-AB100-AY100-AG100-AH100-AI100)*12-24000)*2.5%, IF(((BC100+AP100)-H100-X100-Y100-Z100-AA100-AB100-AY100-AG100-AH100-AI100)*12-9000<=45000,(((BC100+AP100)-H100-X100-Y100-Z100-AA100-AB100-AY100-AG100-AH100-AI100)*12-39000)*10%+375, IF(((BC100+AP100)-H100-X100-Y100-Z100-AA100-AB100-AY100-AG100-AH100-AI100)*12-9000<=60000,(((BC100+AP100)-H100-X100-Y100-Z100-AA100-AB100-AY100-AG100-AH100-AI100)*12-54000)*15%+1875, IF(((BC100+AP100)-H100-X100-Y100-Z100-AA100-AB100-AY100-AG100-AH100-AI100)*12-9000<=200000,(((BC100+AP100)-H100-X100-Y100-Z100-AA100-AB100-AY100-AG100-AH100-AI100)*12-60000)*20%+4125, IF(((BC100+AP100)-H100-X100-Y100-Z100-AA100-AB100-AY100-AG100-AH100-AI100)*12-9000<=400000,(((BC100+AP100)-H100-X100-Y100-Z100-AA100-AB100-AY100-AG100-AH100-AI100)*12-200000)*22.5%+32125, IF(((BC100+AP100)-H100-X100-Y100-Z100-AA100-AB100-AY100-AG100-AH100-AI100)*12-9000<=600000,(((BC100+AP100)-H100-X100-Y100-Z100-AA100-AB100-AY100-AG100-AH100-AI100)*12-400000)*25%+77125, IF(((BC100+AP100)-H100-X100-Y100-Z100-AA100-AB100-AY100-AG100-AH100-AI100)*12-9000>600000,(((BC100+AP100)-H100-X100-Y100-Z100-AA100-AB100-AY100-AG100-AH100-AI100)*12-400000)*25%+77125 ))))))))/12,2) -> 18.49 | J100: =TRUNC((الجدول4[[#This Row],[الجملة]]-SUM(Z100:AF100,H100:I100))*1%,2) -> 42.36 | M100: 250 | W100: 10 | Y100: 115.6 | Z100: =مدنى!$AN100 -> 32.36 | AA100: =مدنى!$AN100 -> 32.36 | AB100: 291.17 | AC100: =مدنى!$AL100 -> 97.06 | AD100: =مدنى!$AM100 -> 40.44 | AE100: =مدنى!$AN100 -> 32.36 | AF100: =مدنى!$AO100 -> 388.23 | AJ100: =SUM(AK100:AP100,BC100) -> 5193.28 | AL100: 97.06 | AM100: 40.44 | AN100: 32.36 | AO100: 388.23 | AP100: =SUM(AQ100:AS100) -> 2799.5 | AQ100: =IF(مدنى!$A100="مدير عام",350)+IF(مدنى!$A100="اولى",325)+IF(مدنى!$A100="ثانية",275)+IF(مدنى!$A100="ثالثة",225)+IF(مدنى!$A100="رابعة",175)+IF(مدنى!$A100="خامسة",175)+IF(مدنى!$A100="سادسة",175) -> 225 | AR100: 220.25 | AS100: 2354.25 | AT100: 385 | AW100: 200 | AX100: 150 | AY100: 1400 | AZ100: 338.25 | BA100: 451 | BB100: 200 | BC100: =SUM(مدنى!$BD100:$BE100) -> 1835.69 | BD100: =TRUNC(الجدول4[[#This Row],[اجر وظيفي 2021]]*7%,2) -> 120.09 | BE100: =SUM(الجدول4[[#This Row],[علاوة 2020]:[الاجر الوظيفي]]) -> 1715.6 | BF100: 112.23 | BG100: =SUM(الجدول4[[#This Row],[تشجيعية 2020]:[اجر وظيفي 2019]]) -> 1603.37 | BH100: 104.89 | BI100: 1498.48 | BJ100: 71.35 | BK100: 190 | BL100: 80.93 | BM100: 1156.2 | BN100: 70.99 | BO100: 70.99 | BP100: 1014.22 | BQ100: 66.35 | BR100: 947.87 | BS100: 44.94 | BT100: 898.93 | BU100: 346.95 | BV100: 318.303871 | BW100: 292.0219 | BX100: 267.91 | BY100: 245.79 | BZ100: 225.5 | CD100: 20.25 | CE100: 161.02 | CF100: 338.49 | CG100: 317.93 | CH100: 166.32 | CI100: 157.22 | CJ100: 2903.18 | CK100: 9.1 | CL100: 0 | CM100: 1.13 | CN100: 126.77 | CO100: 6.77 | CP100: 22.55 | CQ100: 4 | CR100: 6 | CS100: 563.75 | CT100: 21.93 | CU100: 4.2 | CV100: 6.3 | CW100: 6.3 | CX100: 4.2 | CY100: 4 | DG100: 1603.37 | DH100: حمدى صلاح السعيد عطوية
A101: اولى | B101: محكمة المرور | D101: =IF(E101<>"",SUBTOTAL(3,$E$1:E100),"") -> 19 | E101: سمية عبد الحليم السيد شولح | F101: =الجدول4[[#This Row],[الجملة]]-الجدول4[[#This Row],[الاستقطاعات]] -> 6132.74 | G101: =SUM(مدنى!$H101:$AI101) -> 2200.44 | H101: =CEILING((((BC101+AP101-1450))*0.75%),0.05) -> 44 | I101: =TRUNC(IF(((BC101+AP101)-H101-X101-Y101-Z101-AA101-AB101-AY101-AG101-AH101-AI101)*12<=24000,0, IF(((BC101+AP101)-H101-X101-Y101-Z101-AA101-AB101-AY101-AG101-AH101-AI101)*12-9000<=30000,(((BC101+AP101)-H101-X101-Y101-Z101-AA101-AB101-AY101-AG101-AH101-AI101)*12-24000)*2.5%, IF(((BC101+AP101)-H101-X101-Y101-Z101-AA101-AB101-AY101-AG101-AH101-AI101)*12-9000<=45000,(((BC101+AP101)-H101-X101-Y101-Z101-AA101-AB101-AY101-AG101-AH101-AI101)*12-39000)*10%+375, IF(((BC101+AP101)-H101-X101-Y101-Z101-AA101-AB101-AY101-AG101-AH101-AI101)*12-9000<=60000,(((BC101+AP101)-H101-X101-Y101-Z101-AA101-AB101-AY101-AG101-AH101-AI101)*12-54000)*15%+1875, IF(((BC101+AP101)-H101-X101-Y101-Z101-AA101-AB101-AY101-AG101-AH101-AI101)*12-9000<=200000,(((BC101+AP101)-H101-X101-Y101-Z101-AA101-AB101-AY101-AG101-AH101-AI101)*12-60000)*20%+4125, IF(((BC101+AP101)-H101-X101-Y101-Z101-AA101-AB101-AY101-AG101-AH101-AI101)*12-9000<=400000,(((BC101+AP101)-H101-X101-Y101-Z101-AA101-AB101-AY101-AG101-AH101-AI101)*12-200000)*22.5%+32125, IF(((BC101+AP101)-H101-X101-Y101-Z101-AA101-AB101-AY101-AG101-AH101-AI101)*12-9000<=600000,(((BC101+AP101)-H101-X101-Y101-Z101-AA101-AB101-AY101-AG101-AH101-AI101)*12-400000)*25%+77125, IF(((BC101+AP101)-H101-X101-Y101-Z101-AA101-AB101-AY101-AG101-AH101-AI101)*12-9000>600000,(((BC101+AP101)-H101-X101-Y101-Z101-AA101-AB101-AY101-AG101-AH101-AI101)*12-400000)*25%+77125 ))))))))/12,2) -> 255.53 | J101: =TRUNC((الجدول4[[#This Row],[الجملة]]-SUM(Z101:AF101,H101:I101))*1%,2) -> 63.63 | O101: 50 | P101: 50 | W101: 10 | X101: 56.77 | Z101: =مدنى!$AN101 -> 59.14 | AA101: =مدنى!$AN101 -> 59.14 | AB101: 532.19 | AC101: =مدنى!$AL101 -> 177.4 | AD101: =مدنى!$AM101 -> 73.92 | AE101: =مدنى!$AN101 -> 59.14 | AF101: =مدنى!$AO101 -> 709.58 | AJ101: =SUM(AK101:AP101,BC101) -> 8333.18 | AL101: 177.4 | AM101: 73.92 | AN101: 59.14 | AO101: 709.58 | AP101: =SUM(AQ101:AS101) -> 4046.25 | AQ101: =IF(مدنى!$A101="مدير عام",350)+IF(مدنى!$A101="اولى",325)+IF(مدنى!$A101="ثانية",275)+IF(مدنى!$A101="ثالثة",225)+IF(مدنى!$A101="رابعة",175)+IF(مدنى!$A101="خامسة",175)+IF(مدنى!$A101="سادسة",175) -> 325 | AR101: 364.77 | AS101: =SUM(AU101:BB101)-AT101 -> 3356.48 | AT101: 255 | AW101: 300 | AX101: 150 | AY101: 1400 | AZ101: =TRUNC(BZ101*150%,2) -> 946.11 | BA101: =IF(BZ101*200%>500,500,BZ101*200%) -> 500 | BB101: =IF(BZ101*50%<200,200,TRUNC(BZ101*50%,2)) -> 315.37 | BC101: =SUM(مدنى!$BD101:$BE101) -> 3266.89 | BD101: =TRUNC(الجدول4[[#This Row],[اجر وظيفي 2021]]*7%,2) -> 213.72 | BE101: =SUM(الجدول4[[#This Row],[علاوة 2020]:[الاجر الوظيفي]]) -> 3053.17 | BF101: =TRUNC(BG101*7%,2) -> 199.74 | BG101: =SUM(الجدول4[[#This Row],[تشجيعية 2020]:[اجر وظيفي 2019]]) -> 2853.43 | BH101: 186.67 | BI101: 2666.76 | BK101: 190 | BL101: 162.03 | BM101: 2314.73 | BN101: 130 | BO101: 142.92 | BP101: 2041.81 | BQ101: 133.57 | BR101: 1908.24 | BS101: 90.86 | BT101: 1817.38 | BU101: 970.44 | BV101: 890.32 | BW101: 816.81 | BX101: 749.37 | BY101: 687.5 | BZ101: 630.74 | CC101: 2666.76 | CD101: 33.05 | CE101: 400.12 | CF101: 701.34 | CG101: 591.2 | CH101: 327.38 | CI101: 268.17 | CJ101: 4719.86 | CK101: 18.9 | CL101: 40.31 | CM101: 3.16 | CN101: 183 | CO101: 18.93 | CP101: 63.08 | CQ101: 4 | CR101: 2 | CS101: 1576.85 | CT101: 58.87 | CU101: 58.37 | CV101: 67.33 | CW101: 61.18 | CX101: 35.15 | DG101: 2853.43 | DH101: سمية عبد الحليم السيد شولح
A102: اولى | B102: محكمة المرور | D102: =IF(E102<>"",SUBTOTAL(3,$E$1:E101),"") -> 19 | E102: نفيسة على حسن ابو حسين | F102: =الجدول4[[#This Row],[الجملة]]-الجدول4[[#This Row],[الاستقطاعات]] -> 5858.66 | G102: =SUM(مدنى!$H102:$AI102) -> 2131.35 | H102: =CEILING((((BC102+AP102-1450))*0.75%),0.05) -> 41.8 | I102: =TRUNC(IF(((BC102+AP102)-H102-X102-Y102-Z102-AA102-AB102-AY102-AG102-AH102-AI102)*12<=24000,0, IF(((BC102+AP102)-H102-X102-Y102-Z102-AA102-AB102-AY102-AG102-AH102-AI102)*12-9000<=30000,(((BC102+AP102)-H102-X102-Y102-Z102-AA102-AB102-AY102-AG102-AH102-AI102)*12-24000)*2.5%, IF(((BC102+AP102)-H102-X102-Y102-Z102-AA102-AB102-AY102-AG102-AH102-AI102)*12-9000<=45000,(((BC102+AP102)-H102-X102-Y102-Z102-AA102-AB102-AY102-AG102-AH102-AI102)*12-39000)*10%+375, IF(((BC102+AP102)-H102-X102-Y102-Z102-AA102-AB102-AY102-AG102-AH102-AI102)*12-9000<=60000,(((BC102+AP102)-H102-X102-Y102-Z102-AA102-AB102-AY102-AG102-AH102-AI102)*12-54000)*15%+1875, IF(((BC102+AP102)-H102-X102-Y102-Z102-AA102-AB102-AY102-AG102-AH102-AI102)*12-9000<=200000,(((BC102+AP102)-H102-X102-Y102-Z102-AA102-AB102-AY102-AG102-AH102-AI102)*12-60000)*20%+4125, IF(((BC102+AP102)-H102-X102-Y102-Z102-AA102-AB102-AY102-AG102-AH102-AI102)*12-9000<=400000,(((BC102+AP102)-H102-X102-Y102-Z102-AA102-AB102-AY102-AG102-AH102-AI102)*12-200000)*22.5%+32125, IF(((BC102+AP102)-H102-X102-Y102-Z102-AA102-AB102-AY102-AG102-AH102-AI102)*12-9000<=600000,(((BC102+AP102)-H102-X102-Y102-Z102-AA102-AB102-AY102-AG102-AH102-AI102)*12-400000)*25%+77125, IF(((BC102+AP102)-H102-X102-Y102-Z102-AA102-AB102-AY102-AG102-AH102-AI102)*12-9000>600000,(((BC102+AP102)-H102-X102-Y102-Z102-AA102-AB102-AY102-AG102-AH102-AI102)*12-400000)*25%+77125 ))))))))/12,2) -> 187.41 | J102: =TRUNC((الجدول4[[#This Row],[الجملة]]-SUM(Z102:AF102,H102:I102))*1%,2) -> 61.72 | X102: 52.6 | Y102: 200 | Z102: =مدنى!$AN102 -> 56.21 | AA102: =مدنى!$AN102 -> 56.21 | AB102: 505.85 | AC102: =مدنى!$AL102 -> 168.62 | AD102: =مدنى!$AM102 -> 70.26 | AE102: =مدنى!$AN102 -> 56.21 | AF102: =مدنى!$AO102 -> 674.46 | AJ102: =SUM(AK102:AP102,BC102) -> 7990.01 | AL102: 168.62 | AM102: 70.26 | AN102: 56.21 | AO102: 674.46 | AP102: =SUM(AQ102:AS102) -> 3936.74 | AQ102: =IF(مدنى!$A102="مدير عام",350)+IF(مدنى!$A102="اولى",325)+IF(مدنى!$A102="ثانية",275)+IF(مدنى!$A102="ثالثة",225)+IF(مدنى!$A102="رابعة",175)+IF(مدنى!$A102="خامسة",175)+IF(مدنى!$A102="سادسة",175) -> 325 | AR102: 347.94 | AS102: =SUM(AU102:BB102)-AT102 -> 3263.8 | AT102: 255 | AW102: 300 | AX102: 150 | AY102: 1400 | AZ102: =TRUNC(BZ102*150%,2) -> 876.6 | BA102: =IF(BZ102*200%>500,500,BZ102*200%) -> 500 | BB102: =IF(BZ102*50%<200,200,TRUNC(BZ102*50%,2)) -> 292.2 | BC102: =SUM(مدنى!$BD102:$BE102) -> 3083.72 | BD102: =TRUNC(الجدول4[[#This Row],[اجر وظيفي 2021]]*7%,2) -> 201.73 | BE102: =SUM(الجدول4[[#This Row],[علاوة 2020]:[الاجر الوظيفي]]) -> 2881.99 | BF102: =TRUNC(BG102*7%,2) -> 188.54 | BG102: =SUM(الجدول4[[#This Row],[تشجيعية 2020]:[اجر وظيفي 2019]]) -> 2693.45 | BH102: 176.2 | BI102: 2517.25 | BK102: 190 | BL102: 152.25 | BM102: 2175 | BN102: 130 | BO102: 133.78 | BP102: 1911.22 | BQ102: 125.03 | BR102: 1786.1865 | BS102: 85.0565 | BT102: 1701.13 | BU102: 899.14 | BV102: 824.9 | BW102: 756.79 | BX102: 694.31 | BY102: 636.99 | BZ102: 584.4 | CD102: 31.5 | CE102: 340.57 | CF102: 633.98 | CG102: 560.32 | CH102: 307.44 | CI102: 261.91 | CJ102: 4510.93 | CK102: 17.7 | CL102: 27.83 | CM102: 2.93 | CN102: 183 | CO102: 17.54 | CP102: 58.44 | CQ102: 4 | CR102: 2 | CS102: 1461 | CT102: 54.46 | CU102: 53.46 | CV102: 61.66 | CW102: 55.51 | CX102: 32.24 | DG102: 2693.45 | DH102: نفيسة على حسن ابو حسين
A103: اولى | B103: محكمة المرور | D103: =IF(E103<>"",SUBTOTAL(3,$E$1:E102),"") -> 19 | E103: مايسة محمد ابو النصر القصبي | F103: =الجدول4[[#This Row],[الجملة]]-الجدول4[[#This Row],[الاستقطاعات]] -> 5447.41 | G103: =SUM(مدنى!$H103:$AI103) -> 1879.29 | H103: =CEILING((((BC103+AP103-1450))*0.75%),0.05) -> 37.55 | I103: =TRUNC(IF(((BC103+AP103)-H103-X103-Y103-Z103-AA103-AB103-AY103-AG103-AH103-AI103)*12<=24000,0, IF(((BC103+AP103)-H103-X103-Y103-Z103-AA103-AB103-AY103-AG103-AH103-AI103)*12-9000<=30000,(((BC103+AP103)-H103-X103-Y103-Z103-AA103-AB103-AY103-AG103-AH103-AI103)*12-24000)*2.5%, IF(((BC103+AP103)-H103-X103-Y103-Z103-AA103-AB103-AY103-AG103-AH103-AI103)*12-9000<=45000,(((BC103+AP103)-H103-X103-Y103-Z103-AA103-AB103-AY103-AG103-AH103-AI103)*12-39000)*10%+375, IF(((BC103+AP103)-H103-X103-Y103-Z103-AA103-AB103-AY103-AG103-AH103-AI103)*12-9000<=60000,(((BC103+AP103)-H103-X103-Y103-Z103-AA103-AB103-AY103-AG103-AH103-AI103)*12-54000)*15%+1875, IF(((BC103+AP103)-H103-X103-Y103-Z103-AA103-AB103-AY103-AG103-AH103-AI103)*12-9000<=200000,(((BC103+AP103)-H103-X103-Y103-Z103-AA103-AB103-AY103-AG103-AH103-AI103)*12-60000)*20%+4125, IF(((BC103+AP103)-H103-X103-Y103-Z103-AA103-AB103-AY103-AG103-AH103-AI103)*12-9000<=400000,(((BC103+AP103)-H103-X103-Y103-Z103-AA103-AB103-AY103-AG103-AH103-AI103)*12-200000)*22.5%+32125, IF(((BC103+AP103)-H103-X103-Y103-Z103-AA103-AB103-AY103-AG103-AH103-AI103)*12-9000<=600000,(((BC103+AP103)-H103-X103-Y103-Z103-AA103-AB103-AY103-AG103-AH103-AI103)*12-400000)*25%+77125, IF(((BC103+AP103)-H103-X103-Y103-Z103-AA103-AB103-AY103-AG103-AH103-AI103)*12-9000>600000,(((BC103+AP103)-H103-X103-Y103-Z103-AA103-AB103-AY103-AG103-AH103-AI103)*12-400000)*25%+77125 ))))))))/12,2) -> 129.69 | J103: =TRUNC((الجدول4[[#This Row],[الجملة]]-SUM(Z103:AF103,H103:I103))*1%,2) -> 57.31 | X103: 44.7 | Y103: 182.05 | Z103: =مدنى!$AN103 -> 50.55 | AA103: =مدنى!$AN103 -> 50.55 | AB103: 454.93 | AC103: =مدنى!$AL103 -> 151.65 | AD103: =مدنى!$AM103 -> 63.19 | AE103: =مدنى!$AN103 -> 50.55 | AF103: =مدنى!$AO103 -> 606.57 | AJ103: =SUM(AK103:AP103,BC103) -> 7326.7 | AL103: 151.65 | AM103: 63.19 | AN103: 50.55 | AO103: 606.57 | AP103: =SUM(AQ103:AS103) -> 3727.84 | AQ103: =IF(مدنى!$A103="مدير عام",350)+IF(مدنى!$A103="اولى",325)+IF(مدنى!$A103="ثانية",275)+IF(مدنى!$A103="ثالثة",225)+IF(مدنى!$A103="رابعة",175)+IF(مدنى!$A103="خامسة",175)+IF(مدنى!$A103="سادسة",175) -> 325 | AR103: 314.52 | AS103: =SUM(AU103:BB103)-AT103 -> 3088.32 | AT103: 255 | AW103: 300 | AX103: 150 | AY103: 1400 | AZ103: 744.99 | BA103: 500 | BB103: 248.33 | BC103: =SUM(مدنى!$BD103:$BE103) -> 2726.9 | BD103: =TRUNC(الجدول4[[#This Row],[اجر وظيفي 2021]]*7%,2) -> 178.39 | BE103: =SUM(الجدول4[[#This Row],[علاوة 2020]:[الاجر الوظيفي]]) -> 2548.51 | BF103: 166.72 | BG103: =SUM(الجدول4[[#This Row],[تشجيعية 2020]:[اجر وظيفي 2019]]) -> 2381.79 | BH103: 155.81 | BI103: 2225.98 | BK103: 190 | BL103: 133.19 | BM103: 1902.79 | BN103: 116.83 | BO103: 116.83 | BP103: 1669.13 | BQ103: 109.19 | BR103: 1559.94 | BS103: 74.28 | BT103: 1485.66 | BU103: 764.14 | BV103: 701.05 | BW103: 643.17 | BX103: 590.07 | BY103: 541.35 | BZ103: 496.66 | CC103: 2225.98 | CD103: 28.65 | CE103: 288.01 | CF103: 566.72 | CG103: 500.67 | CH103: 272 | CI103: 250.06 | CJ103: 4119.98 | CK103: 15.6 | CL103: 6.34 | CM103: 2.49 | CN103: 183 | CO103: 14.9 | CP103: 49.67 | CQ103: 4 | CR103: 2 | CS103: 1241.65 | CT103: 46.19 | CU103: 45.69 | CV103: 52.38 | CW103: 46.23 | CX103: 26.85 | DG103: 2381.79 | DH103: مايسة محمد ابو النصر القصبي
F104: =SUBTOTAL(109,الجدول4[الصافي]) -> 85814.30625 | G104: =SUBTOTAL(109,الجدول4[الاستقطاعات]) -> 25639.46 | H104: =SUBTOTAL(109,الجدول4[الدمغة]) -> 554.55 | I104: =SUBTOTAL(109,الجدول4[كسب العمل]) -> 1697.01 | J104: =SUBTOTAL(109,الجدول4[اعانة كرونا]) -> 880.82 | K104: =SUBTOTAL(109,الجدول4[جزاءات]) -> 0 | L104: =SUBTOTAL(109,الجدول4[نقابة المهن الزراعية]) -> 7.1 | M104: =SUBTOTAL(109,الجدول4[قسط لصالح النقابة العامة]) -> 250 | N104: =SUBTOTAL(109,الجدول4[دائنة جهات]) -> 0 | O104: =SUBTOTAL(109,الجدول4[مستشفى ابو الريش]) -> 0 | P104: =SUBTOTAL(109,الجدول4[تبرع مستشفى سرطان الاطفال]) -> 0 | Q104: =SUBTOTAL(109,الجدول4[استبعاد مصروفات صيفي]) -> 0 | R104: =SUBTOTAL(109,الجدول4[شركة الشرق للتامين]) -> 0 | S104: =SUBTOTAL(109,الجدول4[بنك اسكندرية]) -> 0 | T104: =SUBTOTAL(109,الجدول4[بنك ناصر]) -> 0 | U104: =SUBTOTAL(109,الجدول4[بنك التعميير والاسكان]) -> 0 | V104: =SUBTOTAL(109,الجدول4[ش محمول النقبة]) -> 41 | W104: =SUBTOTAL(109,الجدول4[نقابة عامة]) -> 80 | X104: =SUBTOTAL(109,الجدول4[صندوق تكميلي خاص]) -> 340.22 | Y104: =SUBTOTAL(109,الجدول4[ش رعاية صحية]) -> 536.97 | Z104: =SUBTOTAL(109,الجدول4[1%]) -> 747.41 | AA104: =SUBTOTAL(109,الجدول4[1%2]) -> 747.41 | AB104: =SUBTOTAL(109,الجدول4[9%]) -> 6725.96 | AC104: =SUBTOTAL(109,الجدول4[3%]) -> 2242.04 | AD104: =SUBTOTAL(109,الجدول4[1%4]) -> 934.24 | AE104: =SUBTOTAL(109,الجدول4[1%3]) -> 747.41 | AF104: =SUBTOTAL(109,الجدول4[12%]) -> 8967.94 | AG104: =SUBTOTAL(109,الجدول4[قسط اجازة خاصة]) -> 0 | AH104: =SUBTOTAL(109,الجدول4[[قسط اعارة ]]) -> 0 | AI104: =SUBTOTAL(109,الجدول4[مدة سابقة]) -> 139.38 | AJ104: =SUBTOTAL(109,الجدول4[الجملة]) -> 111453.7662 | AK104: =SUBTOTAL(109,الجدول4[بدل عدوى]) -> 30 | AL104: =SUBTOTAL(109,الجدول4[3%4]) -> 2242.04 | AM104: =SUBTOTAL(109,الجدول4[1%5]) -> 934.24 | AN104: =SUBTOTAL(109,الجدول4[1%6]) -> 747.41 | AO104: =SUBTOTAL(109,الجدول4[12%7]) -> 8967.94 | AP104: =SUBTOTAL(109,الجدول4[جملة الاجر المكمل]) -> 54797.28 | AQ104: =SUBTOTAL(109,الجدول4[حافز شهري]) -> 5025 | AR104: =SUBTOTAL(109,الجدول4[الحافز التعويضي]) -> 4255.65 | AS104: =SUBTOTAL(109,الجدول4[اجر مكمل بدون علاوة الحد الادنى]) -> 45516.63 | AT104: =SUBTOTAL(109,الجدول4[علاوة حد ادنى]) -> 5500 | AU104: =SUBTOTAL(109,الجدول4[منحه بكالوريوس]) -> 0 | AV104: =SUBTOTAL(109,الجدول4[حافز]) -> 0 | AW104: =SUBTOTAL(109,الجدول4[حافز 2020]) -> 4600 | AX104: =SUBTOTAL(109,الجدول4[حافز 2019]) -> 2550 | AY104: =SUBTOTAL(109,الجدول4[بدل العلاج]) -> 23800 | AZ104: =SUBTOTAL(109,الجدول4[اساسي قديم 150%]) -> 8313.43 | BA104: =SUBTOTAL(109,الجدول4[جهود غير عادية]) -> 8353.2 | BB104: =SUBTOTAL(109,الجدول4[50%]) -> 3400 | BC104: =SUBTOTAL(109,الجدول4[جملة الاجر الوظيفي]) -> 43734.85625 | BD104: =SUBTOTAL(109,الجدول4[علاوة 2021]) -> 2861.08 | BE104: =SUBTOTAL(109,الجدول4[اجر وظيفي 2021]) -> 40873.77625 | BF104: =SUBTOTAL(109,الجدول4[علاوة 2020]) -> 2673.9 | BG104: =SUBTOTAL(109,الجدول4[الاجر الوظيفي]) -> 38199.87624
